Workbook

Sheet Ввод данных
J2: v. 1.0
J3: Расчет максимальной суммы кредита для заемщика по продукту "Военная ипотека"
J5: поля для ввода-
J7: поля с результатами расчета-
J9: Процентная ставка | L9: 0.115
J11: Дата рождения заемщика | L11: 1995-01-02
J13: Плановая дата подписания кредитного договора, до: | L13: 2017-01-15
J15: Срок целевого жилищного займа (ЦЖЗ) согласно свидетельству, до: | L15: 2040-02-01
J17: При изменении любых вводных параметоров необходимо нажать кнопку пересчета суммы кредита
J19: Расчетная максимальная сумма кредита для заемщика, руб. | L19: 2210000
J21: Максимальная сумма кредита, руб. | L21: =IF(MIN(L19,VLOOKUP($L$9,Справочники!$Q$3:$R$4,2,FALSE))<Справочники!$R$7,0,MIN(L19,VLOOKUP($L$9,Справочники!$Q$3:$R$4,2,FALSE))) -> 2100000
J24: Предельная дата выдачи кредита (дата договора + 2 мес.), до: | L24: =EDATE(L13,Справочники!$O$7) -> 2017-03-15
J26: Срок кредитного договора, мес. с даты выдачи кредита | L26: =DATEDIF(L24,L30,"M")+1 -> 275
J28: Возраст заемщика на дату выдачи кредита | L28: =DATEDIF($L$11,$L$24,"Y")& " г "&DATEDIF($L$11,$L$24,"M")-_xlfn.FLOOR.MATH(DATEDIF($L$11,$L$24,"M"),12)&" м" -> 22 г 2 м
J30: Срок кредитного договора, по: | K30: =IFERROR(IF(DATEDIF(L24,L30,"M")<Справочники!$O$9,"!",""),"!") ->  | L30: =EOMONTH(L15,-1) -> 2040-01-31
J32: Возраст заемщика на дату окончания кредитного договора, мес. | L32: =DATEDIF($L$11,$L$30,"Y")& " г "&DATEDIF($L$11,$L$30,"M")-_xlfn.FLOOR.MATH(DATEDIF($L$11,$L$30,"M"),12)&" м" -> 45 г 0 м
J37: Выбор условий кредитования
J39: Запрашиваемая сумма кредита, руб. | L39: 2100000 | M39: =IF(L39>L21,"Превышение максимальной суммы","") -> 
J41: Общая сумма накоплений участника НИС на дату подписания договора, руб. | L41: 1500000
J43: Счет для получения заемщиком накоплений открыт в банке: | L43: Иной
J45: Максимальная сумма накоплений для оплаты первоначального взноса, руб. | L45: =MIN(IF(L43="Иной",Справочники!$O$3, $L$41),L41) -> 1400000
J47: Решение заемщика о сумме накоплений для оплаты первоначального взноса, руб. | K47: =IF(L47>L45,"!","") ->  | L47: 1400000
J49: Собственные средства заемщика, руб. | L49: 0
J51: Общая сумма первоначального взноса, руб. | L51: =L47+L49 -> 1400000
J53: Оценочная стоимость жилья, руб. | L53: 3500000 | M53: =IF(L39+L47>L53,"Кредит+Накопления > Оценки","") -> 
J55: Стоимость жилья по договору купли-продажи, руб. | L55: 3500000 | M55: =IF(L39+L51<>L55,"Кредит+Первоначальный взнос<>Стоимости жилья","") -> 
J57: Коэффициент Кредит/Залог, % | L57: =IFERROR(L39/L55,0) -> 0.6 | M57: =IF($L$57>80%,"превышение К/З","") -> 

Sheet График платежей (hidden)
B2: Параметр | D2: Значение
B3: Сумма кредита | D3: 2210000
B4: Ставка | D4: ='Ввод данных'!$L$9 -> 0.115
B5: Максимальный срок, мес. | D5: ='Ввод данных'!$L$30 -> 2040-01-31
B6: Расчетный период полного погашения | D6: =MATCH(0,V11:V370,0) -> 230
B7: Остаток долга на конец срока кредита | D7: =VLOOKUP(D5,$G$11:$O$370,8,TRUE) -> 0
B8: Расчетная дата полного погашения | D8: =VLOOKUP(D6,$F$11:$H$370,3,FALSE) -> 2036-04-30 | P8: График платежей
B9: Возраст заемщика на дату погашения кредита | D9: =YEARFRAC('Ввод данных'!L11,$D$8) -> 41.32777778 | G9: Начало процентного периода | H9: Конец месяца (процентного периода) | I9: Процентный период, дн. | J9: День недели | K9: Первый рабочий день нового месяца | L9: Кол-во дней в году | M9: Платеж | N9: Общий долга на начало | O9: ОД на начало | P9: Накопленные %% на начало | Q9: Начислено за месяц | R9: Погашение ОД | S9: Погашение текущих % | T9: Погашение накопленных %% | U9: Формирование накопленных %% | V9: ОД на конец периода | W9: Накопленные %% на конец периода
F11: 1 | G11: ='Ввод данных'!$L$24 -> 2017-03-15 | H11: =EOMONTH(G11,0) -> 2017-03-31 | I11: =H11-G11 -> 16 | J11: =WEEKDAY(H11,11) -> 5 | K11: =WORKDAY(H11,IF(OR(J11=6,J11=7),1,0)) -> 2017-03-31 | L11: =VLOOKUP(YEAR(G11),Справочники!$C$3:$I$33,7,FALSE) -> 365 | M11: =VLOOKUP(YEAR(G11),Справочники!$C$3:$D$33,2,FALSE) -> 21680 | N11: =O11+P11 -> 2210000 | O11: =D3 -> 2210000 | P11: 0 | Q11: =O11*$D$4/L11*I11 -> 11140.82192 | R11: 0 | S11: 0 | T11: 0 | U11: =MAX(Q11-S11,0) -> 11140.82192 | V11: =O11-R11 -> 2210000 | W11: =P11+U11-T11 -> 11140.82192
F12: 2 | G12: =H11+1 -> 2017-04-01 | H12: =EOMONTH(G12,0) -> 2017-04-30 | I12: =H12-G12+1 -> 30 | J12: =WEEKDAY(H12,11) -> 7 | K12: =WORKDAY(H12,IF(OR(J12=6,J12=7),1,0)) -> 2017-05-01 | L12: =VLOOKUP(YEAR(G12),Справочники!$C$3:$I$33,7,FALSE) -> 365 | M12: =VLOOKUP(YEAR(G12),Справочники!$C$3:$D$33,2,FALSE)+MIN(W11,M11) -> 32820.82192 | N12: =O12+P12 -> 2221140.822 | O12: =V11 -> 2210000 | P12: =W11 -> 11140.82192 | Q12: =O12*$D$4/L12*I12 -> 20889.0411 | R12: =MIN(M12-T12-S12,O12) -> 790.9589041 | S12: =MIN(M12-T12,Q12) -> 20889.0411 | T12: =MIN(M12,P12) -> 11140.82192 | U12: =MAX(Q12-S12,0) -> 0 | V12: =O12-R12 -> 2209209.041 | W12: 0
F13: 3 | G13: =H12+1 -> 2017-05-01 | H13: 2017-05-31 | I13: =H13-G13+1 -> 31 | J13: 3 | K13: 2017-05-31 | L13: =VLOOKUP(YEAR(G13),Справочники!$C$3:$I$33,7,FALSE) -> 365 | M13: =VLOOKUP(YEAR(G13),Справочники!$C$3:$D$33,2,FALSE) -> 21680 | N13: 2209209.041 | O13: =V12 -> 2209209.041 | P13: 0 | Q13: =O13*$D$4/L13*I13 -> 21577.61707 | R13: 102.3829274 | S13: 21577.61707 | T13: 0 | U13: =MAX(Q13-S13,0) -> 0 | V13: 2209106.658 | W13: 0
F14: 4 | G14: 2017-06-01 | H14: 2017-06-30 | I14: 30 | J14: 5 | K14: 2017-06-30 | L14: =VLOOKUP(YEAR(G14),Справочники!$C$3:$I$33,7,FALSE) -> 365 | M14: =VLOOKUP(YEAR(G14),Справочники!$C$3:$D$33,2,FALSE) -> 21680 | N14: 2209106.658 | O14: 2209106.658 | P14: 0 | Q14: 20880.59718 | R14: 799.4028201 | S14: 20880.59718 | T14: 0 | U14: 0 | V14: 2208307.255 | W14: 0
F15: 5 | G15: 2017-07-01 | H15: 2017-07-31 | I15: 31 | J15: 1 | K15: 2017-07-31 | L15: =VLOOKUP(YEAR(G15),Справочники!$C$3:$I$33,7,FALSE) -> 365 | M15: =VLOOKUP(YEAR(G15),Справочники!$C$3:$D$33,2,FALSE) -> 21680 | N15: 2208307.255 | O15: 2208307.255 | P15: 0 | Q15: 21568.80922 | R15: 111.19078 | S15: 21568.80922 | T15: 0 | U15: 0 | V15: 2208196.065 | W15: 0
F16: 6 | G16: 2017-08-01 | H16: 2017-08-31 | I16: 31 | J16: 4 | K16: 2017-08-31 | L16: =VLOOKUP(YEAR(G16),Справочники!$C$3:$I$33,7,FALSE) -> 365 | M16: =VLOOKUP(YEAR(G16),Справочники!$C$3:$D$33,2,FALSE) -> 21680 | N16: 2208196.065 | O16: 2208196.065 | P16: 0 | Q16: 21567.72321 | R16: 112.276794 | S16: 21567.72321 | T16: 0 | U16: 0 | V16: 2208083.788 | W16: 0
F17: 7 | G17: 2017-09-01 | H17: 2017-09-30 | I17: 30 | J17: 6 | K17: 2017-10-02 | L17: =VLOOKUP(YEAR(G17),Справочники!$C$3:$I$33,7,FALSE) -> 365 | M17: =VLOOKUP(YEAR(G17),Справочники!$C$3:$D$33,2,FALSE) -> 21680 | N17: 2208083.788 | O17: =V16 -> 2208083.788 | P17: =W16 -> 0 | Q17: 20870.92895 | R17: 809.0710471 | S17: 20870.92895 | T17: 0 | U17: =MAX(Q17-S17,0) -> 0 | V17: 2207274.717 | W17: 0
F18: 8 | G18: 2017-10-01 | H18: 2017-10-31 | I18: 31 | J18: 2 | K18: 2017-10-31 | L18: =VLOOKUP(YEAR(G18),Справочники!$C$3:$I$33,7,FALSE) -> 365 | M18: =VLOOKUP(YEAR(G18),Справочники!$C$3:$D$33,2,FALSE) -> 21680 | N18: 2207274.717 | O18: =V17 -> 2207274.717 | P18: =W17 -> 0 | Q18: 21558.72429 | R18: 121.275712 | S18: 21558.72429 | T18: 0 | U18: 0 | V18: 2207153.441 | W18: 0
F19: 9 | G19: 2017-11-01 | H19: 2017-11-30 | I19: 30 | J19: 4 | K19: 2017-11-30 | L19: =VLOOKUP(YEAR(G19),Справочники!$C$3:$I$33,7,FALSE) -> 365 | M19: =VLOOKUP(YEAR(G19),Справочники!$C$3:$D$33,2,FALSE) -> 21680 | N19: 2207153.441 | O19: 2207153.441 | P19: 0 | Q19: 20862.13526 | R19: 817.8647356 | S19: 20862.13526 | T19: 0 | U19: 0 | V19: 2206335.576 | W19: 0
F20: 10 | G20: 2017-12-01 | H20: 2017-12-31 | I20: 31 | J20: 7 | K20: 2018-01-01 | L20: =VLOOKUP(YEAR(G20),Справочники!$C$3:$I$33,7,FALSE) -> 365 | M20: =VLOOKUP(YEAR(G20),Справочники!$C$3:$D$33,2,FALSE) -> 21680 | N20: 2206335.576 | O20: 2206335.576 | P20: 0 | Q20: 21549.55159 | R20: 130.4484125 | S20: 21549.55159 | T20: 0 | U20: 0 | V20: 2206205.128 | W20: 0
F21: 11 | G21: 2018-01-01 | H21: 2018-01-31 | I21: 31 | J21: 3 | K21: 2018-01-31 | L21: =VLOOKUP(YEAR(G21),Справочники!$C$3:$I$33,7,FALSE) -> 365 | M21: =VLOOKUP(YEAR(G21),Справочники!$C$3:$D$33,2,FALSE) -> 21680 | N21: 2206205.128 | O21: 2206205.128 | P21: 0 | Q21: 21548.27748 | R21: 131.7225182 | S21: 21548.27748 | T21: 0 | U21: 0 | V21: 2206073.405 | W21: 0
F22: 12 | G22: 2018-02-01 | H22: 2018-02-28 | I22: 28 | J22: 3 | K22: 2018-02-28 | L22: =VLOOKUP(YEAR(G22),Справочники!$C$3:$I$33,7,FALSE) -> 365 | M22: =VLOOKUP(YEAR(G22),Справочники!$C$3:$D$33,2,FALSE) -> 21680 | N22: 2206073.405 | O22: 2206073.405 | P22: 0 | Q22: 19461.79826 | R22: 2218.201739 | S22: 19461.79826 | T22: 0 | U22: 0 | V22: 2203855.204 | W22: 0
F23: 13 | G23: 2018-03-01 | H23: 2018-03-31 | I23: 31 | J23: 6 | K23: 2018-04-02 | L23: =VLOOKUP(YEAR(G23),Справочники!$C$3:$I$33,7,FALSE) -> 365 | M23: =VLOOKUP(YEAR(G23),Справочники!$C$3:$D$33,2,FALSE) -> 21680 | N23: 2203855.204 | O23: =V22 -> 2203855.204 | P23: =W22 -> 0 | Q23: 21525.32548 | R23: 154.6745182 | S23: 21525.32548 | T23: 0 | U23: 0 | V23: 2203700.529 | W23: 0
F24: 14 | G24: 2018-04-01 | H24: 2018-04-30 | I24: 30 | J24: 1 | K24: 2018-04-30 | L24: =VLOOKUP(YEAR(G24),Справочники!$C$3:$I$33,7,FALSE) -> 365 | M24: =VLOOKUP(YEAR(G24),Справочники!$C$3:$D$33,2,FALSE) -> 21680 | N24: 2203700.529 | O24: 2203700.529 | P24: 0 | Q24: 20829.49815 | R24: 850.5018483 | S24: 20829.49815 | T24: 0 | U24: 0 | V24: 2202850.027 | W24: 0
F25: 15 | G25: 2018-05-01 | H25: 2018-05-31 | I25: 31 | J25: 4 | K25: 2018-05-31 | L25: =VLOOKUP(YEAR(G25),Справочники!$C$3:$I$33,7,FALSE) -> 365 | M25: =VLOOKUP(YEAR(G25),Справочники!$C$3:$D$33,2,FALSE) -> 21680 | N25: 2202850.027 | O25: 2202850.027 | P25: 0 | Q25: 21515.5078 | R25: 164.4921997 | S25: 21515.5078 | T25: 0 | U25: 0 | V25: 2202685.535 | W25: 0
F26: 16 | G26: 2018-06-01 | H26: 2018-06-30 | I26: 30 | J26: 6 | K26: 2018-07-02 | L26: =VLOOKUP(YEAR(G26),Справочники!$C$3:$I$33,7,FALSE) -> 365 | M26: =VLOOKUP(YEAR(G26),Справочники!$C$3:$D$33,2,FALSE) -> 21680 | N26: 2202685.535 | O26: 2202685.535 | P26: 0 | Q26: 20819.90437 | R26: 860.0956277 | S26: 20819.90437 | T26: 0 | U26: 0 | V26: 2201825.439 | W26: 0
F27: 17 | G27: 2018-07-01 | H27: 2018-07-31 | I27: 31 | J27: 2 | K27: 2018-07-31 | L27: =VLOOKUP(YEAR(G27),Справочники!$C$3:$I$33,7,FALSE) -> 365 | M27: =VLOOKUP(YEAR(G27),Справочники!$C$3:$D$33,2,FALSE) -> 21680 | N27: 2201825.439 | O27: 2201825.439 | P27: 0 | Q27: 21505.50052 | R27: 174.4994753 | S27: 21505.50052 | T27: 0 | U27: 0 | V27: 2201650.94 | W27: 0
F28: 18 | G28: 2018-08-01 | H28: 2018-08-31 | I28: 31 | J28: 5 | K28: 2018-08-31 | L28: =VLOOKUP(YEAR(G28),Справочники!$C$3:$I$33,7,FALSE) -> 365 | M28: =VLOOKUP(YEAR(G28),Справочники!$C$3:$D$33,2,FALSE) -> 21680 | N28: 2201650.94 | O28: 2201650.94 | P28: 0 | Q28: 21503.79617 | R28: 176.2038332 | S28: 21503.79617 | T28: 0 | U28: 0 | V28: 2201474.736 | W28: 0
F29: 19 | G29: 2018-09-01 | H29: 2018-09-30 | I29: 30 | J29: 7 | K29: 2018-10-01 | L29: =VLOOKUP(YEAR(G29),Справочники!$C$3:$I$33,7,FALSE) -> 365 | M29: =VLOOKUP(YEAR(G29),Справочники!$C$3:$D$33,2,FALSE) -> 21680 | N29: 2201474.736 | O29: 2201474.736 | P29: 0 | Q29: 20808.45983 | R29: 871.5401656 | S29: 20808.45983 | T29: 0 | U29: 0 | V29: 2200603.196 | W29: 0
F30: 20 | G30: 2018-10-01 | H30: 2018-10-31 | I30: 31 | J30: 3 | K30: 2018-10-31 | L30: =VLOOKUP(YEAR(G30),Справочники!$C$3:$I$33,7,FALSE) -> 365 | M30: =VLOOKUP(YEAR(G30),Справочники!$C$3:$D$33,2,FALSE) -> 21680 | N30: 2200603.196 | O30: 2200603.196 | P30: 0 | Q30: 21493.56272 | R30: 186.437278 | S30: 21493.56272 | T30: 0 | U30: 0 | V30: 2200416.759 | W30: 0
F31: 21 | G31: 2018-11-01 | H31: 2018-11-30 | I31: 30 | J31: 5 | K31: 2018-11-30 | L31: =VLOOKUP(YEAR(G31),Справочники!$C$3:$I$33,7,FALSE) -> 365 | M31: =VLOOKUP(YEAR(G31),Справочники!$C$3:$D$33,2,FALSE) -> 21680 | N31: 2200416.759 | O31: 2200416.759 | P31: 0 | Q31: 20798.45977 | R31: 881.5402263 | S31: 20798.45977 | T31: 0 | U31: 0 | V31: 2199535.218 | W31: 0
F32: 22 | G32: 2018-12-01 | H32: 2018-12-31 | I32: 31 | J32: 1 | K32: 2018-12-31 | L32: =VLOOKUP(YEAR(G32),Справочники!$C$3:$I$33,7,FALSE) -> 365 | M32: =VLOOKUP(YEAR(G32),Справочники!$C$3:$D$33,2,FALSE) -> 21680 | N32: 2199535.218 | O32: 2199535.218 | P32: 0 | Q32: 21483.13165 | R32: 196.8683459 | S32: 21483.13165 | T32: 0 | U32: 0 | V32: 2199338.35 | W32: 0
F33: 23 | G33: 2019-01-01 | H33: 2019-01-31 | I33: 31 | J33: 4 | K33: 2019-01-31 | L33: =VLOOKUP(YEAR(G33),Справочники!$C$3:$I$33,7,FALSE) -> 365 | M33: =VLOOKUP(YEAR(G33),Справочники!$C$3:$D$33,2,FALSE) -> 21680 | N33: 2199338.35 | O33: 2199338.35 | P33: 0 | Q33: 21481.20882 | R33: 198.7911833 | S33: 21481.20882 | T33: 0 | U33: 0 | V33: 2199139.559 | W33: 0
F34: 24 | G34: 2019-02-01 | H34: 2019-02-28 | I34: 28 | J34: 4 | K34: 2019-02-28 | L34: =VLOOKUP(YEAR(G34),Справочники!$C$3:$I$33,7,FALSE) -> 365 | M34: =VLOOKUP(YEAR(G34),Справочники!$C$3:$D$33,2,FALSE) -> 21680 | N34: 2199139.559 | O34: 2199139.559 | P34: 0 | Q34: 19400.62844 | R34: 2279.371563 | S34: 19400.62844 | T34: 0 | U34: 0 | V34: 2196860.187 | W34: 0
F35: 25 | G35: 2019-03-01 | H35: 2019-03-31 | I35: 31 | J35: 7 | K35: 2019-04-01 | L35: =VLOOKUP(YEAR(G35),Справочники!$C$3:$I$33,7,FALSE) -> 365 | M35: =VLOOKUP(YEAR(G35),Справочники!$C$3:$D$33,2,FALSE) -> 21680 | N35: 2196860.187 | O35: 2196860.187 | P35: 0 | Q35: 21457.0043 | R35: 222.9957044 | S35: 21457.0043 | T35: 0 | U35: 0 | V35: 2196637.192 | W35: 0
F36: 26 | G36: 2019-04-01 | H36: 2019-04-30 | I36: 30 | J36: 2 | K36: 2019-04-30 | L36: =VLOOKUP(YEAR(G36),Справочники!$C$3:$I$33,7,FALSE) -> 365 | M36: =VLOOKUP(YEAR(G36),Справочники!$C$3:$D$33,2,FALSE) -> 21680 | N36: 2196637.192 | O36: 2196637.192 | P36: 0 | Q36: 20762.7351 | R36: 917.2649009 | S36: 20762.7351 | T36: 0 | U36: 0 | V36: 2195719.927 | W36: 0
F37: 27 | G37: 2019-05-01 | H37: 2019-05-31 | I37: 31 | J37: 5 | K37: 2019-05-31 | L37: =VLOOKUP(YEAR(G37),Справочники!$C$3:$I$33,7,FALSE) -> 365 | M37: =VLOOKUP(YEAR(G37),Справочники!$C$3:$D$33,2,FALSE) -> 21680 | N37: 2195719.927 | O37: 2195719.927 | P37: 0 | Q37: 21445.86723 | R37: 234.1327703 | S37: 21445.86723 | T37: 0 | U37: 0 | V37: 2195485.794 | W37: 0
F38: 28 | G38: 2019-06-01 | H38: 2019-06-30 | I38: 30 | J38: 7 | K38: 2019-07-01 | L38: =VLOOKUP(YEAR(G38),Справочники!$C$3:$I$33,7,FALSE) -> 365 | M38: =VLOOKUP(YEAR(G38),Справочники!$C$3:$D$33,2,FALSE) -> 21680 | N38: 2195485.794 | O38: 2195485.794 | P38: 0 | Q38: 20751.85203 | R38: 928.1479748 | S38: 20751.85203 | T38: 0 | U38: 0 | V38: 2194557.646 | W38: 0
F39: 29 | G39: 2019-07-01 | H39: 2019-07-31 | I39: 31 | J39: 3 | K39: 2019-07-31 | L39: =VLOOKUP(YEAR(G39),Справочники!$C$3:$I$33,7,FALSE) -> 365 | M39: =VLOOKUP(YEAR(G39),Справочники!$C$3:$D$33,2,FALSE) -> 21680 | N39: 2194557.646 | O39: 2194557.646 | P39: 0 | Q39: 21434.51509 | R39: 245.4849097 | S39: 21434.51509 | T39: 0 | U39: 0 | V39: 2194312.161 | W39: 0
F40: 30 | G40: 2019-08-01 | H40: 2019-08-31 | I40: 31 | J40: 6 | K40: 2019-09-02 | L40: =VLOOKUP(YEAR(G40),Справочники!$C$3:$I$33,7,FALSE) -> 365 | M40: =VLOOKUP(YEAR(G40),Справочники!$C$3:$D$33,2,FALSE) -> 21680 | N40: 2194312.161 | O40: 2194312.161 | P40: 0 | Q40: 21432.11741 | R40: 247.882591 | S40: 21432.11741 | T40: 0 | U40: 0 | V40: 2194064.278 | W40: 0
F41: 31 | G41: 2019-09-01 | H41: 2019-09-30 | I41: 30 | J41: 1 | K41: 2019-09-30 | L41: =VLOOKUP(YEAR(G41),Справочники!$C$3:$I$33,7,FALSE) -> 365 | M41: =VLOOKUP(YEAR(G41),Справочники!$C$3:$D$33,2,FALSE) -> 21680 | N41: 2194064.278 | O41: 2194064.278 | P41: 0 | Q41: 20738.41578 | R41: 941.584217 | S41: 20738.41578 | T41: 0 | U41: 0 | V41: 2193122.694 | W41: 0
F42: 32 | G42: 2019-10-01 | H42: 2019-10-31 | I42: 31 | J42: 4 | K42: 2019-10-31 | L42: =VLOOKUP(YEAR(G42),Справочники!$C$3:$I$33,7,FALSE) -> 365 | M42: =VLOOKUP(YEAR(G42),Справочники!$C$3:$D$33,2,FALSE) -> 21680 | N42: 2193122.694 | O42: 2193122.694 | P42: 0 | Q42: 21420.49974 | R42: 259.50026 | S42: 21420.49974 | T42: 0 | U42: 0 | V42: 2192863.194 | W42: 0
F43: 33 | G43: 2019-11-01 | H43: 2019-11-30 | I43: 30 | J43: 6 | K43: 2019-12-02 | L43: =VLOOKUP(YEAR(G43),Справочники!$C$3:$I$33,7,FALSE) -> 365 | M43: =VLOOKUP(YEAR(G43),Справочники!$C$3:$D$33,2,FALSE) -> 21680 | N43: 2192863.194 | O43: 2192863.194 | P43: 0 | Q43: 20727.06307 | R43: 952.9369333 | S43: 20727.06307 | T43: 0 | U43: 0 | V43: =O43-R43 -> 2191910.257 | W43: =P43+U43-T43 -> 0
F44: 34 | G44: 2019-12-01 | H44: 2019-12-31 | I44: 31 | J44: 2 | K44: 2019-12-31 | L44: =VLOOKUP(YEAR(G44),Справочники!$C$3:$I$33,7,FALSE) -> 365 | M44: =VLOOKUP(YEAR(G44),Справочники!$C$3:$D$33,2,FALSE) -> 21680 | N44: 2191910.257 | O44: 2191910.257 | P44: 0 | Q44: 21408.65772 | R44: 271.3422835 | S44: 21408.65772 | T44: 0 | U44: 0 | V44: 2191638.915 | W44: 0
F45: 35 | G45: 2020-01-01 | H45: 2020-01-31 | I45: 31 | J45: 5 | K45: 2020-01-31 | L45: =VLOOKUP(YEAR(G45),Справочники!$C$3:$I$33,7,FALSE) -> 366 | M45: =VLOOKUP(YEAR(G45),Справочники!$C$3:$D$33,2,FALSE) -> 21680 | N45: 2191638.915 | O45: 2191638.915 | P45: 0 | Q45: 21347.52112 | R45: 332.4788763 | S45: 21347.52112 | T45: 0 | U45: 0 | V45: 2191306.436 | W45: 0
F46: 36 | G46: 2020-02-01 | H46: 2020-02-29 | I46: 29 | J46: 6 | K46: 2020-03-02 | L46: =VLOOKUP(YEAR(G46),Справочники!$C$3:$I$33,7,FALSE) -> 366 | M46: =VLOOKUP(YEAR(G46),Справочники!$C$3:$D$33,2,FALSE) -> 21680 | N46: 2191306.436 | O46: 2191306.436 | P46: 0 | Q46: 19967.23214 | R46: 1712.767858 | S46: 19967.23214 | T46: 0 | U46: 0 | V46: 2189593.668 | W46: 0
F47: 37 | G47: 2020-03-01 | H47: 2020-03-31 | I47: 31 | J47: 2 | K47: 2020-03-31 | L47: =VLOOKUP(YEAR(G47),Справочники!$C$3:$I$33,7,FALSE) -> 366 | M47: =VLOOKUP(YEAR(G47),Справочники!$C$3:$D$33,2,FALSE) -> 21680 | N47: 2189593.668 | O47: 2189593.668 | P47: 0 | Q47: 21327.59953 | R47: 352.4004736 | S47: 21327.59953 | T47: 0 | U47: 0 | V47: 2189241.268 | W47: 0
F48: 38 | G48: 2020-04-01 | H48: 2020-04-30 | I48: 30 | J48: 4 | K48: 2020-04-30 | L48: =VLOOKUP(YEAR(G48),Справочники!$C$3:$I$33,7,FALSE) -> 366 | M48: =VLOOKUP(YEAR(G48),Справочники!$C$3:$D$33,2,FALSE) -> 21680 | N48: 2189241.268 | O48: 2189241.268 | P48: 0 | Q48: 20636.29064 | R48: 1043.709363 | S48: 20636.29064 | T48: 0 | U48: 0 | V48: 2188197.558 | W48: 0
F49: 39 | G49: 2020-05-01 | H49: 2020-05-31 | I49: 31 | J49: 7 | K49: 2020-06-01 | L49: =VLOOKUP(YEAR(G49),Справочники!$C$3:$I$33,7,FALSE) -> 366 | M49: =VLOOKUP(YEAR(G49),Справочники!$C$3:$D$33,2,FALSE) -> 21680 | N49: 2188197.558 | O49: 2188197.558 | P49: 0 | Q49: 21314.00081 | R49: 365.9991937 | S49: 21314.00081 | T49: 0 | U49: 0 | V49: 2187831.559 | W49: 0
F50: 40 | G50: 2020-06-01 | H50: 2020-06-30 | I50: 30 | J50: 2 | K50: 2020-06-30 | L50: =VLOOKUP(YEAR(G50),Справочники!$C$3:$I$33,7,FALSE) -> 366 | M50: =VLOOKUP(YEAR(G50),Справочники!$C$3:$D$33,2,FALSE) -> 21680 | N50: 2187831.559 | O50: 2187831.559 | P50: 0 | Q50: 20623.0024 | R50: 1056.997599 | S50: 20623.0024 | T50: 0 | U50: 0 | V50: 2186774.561 | W50: 0
F51: 41 | G51: 2020-07-01 | H51: 2020-07-31 | I51: 31 | J51: 5 | K51: 2020-07-31 | L51: =VLOOKUP(YEAR(G51),Справочники!$C$3:$I$33,7,FALSE) -> 366 | M51: =VLOOKUP(YEAR(G51),Справочники!$C$3:$D$33,2,FALSE) -> 21680 | N51: 2186774.561 | O51: 2186774.561 | P51: 0 | Q51: 21300.1402 | R51: 379.8598046 | S51: 21300.1402 | T51: 0 | U51: 0 | V51: 2186394.702 | W51: 0
F52: 42 | G52: 2020-08-01 | H52: 2020-08-31 | I52: 31 | J52: 1 | K52: 2020-08-31 | L52: =VLOOKUP(YEAR(G52),Справочники!$C$3:$I$33,7,FALSE) -> 366 | M52: =VLOOKUP(YEAR(G52),Справочники!$C$3:$D$33,2,FALSE) -> 21680 | N52: 2186394.702 | O52: 2186394.702 | P52: 0 | Q52: 21296.44019 | R52: 383.5598051 | S52: 21296.44019 | T52: 0 | U52: 0 | V52: 2186011.142 | W52: 0
F53: 43 | G53: 2020-09-01 | H53: 2020-09-30 | I53: 30 | J53: 3 | K53: 2020-09-30 | L53: =VLOOKUP(YEAR(G53),Справочники!$C$3:$I$33,7,FALSE) -> 366 | M53: =VLOOKUP(YEAR(G53),Справочники!$C$3:$D$33,2,FALSE) -> 21680 | N53: 2186011.142 | O53: 2186011.142 | P53: 0 | Q53: 20605.84273 | R53: 1074.15727 | S53: 20605.84273 | T53: 0 | U53: 0 | V53: 2184936.985 | W53: 0
F54: 44 | G54: 2020-10-01 | H54: 2020-10-31 | I54: 31 | J54: 6 | K54: 2020-11-02 | L54: =VLOOKUP(YEAR(G54),Справочники!$C$3:$I$33,7,FALSE) -> 366 | M54: =VLOOKUP(YEAR(G54),Справочники!$C$3:$D$33,2,FALSE) -> 21680 | N54: 2184936.985 | O54: 2184936.985 | P54: 0 | Q54: 21282.24139 | R54: 397.7586067 | S54: 21282.24139 | T54: 0 | U54: 0 | V54: 2184539.226 | W54: 0
F55: 45 | G55: 2020-11-01 | H55: 2020-11-30 | I55: 30 | J55: 1 | K55: 2020-11-30 | L55: =VLOOKUP(YEAR(G55),Справочники!$C$3:$I$33,7,FALSE) -> 366 | M55: =VLOOKUP(YEAR(G55),Справочники!$C$3:$D$33,2,FALSE) -> 21680 | N55: 2184539.226 | O55: 2184539.226 | P55: 0 | Q55: 20591.96811 | R55: 1088.031887 | S55: 20591.96811 | T55: 0 | U55: 0 | V55: 2183451.194 | W55: 0
F56: 46 | G56: 2020-12-01 | H56: 2020-12-31 | I56: 31 | J56: 4 | K56: 2020-12-31 | L56: =VLOOKUP(YEAR(G56),Справочники!$C$3:$I$33,7,FALSE) -> 366 | M56: =VLOOKUP(YEAR(G56),Справочники!$C$3:$D$33,2,FALSE) -> 21680 | N56: 2183451.194 | O56: 2183451.194 | P56: 0 | Q56: 21267.76914 | R56: 412.2308556 | S56: 21267.76914 | T56: 0 | U56: 0 | V56: 2183038.963 | W56: 0
F57: 47 | G57: 2021-01-01 | H57: 2021-01-31 | I57: 31 | J57: 7 | K57: 2021-02-01 | L57: =VLOOKUP(YEAR(G57),Справочники!$C$3:$I$33,7,FALSE) -> 365 | M57: =VLOOKUP(YEAR(G57),Справочники!$C$3:$D$33,2,FALSE) -> 22352.85772 | N57: 2183038.963 | O57: 2183038.963 | P57: 0 | Q57: 21322.0107 | R57: 1030.847023 | S57: 21322.0107 | T57: 0 | U57: 0 | V57: 2182008.116 | W57: 0
F58: 48 | G58: 2021-02-01 | H58: 2021-02-28 | I58: 28 | J58: 7 | K58: 2021-03-01 | L58: =VLOOKUP(YEAR(G58),Справочники!$C$3:$I$33,7,FALSE) -> 365 | M58: =VLOOKUP(YEAR(G58),Справочники!$C$3:$D$33,2,FALSE) -> 22352.85772 | N58: 2182008.116 | O58: 2182008.116 | P58: 0 | Q58: 19249.49626 | R58: 3103.361461 | S58: 19249.49626 | T58: 0 | U58: 0 | V58: 2178904.755 | W58: 0
F59: 49 | G59: 2021-03-01 | H59: 2021-03-31 | I59: 31 | J59: 3 | K59: 2021-03-31 | L59: =VLOOKUP(YEAR(G59),Справочники!$C$3:$I$33,7,FALSE) -> 365 | M59: =VLOOKUP(YEAR(G59),Справочники!$C$3:$D$33,2,FALSE) -> 22352.85772 | N59: 2178904.755 | O59: 2178904.755 | P59: 0 | Q59: 21281.63137 | R59: 1071.226347 | S59: 21281.63137 | T59: 0 | U59: 0 | V59: 2177833.528 | W59: 0
F60: 50 | G60: 2021-04-01 | H60: 2021-04-30 | I60: 30 | J60: 5 | K60: 2021-04-30 | L60: =VLOOKUP(YEAR(G60),Справочники!$C$3:$I$33,7,FALSE) -> 365 | M60: =VLOOKUP(YEAR(G60),Справочники!$C$3:$D$33,2,FALSE) -> 22352.85772 | N60: 2177833.528 | O60: 2177833.528 | P60: 0 | Q60: 20585.00184 | R60: 1767.855875 | S60: 20585.00184 | T60: 0 | U60: 0 | V60: 2176065.673 | W60: 0
F61: 51 | G61: 2021-05-01 | H61: 2021-05-31 | I61: 31 | J61: 1 | K61: 2021-05-31 | L61: =VLOOKUP(YEAR(G61),Справочники!$C$3:$I$33,7,FALSE) -> 365 | M61: =VLOOKUP(YEAR(G61),Справочники!$C$3:$D$33,2,FALSE) -> 22352.85772 | N61: 2176065.673 | O61: 2176065.673 | P61: 0 | Q61: 21253.90171 | R61: 1098.956013 | S61: 21253.90171 | T61: 0 | U61: 0 | V61: 2174966.716 | W61: 0
F62: 52 | G62: 2021-06-01 | H62: 2021-06-30 | I62: 30 | J62: 3 | K62: 2021-06-30 | L62: =VLOOKUP(YEAR(G62),Справочники!$C$3:$I$33,7,FALSE) -> 365 | M62: =VLOOKUP(YEAR(G62),Справочники!$C$3:$D$33,2,FALSE) -> 22352.85772 | N62: 2174966.716 | O62: 2174966.716 | P62: 0 | Q62: 20557.90458 | R62: 1794.953138 | S62: 20557.90458 | T62: 0 | U62: 0 | V62: 2173171.763 | W62: 0
F63: 53 | G63: 2021-07-01 | H63: 2021-07-31 | I63: 31 | J63: 6 | K63: 2021-08-02 | L63: =VLOOKUP(YEAR(G63),Справочники!$C$3:$I$33,7,FALSE) -> 365 | M63: =VLOOKUP(YEAR(G63),Справочники!$C$3:$D$33,2,FALSE) -> 22352.85772 | N63: 2173171.763 | O63: 2173171.763 | P63: 0 | Q63: 21225.63654 | R63: 1127.221181 | S63: 21225.63654 | T63: 0 | U63: 0 | V63: 2172044.542 | W63: 0
F64: 54 | G64: 2021-08-01 | H64: 2021-08-31 | I64: 31 | J64: 2 | K64: 2021-08-31 | L64: =VLOOKUP(YEAR(G64),Справочники!$C$3:$I$33,7,FALSE) -> 365 | M64: =VLOOKUP(YEAR(G64),Справочники!$C$3:$D$33,2,FALSE) -> 22352.85772 | N64: 2172044.542 | O64: 2172044.542 | P64: 0 | Q64: 21214.62683 | R64: 1138.230889 | S64: 21214.62683 | T64: 0 | U64: 0 | V64: 2170906.311 | W64: 0
F65: 55 | G65: 2021-09-01 | H65: 2021-09-30 | I65: 30 | J65: 4 | K65: 2021-09-30 | L65: =VLOOKUP(YEAR(G65),Справочники!$C$3:$I$33,7,FALSE) -> 365 | M65: =VLOOKUP(YEAR(G65),Справочники!$C$3:$D$33,2,FALSE) -> 22352.85772 | N65: 2170906.311 | O65: 2170906.311 | P65: 0 | Q65: 20519.52541 | R65: 1833.332311 | S65: 20519.52541 | T65: 0 | U65: 0 | V65: 2169072.979 | W65: 0
F66: 56 | G66: 2021-10-01 | H66: 2021-10-31 | I66: 31 | J66: 7 | K66: 2021-11-01 | L66: =VLOOKUP(YEAR(G66),Справочники!$C$3:$I$33,7,FALSE) -> 365 | M66: =VLOOKUP(YEAR(G66),Справочники!$C$3:$D$33,2,FALSE) -> 22352.85772 | N66: 2169072.979 | O66: 2169072.979 | P66: 0 | Q66: 21185.60321 | R66: 1167.254513 | S66: 21185.60321 | T66: 0 | U66: 0 | V66: 2167905.724 | W66: 0
F67: 57 | G67: 2021-11-01 | H67: 2021-11-30 | I67: 30 | J67: 2 | K67: 2021-11-30 | L67: =VLOOKUP(YEAR(G67),Справочники!$C$3:$I$33,7,FALSE) -> 365 | M67: =VLOOKUP(YEAR(G67),Справочники!$C$3:$D$33,2,FALSE) -> 22352.85772 | N67: 2167905.724 | O67: 2167905.724 | P67: 0 | Q67: 20491.1637 | R67: 1861.694022 | S67: 20491.1637 | T67: 0 | U67: 0 | V67: 2166044.03 | W67: 0
F68: 58 | G68: 2021-12-01 | H68: 2021-12-31 | I68: 31 | J68: 5 | K68: 2021-12-31 | L68: =VLOOKUP(YEAR(G68),Справочники!$C$3:$I$33,7,FALSE) -> 365 | M68: =VLOOKUP(YEAR(G68),Справочники!$C$3:$D$33,2,FALSE) -> 22352.85772 | N68: 2166044.03 | O68: 2166044.03 | P68: 0 | Q68: 21156.01909 | R68: 1196.838627 | S68: 21156.01909 | T68: 0 | U68: 0 | V68: 2164847.192 | W68: 0
F69: 59 | G69: 2022-01-01 | H69: 2022-01-31 | I69: 31 | J69: 1 | K69: 2022-01-31 | L69: =VLOOKUP(YEAR(G69),Справочники!$C$3:$I$33,7,FALSE) -> 365 | M69: =VLOOKUP(YEAR(G69),Справочники!$C$3:$D$33,2,FALSE) -> 23021.34623 | N69: 2164847.192 | O69: 2164847.192 | P69: 0 | Q69: 21144.32942 | R69: 1877.01681 | S69: 21144.32942 | T69: 0 | U69: 0 | V69: 2162970.175 | W69: 0
F70: 60 | G70: 2022-02-01 | H70: 2022-02-28 | I70: 28 | J70: 1 | K70: 2022-02-28 | L70: =VLOOKUP(YEAR(G70),Справочники!$C$3:$I$33,7,FALSE) -> 365 | M70: =VLOOKUP(YEAR(G70),Справочники!$C$3:$D$33,2,FALSE) -> 23021.34623 | N70: 2162970.175 | O70: 2162970.175 | P70: 0 | Q70: 19081.54511 | R70: 3939.801126 | S70: 19081.54511 | T70: 0 | U70: 0 | V70: 2159030.374 | W70: 0
F71: 61 | G71: 2022-03-01 | H71: 2022-03-31 | I71: 31 | J71: 4 | K71: 2022-03-31 | L71: =VLOOKUP(YEAR(G71),Справочники!$C$3:$I$33,7,FALSE) -> 365 | M71: =VLOOKUP(YEAR(G71),Справочники!$C$3:$D$33,2,FALSE) -> 23021.34623 | N71: 2159030.374 | O71: 2159030.374 | P71: 0 | Q71: 21087.51584 | R71: 1933.830388 | S71: 21087.51584 | T71: 0 | U71: 0 | V71: 2157096.543 | W71: 0
F72: 62 | G72: 2022-04-01 | H72: 2022-04-30 | I72: 30 | J72: 6 | K72: 2022-05-02 | L72: =VLOOKUP(YEAR(G72),Справочники!$C$3:$I$33,7,FALSE) -> 365 | M72: =VLOOKUP(YEAR(G72),Справочники!$C$3:$D$33,2,FALSE) -> 23021.34623 | N72: 2157096.543 | O72: 2157096.543 | P72: 0 | Q72: 20388.99473 | R72: 2632.351505 | S72: 20388.99473 | T72: 0 | U72: 0 | V72: 2154464.192 | W72: 0
F73: 63 | G73: 2022-05-01 | H73: 2022-05-31 | I73: 31 | J73: 2 | K73: 2022-05-31 | L73: =VLOOKUP(YEAR(G73),Справочники!$C$3:$I$33,7,FALSE) -> 365 | M73: =VLOOKUP(YEAR(G73),Справочники!$C$3:$D$33,2,FALSE) -> 23021.34623 | N73: 2154464.192 | O73: 2154464.192 | P73: 0 | Q73: 21042.91738 | R73: 1978.428849 | S73: 21042.91738 | T73: 0 | U73: 0 | V73: 2152485.763 | W73: 0
F74: 64 | G74: 2022-06-01 | H74: 2022-06-30 | I74: 30 | J74: 4 | K74: 2022-06-30 | L74: =VLOOKUP(YEAR(G74),Справочники!$C$3:$I$33,7,FALSE) -> 365 | M74: =VLOOKUP(YEAR(G74),Справочники!$C$3:$D$33,2,FALSE) -> 23021.34623 | N74: 2152485.763 | O74: 2152485.763 | P74: 0 | Q74: 20345.41338 | R74: 2675.932854 | S74: 20345.41338 | T74: 0 | U74: 0 | V74: 2149809.83 | W74: 0
F75: 65 | G75: 2022-07-01 | H75: 2022-07-31 | I75: 31 | J75: 7 | K75: 2022-08-01 | L75: =VLOOKUP(YEAR(G75),Справочники!$C$3:$I$33,7,FALSE) -> 365 | M75: =VLOOKUP(YEAR(G75),Справочники!$C$3:$D$33,2,FALSE) -> 23021.34623 | N75: 2149809.83 | O75: 2149809.83 | P75: 0 | Q75: 20997.45766 | R75: 2023.888574 | S75: 20997.45766 | T75: 0 | U75: 0 | V75: =O75-R75 -> 2147785.942 | W75: =P75+U75-T75 -> 0
F76: 66 | G76: 2022-08-01 | H76: =EOMONTH(G76,0) -> 2022-08-31 | I76: =H76-G76+1 -> 31 | J76: =WEEKDAY(H76,11) -> 3 | K76: =WORKDAY(H76,IF(OR(J76=6,J76=7),1,0)) -> 2022-08-31 | L76: =VLOOKUP(YEAR(G76),Справочники!$C$3:$I$33,7,FALSE) -> 365 | M76: =VLOOKUP(YEAR(G76),Справочники!$C$3:$D$33,2,FALSE) -> 23021.34623 | N76: =O76+P76 -> 2147785.942 | O76: 2147785.942 | P76: 0 | Q76: =O76*$D$4/L76*I76 -> 20977.69009 | R76: =MIN(M76-T76-S76,O76) -> 2043.656143 | S76: =MIN(M76-T76,Q76) -> 20977.69009 | T76: =MIN(M76,P76) -> 0 | U76: 0 | V76: 2145742.286 | W76: 0
F77: 67 | G77: =H76+1 -> 2022-09-01 | H77: 2022-09-30 | I77: 30 | J77: 5 | K77: 2022-09-30 | L77: =VLOOKUP(YEAR(G77),Справочники!$C$3:$I$33,7,FALSE) -> 365 | M77: =VLOOKUP(YEAR(G77),Справочники!$C$3:$D$33,2,FALSE) -> 23021.34623 | N77: 2145742.286 | O77: =V76 -> 2145742.286 | P77: 0 | Q77: 20281.67366 | R77: 2739.672573 | S77: 20281.67366 | T77: 0 | U77: =MAX(Q77-S77,0) -> 0 | V77: 2143002.613 | W77: 0
F78: 68 | G78: 2022-10-01 | H78: 2022-10-31 | I78: 31 | J78: 1 | K78: 2022-10-31 | L78: =VLOOKUP(YEAR(G78),Справочники!$C$3:$I$33,7,FALSE) -> 365 | M78: =VLOOKUP(YEAR(G78),Справочники!$C$3:$D$33,2,FALSE) -> 23021.34623 | N78: 2143002.613 | O78: 2143002.613 | P78: 0 | Q78: 20930.97073 | R78: 2090.375505 | S78: 20930.97073 | T78: 0 | U78: 0 | V78: 2140912.237 | W78: 0
F79: 69 | G79: 2022-11-01 | H79: 2022-11-30 | I79: 30 | J79: 3 | K79: 2022-11-30 | L79: =VLOOKUP(YEAR(G79),Справочники!$C$3:$I$33,7,FALSE) -> 365 | M79: =VLOOKUP(YEAR(G79),Справочники!$C$3:$D$33,2,FALSE) -> 23021.34623 | N79: 2140912.237 | O79: 2140912.237 | P79: 0 | Q79: 20236.01978 | R79: 2785.326452 | S79: 20236.01978 | T79: 0 | U79: 0 | V79: 2138126.911 | W79: 0
F80: 70 | G80: 2022-12-01 | H80: 2022-12-31 | I80: 31 | J80: 6 | K80: 2023-01-02 | L80: =VLOOKUP(YEAR(G80),Справочники!$C$3:$I$33,7,FALSE) -> 365 | M80: =VLOOKUP(YEAR(G80),Справочники!$C$3:$D$33,2,FALSE) -> 23021.34623 | N80: 2138126.911 | O80: 2138126.911 | P80: 0 | Q80: 20883.34914 | R80: 2137.997087 | S80: 20883.34914 | T80: 0 | U80: 0 | V80: 2135988.914 | W80: 0
F81: 71 | G81: 2023-01-01 | H81: 2023-01-31 | I81: 31 | J81: 2 | K81: 2023-01-31 | L81: =VLOOKUP(YEAR(G81),Справочники!$C$3:$I$33,7,FALSE) -> 365 | M81: =VLOOKUP(YEAR(G81),Справочники!$C$3:$D$33,2,FALSE) -> 23663.61951 | N81: 2135988.914 | O81: 2135988.914 | P81: 0 | Q81: 20862.46706 | R81: 2801.152445 | S81: 20862.46706 | T81: 0 | U81: 0 | V81: 2133187.761 | W81: 0
F82: 72 | G82: 2023-02-01 | H82: 2023-02-28 | I82: 28 | J82: 2 | K82: 2023-02-28 | L82: =VLOOKUP(YEAR(G82),Справочники!$C$3:$I$33,7,FALSE) -> 365 | M82: =VLOOKUP(YEAR(G82),Справочники!$C$3:$D$33,2,FALSE) -> 23663.61951 | N82: 2133187.761 | O82: 2133187.761 | P82: 0 | Q82: 18818.8071 | R82: 4844.812407 | S82: 18818.8071 | T82: 0 | U82: 0 | V82: 2128342.949 | W82: 0
F83: 73 | G83: 2023-03-01 | H83: 2023-03-31 | I83: 31 | J83: 5 | K83: 2023-03-31 | L83: =VLOOKUP(YEAR(G83),Справочники!$C$3:$I$33,7,FALSE) -> 365 | M83: =VLOOKUP(YEAR(G83),Справочники!$C$3:$D$33,2,FALSE) -> 23663.61951 | N83: 2128342.949 | O83: 2128342.949 | P83: 0 | Q83: 20787.78798 | R83: 2875.831526 | S83: 20787.78798 | T83: 0 | U83: 0 | V83: 2125467.118 | W83: 0
F84: 74 | G84: 2023-04-01 | H84: 2023-04-30 | I84: 30 | J84: 7 | K84: 2023-05-01 | L84: =VLOOKUP(YEAR(G84),Справочники!$C$3:$I$33,7,FALSE) -> 365 | M84: =VLOOKUP(YEAR(G84),Справочники!$C$3:$D$33,2,FALSE) -> 23663.61951 | N84: 2125467.118 | O84: 2125467.118 | P84: 0 | Q84: 20090.03166 | R84: 3573.587849 | S84: 20090.03166 | T84: 0 | U84: 0 | V84: 2121893.53 | W84: 0
F85: 75 | G85: 2023-05-01 | H85: 2023-05-31 | I85: 31 | J85: 3 | K85: 2023-05-31 | L85: =VLOOKUP(YEAR(G85),Справочники!$C$3:$I$33,7,FALSE) -> 365 | M85: =VLOOKUP(YEAR(G85),Справочники!$C$3:$D$33,2,FALSE) -> 23663.61951 | N85: 2121893.53 | O85: 2121893.53 | P85: 0 | Q85: 20724.79571 | R85: 2938.8238 | S85: 20724.79571 | T85: 0 | U85: 0 | V85: 2118954.706 | W85: 0
F86: 76 | G86: 2023-06-01 | H86: 2023-06-30 | I86: 30 | J86: 5 | K86: 2023-06-30 | L86: =VLOOKUP(YEAR(G86),Справочники!$C$3:$I$33,7,FALSE) -> 365 | M86: =VLOOKUP(YEAR(G86),Справочники!$C$3:$D$33,2,FALSE) -> 23663.61951 | N86: 2118954.706 | O86: 2118954.706 | P86: 0 | Q86: 20028.47599 | R86: 3635.143521 | S86: 20028.47599 | T86: 0 | U86: 0 | V86: 2115319.562 | W86: 0
F87: 77 | G87: 2023-07-01 | H87: 2023-07-31 | I87: 31 | J87: 1 | K87: 2023-07-31 | L87: =VLOOKUP(YEAR(G87),Справочники!$C$3:$I$33,7,FALSE) -> 365 | M87: =VLOOKUP(YEAR(G87),Справочники!$C$3:$D$33,2,FALSE) -> 23663.61951 | N87: 2115319.562 | O87: 2115319.562 | P87: 0 | Q87: 20660.58696 | R87: 3003.03255 | S87: 20660.58696 | T87: 0 | U87: 0 | V87: 2112316.53 | W87: 0
F88: 78 | G88: 2023-08-01 | H88: 2023-08-31 | I88: 31 | J88: 4 | K88: 2023-08-31 | L88: =VLOOKUP(YEAR(G88),Справочники!$C$3:$I$33,7,FALSE) -> 365 | M88: =VLOOKUP(YEAR(G88),Справочники!$C$3:$D$33,2,FALSE) -> 23663.61951 | N88: 2112316.53 | O88: 2112316.53 | P88: 0 | Q88: 20631.25597 | R88: 3032.363539 | S88: 20631.25597 | T88: 0 | U88: 0 | V88: 2109284.166 | W88: 0
F89: 79 | G89: 2023-09-01 | H89: 2023-09-30 | I89: 30 | J89: 6 | K89: 2023-10-02 | L89: =VLOOKUP(YEAR(G89),Справочники!$C$3:$I$33,7,FALSE) -> 365 | M89: =VLOOKUP(YEAR(G89),Справочники!$C$3:$D$33,2,FALSE) -> 23663.61951 | N89: 2109284.166 | O89: 2109284.166 | P89: 0 | Q89: 19937.06952 | R89: 3726.549991 | S89: 19937.06952 | T89: 0 | U89: 0 | V89: 2105557.616 | W89: 0
F90: 80 | G90: 2023-10-01 | H90: 2023-10-31 | I90: 31 | J90: 2 | K90: 2023-10-31 | L90: =VLOOKUP(YEAR(G90),Справочники!$C$3:$I$33,7,FALSE) -> 365 | M90: =VLOOKUP(YEAR(G90),Справочники!$C$3:$D$33,2,FALSE) -> 23663.61951 | N90: 2105557.616 | O90: 2105557.616 | P90: 0 | Q90: 20565.24083 | R90: 3098.37868 | S90: 20565.24083 | T90: 0 | U90: 0 | V90: 2102459.238 | W90: 0
F91: 81 | G91: 2023-11-01 | H91: 2023-11-30 | I91: 30 | J91: 4 | K91: 2023-11-30 | L91: =VLOOKUP(YEAR(G91),Справочники!$C$3:$I$33,7,FALSE) -> 365 | M91: =VLOOKUP(YEAR(G91),Справочники!$C$3:$D$33,2,FALSE) -> 23663.61951 | N91: 2102459.238 | O91: 2102459.238 | P91: 0 | Q91: 19872.55992 | R91: 3791.059591 | S91: 19872.55992 | T91: 0 | U91: 0 | V91: 2098668.178 | W91: 0
F92: 82 | G92: 2023-12-01 | H92: 2023-12-31 | I92: 31 | J92: 7 | K92: 2024-01-01 | L92: =VLOOKUP(YEAR(G92),Справочники!$C$3:$I$33,7,FALSE) -> 365 | M92: =VLOOKUP(YEAR(G92),Справочники!$C$3:$D$33,2,FALSE) -> 23663.61951 | N92: 2098668.178 | O92: 2098668.178 | P92: 0 | Q92: 20497.95083 | R92: 3165.668673 | S92: 20497.95083 | T92: 0 | U92: 0 | V92: 2095502.509 | W92: 0
F93: 83 | G93: 2024-01-01 | H93: 2024-01-31 | I93: 31 | J93: 3 | K93: 2024-01-31 | L93: =VLOOKUP(YEAR(G93),Справочники!$C$3:$I$33,7,FALSE) -> 366 | M93: =VLOOKUP(YEAR(G93),Справочники!$C$3:$D$33,2,FALSE) -> 24301.52358 | N93: 2095502.509 | O93: 2095502.509 | P93: 0 | Q93: 20411.11051 | R93: 3890.413071 | S93: 20411.11051 | T93: 0 | U93: 0 | V93: 2091612.096 | W93: 0
F94: 84 | G94: 2024-02-01 | H94: 2024-02-29 | I94: 29 | J94: 4 | K94: 2024-02-29 | L94: =VLOOKUP(YEAR(G94),Справочники!$C$3:$I$33,7,FALSE) -> 366 | M94: =VLOOKUP(YEAR(G94),Справочники!$C$3:$D$33,2,FALSE) -> 24301.52358 | N94: 2091612.096 | O94: 2091612.096 | P94: 0 | Q94: 19058.81514 | R94: 5242.708439 | S94: 19058.81514 | T94: 0 | U94: 0 | V94: 2086369.388 | W94: 0
F95: 85 | G95: 2024-03-01 | H95: 2024-03-31 | I95: 31 | J95: 7 | K95: 2024-04-01 | L95: =VLOOKUP(YEAR(G95),Справочники!$C$3:$I$33,7,FALSE) -> 366 | M95: =VLOOKUP(YEAR(G95),Справочники!$C$3:$D$33,2,FALSE) -> 24301.52358 | N95: 2086369.388 | O95: 2086369.388 | P95: 0 | Q95: 20322.14991 | R95: 3979.373667 | S95: 20322.14991 | T95: 0 | U95: 0 | V95: 2082390.014 | W95: 0
F96: 86 | G96: 2024-04-01 | H96: 2024-04-30 | I96: 30 | J96: 2 | K96: 2024-04-30 | L96: =VLOOKUP(YEAR(G96),Справочники!$C$3:$I$33,7,FALSE) -> 366 | M96: =VLOOKUP(YEAR(G96),Справочники!$C$3:$D$33,2,FALSE) -> 24301.52358 | N96: 2082390.014 | O96: 2082390.014 | P96: 0 | Q96: 19629.0862 | R96: 4672.43738 | S96: 19629.0862 | T96: 0 | U96: 0 | V96: 2077717.577 | W96: 0
F97: 87 | G97: 2024-05-01 | H97: 2024-05-31 | I97: 31 | J97: 5 | K97: 2024-05-31 | L97: =VLOOKUP(YEAR(G97),Справочники!$C$3:$I$33,7,FALSE) -> 366 | M97: =VLOOKUP(YEAR(G97),Справочники!$C$3:$D$33,2,FALSE) -> 24301.52358 | N97: 2077717.577 | O97: 2077717.577 | P97: 0 | Q97: 20237.87749 | R97: 4063.646089 | S97: 20237.87749 | T97: 0 | U97: 0 | V97: 2073653.931 | W97: 0
F98: 88 | G98: 2024-06-01 | H98: 2024-06-30 | I98: 30 | J98: 7 | K98: 2024-07-01 | L98: =VLOOKUP(YEAR(G98),Справочники!$C$3:$I$33,7,FALSE) -> 366 | M98: =VLOOKUP(YEAR(G98),Справочники!$C$3:$D$33,2,FALSE) -> 24301.52358 | N98: 2073653.931 | O98: 2073653.931 | P98: 0 | Q98: 19546.73787 | R98: 4754.785708 | S98: 19546.73787 | T98: 0 | U98: 0 | V98: 2068899.145 | W98: 0
F99: 89 | G99: 2024-07-01 | H99: 2024-07-31 | I99: 31 | J99: 3 | K99: 2024-07-31 | L99: =VLOOKUP(YEAR(G99),Справочники!$C$3:$I$33,7,FALSE) -> 366 | M99: =VLOOKUP(YEAR(G99),Справочники!$C$3:$D$33,2,FALSE) -> 24301.52358 | N99: 2068899.145 | O99: 2068899.145 | P99: 0 | Q99: 20151.98211 | R99: 4149.54147 | S99: 20151.98211 | T99: 0 | U99: 0 | V99: 2064749.604 | W99: 0
F100: 90 | G100: 2024-08-01 | H100: 2024-08-31 | I100: 31 | J100: 6 | K100: 2024-09-02 | L100: =VLOOKUP(YEAR(G100),Справочники!$C$3:$I$33,7,FALSE) -> 366 | M100: =VLOOKUP(YEAR(G100),Справочники!$C$3:$D$33,2,FALSE) -> 24301.52358 | N100: 2064749.604 | O100: 2064749.604 | P100: 0 | Q100: 20111.56376 | R100: 4189.959818 | S100: 20111.56376 | T100: 0 | U100: 0 | V100: 2060559.644 | W100: 0
F101: 91 | G101: 2024-09-01 | H101: 2024-09-30 | I101: 30 | J101: 1 | K101: 2024-09-30 | L101: =VLOOKUP(YEAR(G101),Справочники!$C$3:$I$33,7,FALSE) -> 366 | M101: =VLOOKUP(YEAR(G101),Справочники!$C$3:$D$33,2,FALSE) -> 24301.52358 | N101: 2060559.644 | O101: 2060559.644 | P101: 0 | Q101: 19423.30812 | R101: 4878.215462 | S101: 19423.30812 | T101: 0 | U101: 0 | V101: 2055681.428 | W101: 0
F102: 92 | G102: 2024-10-01 | H102: 2024-10-31 | I102: 31 | J102: 4 | K102: 2024-10-31 | L102: =VLOOKUP(YEAR(G102),Справочники!$C$3:$I$33,7,FALSE) -> 366 | M102: =VLOOKUP(YEAR(G102),Справочники!$C$3:$D$33,2,FALSE) -> 24301.52358 | N102: 2055681.428 | O102: 2055681.428 | P102: 0 | Q102: 20023.23577 | R102: 4278.287809 | S102: 20023.23577 | T102: 0 | U102: 0 | V102: 2051403.14 | W102: 0
F103: 93 | G103: 2024-11-01 | H103: 2024-11-30 | I103: 30 | J103: 6 | K103: 2024-12-02 | L103: =VLOOKUP(YEAR(G103),Справочники!$C$3:$I$33,7,FALSE) -> 366 | M103: =VLOOKUP(YEAR(G103),Справочники!$C$3:$D$33,2,FALSE) -> 24301.52358 | N103: 2051403.14 | O103: 2051403.14 | P103: 0 | Q103: 19336.99682 | R103: 4964.526763 | S103: 19336.99682 | T103: 0 | U103: 0 | V103: 2046438.614 | W103: 0
F104: 94 | G104: 2024-12-01 | H104: 2024-12-31 | I104: 31 | J104: 2 | K104: 2024-12-31 | L104: =VLOOKUP(YEAR(G104),Справочники!$C$3:$I$33,7,FALSE) -> 366 | M104: =VLOOKUP(YEAR(G104),Справочники!$C$3:$D$33,2,FALSE) -> 24301.52358 | N104: 2046438.614 | O104: 2046438.614 | P104: 0 | Q104: 19933.20672 | R104: 4368.316864 | S104: 19933.20672 | T104: 0 | U104: 0 | V104: 2042070.297 | W104: 0
F105: 95 | G105: 2025-01-01 | H105: 2025-01-31 | I105: 31 | J105: 5 | K105: 2025-01-31 | L105: =VLOOKUP(YEAR(G105),Справочники!$C$3:$I$33,7,FALSE) -> 365 | M105: =VLOOKUP(YEAR(G105),Справочники!$C$3:$D$33,2,FALSE) -> 24834.56671 | N105: 2042070.297 | O105: 2042070.297 | P105: 0 | Q105: 19945.15235 | R105: 4889.414356 | S105: 19945.15235 | T105: 0 | U105: 0 | V105: 2037180.882 | W105: 0
F106: 96 | G106: 2025-02-01 | H106: 2025-02-28 | I106: 28 | J106: 5 | K106: 2025-02-28 | L106: =VLOOKUP(YEAR(G106),Справочники!$C$3:$I$33,7,FALSE) -> 365 | M106: =VLOOKUP(YEAR(G106),Справочники!$C$3:$D$33,2,FALSE) -> 24834.56671 | N106: 2037180.882 | O106: 2037180.882 | P106: 0 | Q106: 17971.84231 | R106: 6862.724401 | S106: 17971.84231 | T106: 0 | U106: 0 | V106: 2030318.158 | W106: 0
F107: 97 | G107: 2025-03-01 | H107: 2025-03-31 | I107: 31 | J107: 1 | K107: 2025-03-31 | L107: =VLOOKUP(YEAR(G107),Справочники!$C$3:$I$33,7,FALSE) -> 365 | M107: =VLOOKUP(YEAR(G107),Справочники!$C$3:$D$33,2,FALSE) -> 24834.56671 | N107: 2030318.158 | O107: 2030318.158 | P107: 0 | Q107: 19830.36776 | R107: 5004.198944 | S107: 19830.36776 | T107: 0 | U107: 0 | V107: =O107-R107 -> 2025313.959 | W107: =P107+U107-T107 -> 0
F108: 98 | G108: 2025-04-01 | H108: 2025-04-30 | I108: 30 | J108: 3 | K108: 2025-04-30 | L108: =VLOOKUP(YEAR(G108),Справочники!$C$3:$I$33,7,FALSE) -> 365 | M108: =VLOOKUP(YEAR(G108),Справочники!$C$3:$D$33,2,FALSE) -> 24834.56671 | N108: 2025313.959 | O108: 2025313.959 | P108: 0 | Q108: 19143.37852 | R108: 5691.188189 | S108: 19143.37852 | T108: 0 | U108: 0 | V108: 2019622.771 | W108: 0
F109: 99 | G109: 2025-05-01 | H109: 2025-05-31 | I109: 31 | J109: 6 | K109: 2025-06-02 | L109: =VLOOKUP(YEAR(G109),Справочники!$C$3:$I$33,7,FALSE) -> 365 | M109: =VLOOKUP(YEAR(G109),Справочники!$C$3:$D$33,2,FALSE) -> 24834.56671 | N109: 2019622.771 | O109: 2019622.771 | P109: 0 | Q109: 19725.9046 | R109: 5108.662109 | S109: 19725.9046 | T109: 0 | U109: 0 | V109: 2014514.109 | W109: 0
F110: 100 | G110: 2025-06-01 | H110: 2025-06-30 | I110: 30 | J110: 1 | K110: 2025-06-30 | L110: =VLOOKUP(YEAR(G110),Справочники!$C$3:$I$33,7,FALSE) -> 365 | M110: =VLOOKUP(YEAR(G110),Справочники!$C$3:$D$33,2,FALSE) -> 24834.56671 | N110: 2014514.109 | O110: 2014514.109 | P110: 0 | Q110: 19041.29774 | R110: 5793.268966 | S110: 19041.29774 | T110: 0 | U110: 0 | V110: 2008720.84 | W110: 0
F111: 101 | G111: 2025-07-01 | H111: 2025-07-31 | I111: 31 | J111: 4 | K111: 2025-07-31 | L111: =VLOOKUP(YEAR(G111),Справочники!$C$3:$I$33,7,FALSE) -> 365 | M111: =VLOOKUP(YEAR(G111),Справочники!$C$3:$D$33,2,FALSE) -> 24834.56671 | N111: 2008720.84 | O111: 2008720.84 | P111: 0 | Q111: 19619.42409 | R111: 5215.142613 | S111: 19619.42409 | T111: 0 | U111: 0 | V111: 2003505.697 | W111: 0
F112: 102 | G112: 2025-08-01 | H112: 2025-08-31 | I112: 31 | J112: 7 | K112: 2025-09-01 | L112: =VLOOKUP(YEAR(G112),Справочники!$C$3:$I$33,7,FALSE) -> 365 | M112: =VLOOKUP(YEAR(G112),Справочники!$C$3:$D$33,2,FALSE) -> 24834.56671 | N112: 2003505.697 | O112: 2003505.697 | P112: 0 | Q112: 19568.48715 | R112: 5266.079554 | S112: 19568.48715 | T112: 0 | U112: 0 | V112: 1998239.618 | W112: 0
F113: 103 | G113: 2025-09-01 | H113: 2025-09-30 | I113: 30 | J113: 2 | K113: 2025-09-30 | L113: =VLOOKUP(YEAR(G113),Справочники!$C$3:$I$33,7,FALSE) -> 365 | M113: =VLOOKUP(YEAR(G113),Справочники!$C$3:$D$33,2,FALSE) -> 24834.56671 | N113: 1998239.618 | O113: 1998239.618 | P113: 0 | Q113: 18887.47036 | R113: 5947.096348 | S113: 18887.47036 | T113: 0 | U113: 0 | V113: 1992292.521 | W113: 0
F114: 104 | G114: 2025-10-01 | H114: 2025-10-31 | I114: 31 | J114: 5 | K114: 2025-10-31 | L114: =VLOOKUP(YEAR(G114),Справочники!$C$3:$I$33,7,FALSE) -> 365 | M114: =VLOOKUP(YEAR(G114),Справочники!$C$3:$D$33,2,FALSE) -> 24834.56671 | N114: 1992292.521 | O114: 1992292.521 | P114: 0 | Q114: 19458.96668 | R114: 5375.600026 | S114: 19458.96668 | T114: 0 | U114: 0 | V114: 1986916.921 | W114: 0
F115: 105 | G115: 2025-11-01 | H115: 2025-11-30 | I115: 30 | J115: 7 | K115: 2025-12-01 | L115: =VLOOKUP(YEAR(G115),Справочники!$C$3:$I$33,7,FALSE) -> 365 | M115: =VLOOKUP(YEAR(G115),Справочники!$C$3:$D$33,2,FALSE) -> 24834.56671 | N115: 1986916.921 | O115: 1986916.921 | P115: 0 | Q115: 18780.44761 | R115: 6054.119094 | S115: 18780.44761 | T115: 0 | U115: 0 | V115: 1980862.802 | W115: 0
F116: 106 | G116: 2025-12-01 | H116: 2025-12-31 | I116: 31 | J116: 3 | K116: 2025-12-31 | L116: =VLOOKUP(YEAR(G116),Справочники!$C$3:$I$33,7,FALSE) -> 365 | M116: =VLOOKUP(YEAR(G116),Справочники!$C$3:$D$33,2,FALSE) -> 24834.56671 | N116: 1980862.802 | O116: 1980862.802 | P116: 0 | Q116: 19347.33121 | R116: 5487.235502 | S116: 19347.33121 | T116: 0 | U116: 0 | V116: 1975375.567 | W116: 0
F117: 107 | G117: 2026-01-01 | H117: 2026-01-31 | I117: 31 | J117: 6 | K117: 2026-02-02 | L117: =VLOOKUP(YEAR(G117),Справочники!$C$3:$I$33,7,FALSE) -> 365 | M117: =VLOOKUP(YEAR(G117),Справочники!$C$3:$D$33,2,FALSE) -> 25354.50222 | N117: 1975375.567 | O117: 1975375.567 | P117: 0 | Q117: 19293.7367 | R117: 6060.765517 | S117: 19293.7367 | T117: 0 | U117: 0 | V117: 1969314.801 | W117: 0
F118: 108 | G118: 2026-02-01 | H118: 2026-02-28 | I118: 28 | J118: 6 | K118: 2026-03-02 | L118: =VLOOKUP(YEAR(G118),Справочники!$C$3:$I$33,7,FALSE) -> 365 | M118: =VLOOKUP(YEAR(G118),Справочники!$C$3:$D$33,2,FALSE) -> 25354.50222 | N118: 1969314.801 | O118: 1969314.801 | P118: 0 | Q118: 17373.13331 | R118: 7981.368902 | S118: 17373.13331 | T118: 0 | U118: 0 | V118: 1961333.432 | W118: 0
F119: 109 | G119: 2026-03-01 | H119: 2026-03-31 | I119: 31 | J119: 2 | K119: 2026-03-31 | L119: =VLOOKUP(YEAR(G119),Справочники!$C$3:$I$33,7,FALSE) -> 365 | M119: =VLOOKUP(YEAR(G119),Справочники!$C$3:$D$33,2,FALSE) -> 25354.50222 | N119: 1961333.432 | O119: 1961333.432 | P119: 0 | Q119: 19156.58544 | R119: 6197.916775 | S119: 19156.58544 | T119: 0 | U119: 0 | V119: 1955135.516 | W119: 0
F120: 110 | G120: 2026-04-01 | H120: 2026-04-30 | I120: 30 | J120: 4 | K120: 2026-04-30 | L120: =VLOOKUP(YEAR(G120),Справочники!$C$3:$I$33,7,FALSE) -> 365 | M120: =VLOOKUP(YEAR(G120),Справочники!$C$3:$D$33,2,FALSE) -> 25354.50222 | N120: 1955135.516 | O120: 1955135.516 | P120: 0 | Q120: 18480.04802 | R120: 6874.454193 | S120: 18480.04802 | T120: 0 | U120: 0 | V120: 1948261.061 | W120: 0
F121: 111 | G121: 2026-05-01 | H121: 2026-05-31 | I121: 31 | J121: 7 | K121: 2026-06-01 | L121: =VLOOKUP(YEAR(G121),Справочники!$C$3:$I$33,7,FALSE) -> 365 | M121: =VLOOKUP(YEAR(G121),Справочники!$C$3:$D$33,2,FALSE) -> 25354.50222 | N121: 1948261.061 | O121: 1948261.061 | P121: 0 | Q121: 19028.90598 | R121: 6325.596234 | S121: 19028.90598 | T121: 0 | U121: 0 | V121: 1941935.465 | W121: 0
F122: 112 | G122: 2026-06-01 | H122: 2026-06-30 | I122: 30 | J122: 2 | K122: 2026-06-30 | L122: =VLOOKUP(YEAR(G122),Справочники!$C$3:$I$33,7,FALSE) -> 365 | M122: =VLOOKUP(YEAR(G122),Справочники!$C$3:$D$33,2,FALSE) -> 25354.50222 | N122: 1941935.465 | O122: 1941935.465 | P122: 0 | Q122: 18355.28042 | R122: 6999.221793 | S122: 18355.28042 | T122: 0 | U122: 0 | V122: 1934936.243 | W122: 0
F123: 113 | G123: 2026-07-01 | H123: 2026-07-31 | I123: 31 | J123: 5 | K123: 2026-07-31 | L123: =VLOOKUP(YEAR(G123),Справочники!$C$3:$I$33,7,FALSE) -> 365 | M123: =VLOOKUP(YEAR(G123),Справочники!$C$3:$D$33,2,FALSE) -> 25354.50222 | N123: 1934936.243 | O123: 1934936.243 | P123: 0 | Q123: 18898.76084 | R123: 6455.741375 | S123: 18898.76084 | T123: 0 | U123: 0 | V123: 1928480.502 | W123: 0
F124: 114 | G124: 2026-08-01 | H124: 2026-08-31 | I124: 31 | J124: 1 | K124: 2026-08-31 | L124: =VLOOKUP(YEAR(G124),Справочники!$C$3:$I$33,7,FALSE) -> 365 | M124: =VLOOKUP(YEAR(G124),Справочники!$C$3:$D$33,2,FALSE) -> 25354.50222 | N124: 1928480.502 | O124: 1928480.502 | P124: 0 | Q124: 18835.70682 | R124: 6518.795397 | S124: 18835.70682 | T124: 0 | U124: 0 | V124: 1921961.707 | W124: 0
F125: 115 | G125: 2026-09-01 | H125: 2026-09-30 | I125: 30 | J125: 3 | K125: 2026-09-30 | L125: =VLOOKUP(YEAR(G125),Справочники!$C$3:$I$33,7,FALSE) -> 365 | M125: =VLOOKUP(YEAR(G125),Справочники!$C$3:$D$33,2,FALSE) -> 25354.50222 | N125: 1921961.707 | O125: 1921961.707 | P125: 0 | Q125: 18166.48736 | R125: 7188.014854 | S125: 18166.48736 | T125: 0 | U125: 0 | V125: 1914773.692 | W125: 0
F126: 116 | G126: 2026-10-01 | H126: 2026-10-31 | I126: 31 | J126: 6 | K126: 2026-11-02 | L126: =VLOOKUP(YEAR(G126),Справочники!$C$3:$I$33,7,FALSE) -> 365 | M126: =VLOOKUP(YEAR(G126),Справочники!$C$3:$D$33,2,FALSE) -> 25354.50222 | N126: 1914773.692 | O126: 1914773.692 | P126: 0 | Q126: 18701.83071 | R126: 6652.671502 | S126: 18701.83071 | T126: 0 | U126: 0 | V126: 1908121.02 | W126: 0
F127: 117 | G127: 2026-11-01 | H127: 2026-11-30 | I127: 30 | J127: 1 | K127: 2026-11-30 | L127: =VLOOKUP(YEAR(G127),Справочники!$C$3:$I$33,7,FALSE) -> 365 | M127: =VLOOKUP(YEAR(G127),Справочники!$C$3:$D$33,2,FALSE) -> 25354.50222 | N127: 1908121.02 | O127: 1908121.02 | P127: 0 | Q127: 18035.66444 | R127: 7318.837779 | S127: 18035.66444 | T127: 0 | U127: 0 | V127: 1900802.182 | W127: 0
F128: 118 | G128: 2026-12-01 | H128: 2026-12-31 | I128: 31 | J128: 4 | K128: 2026-12-31 | L128: =VLOOKUP(YEAR(G128),Справочники!$C$3:$I$33,7,FALSE) -> 365 | M128: =VLOOKUP(YEAR(G128),Справочники!$C$3:$D$33,2,FALSE) -> 25354.50222 | N128: 1900802.182 | O128: 1900802.182 | P128: 0 | Q128: 18565.36926 | R128: 6789.132956 | S128: 18565.36926 | T128: 0 | U128: 0 | V128: 1894013.049 | W128: 0
F129: 119 | G129: 2027-01-01 | H129: 2027-01-31 | I129: 31 | J129: 7 | K129: 2027-02-01 | L129: =VLOOKUP(YEAR(G129),Справочники!$C$3:$I$33,7,FALSE) -> 365 | M129: =VLOOKUP(YEAR(G129),Справочники!$C$3:$D$33,2,FALSE) -> 25887.54534 | N129: 1894013.049 | O129: 1894013.049 | P129: 0 | Q129: 18499.05896 | R129: 7388.486382 | S129: 18499.05896 | T129: 0 | U129: 0 | V129: 1886624.563 | W129: 0
F130: 120 | G130: 2027-02-01 | H130: 2027-02-28 | I130: 28 | J130: 7 | K130: 2027-03-01 | L130: =VLOOKUP(YEAR(G130),Справочники!$C$3:$I$33,7,FALSE) -> 365 | M130: =VLOOKUP(YEAR(G130),Справочники!$C$3:$D$33,2,FALSE) -> 25887.54534 | N130: 1886624.563 | O130: 1886624.563 | P130: 0 | Q130: 16643.64683 | R130: 9243.898514 | S130: 16643.64683 | T130: 0 | U130: 0 | V130: 1877380.665 | W130: 0
F131: 121 | G131: 2027-03-01 | H131: 2027-03-31 | I131: 31 | J131: 3 | K131: 2027-03-31 | L131: =VLOOKUP(YEAR(G131),Справочники!$C$3:$I$33,7,FALSE) -> 365 | M131: =VLOOKUP(YEAR(G131),Справочники!$C$3:$D$33,2,FALSE) -> 25887.54534 | N131: 1877380.665 | O131: 1877380.665 | P131: 0 | Q131: 18336.60841 | R131: 7550.936936 | S131: 18336.60841 | T131: 0 | U131: 0 | V131: 1869829.728 | W131: 0
F132: 122 | G132: 2027-04-01 | H132: 2027-04-30 | I132: 30 | J132: 5 | K132: 2027-04-30 | L132: =VLOOKUP(YEAR(G132),Справочники!$C$3:$I$33,7,FALSE) -> 365 | M132: =VLOOKUP(YEAR(G132),Справочники!$C$3:$D$33,2,FALSE) -> 25887.54534 | N132: 1869829.728 | O132: 1869829.728 | P132: 0 | Q132: 17673.73304 | R132: 8213.812303 | S132: 17673.73304 | T132: 0 | U132: 0 | V132: 1861615.915 | W132: 0
F133: 123 | G133: 2027-05-01 | H133: 2027-05-31 | I133: 31 | J133: 1 | K133: 2027-05-31 | L133: =VLOOKUP(YEAR(G133),Справочники!$C$3:$I$33,7,FALSE) -> 365 | M133: =VLOOKUP(YEAR(G133),Справочники!$C$3:$D$33,2,FALSE) -> 25887.54534 | N133: 1861615.915 | O133: 1861615.915 | P133: 0 | Q133: 18182.63216 | R133: 7704.913185 | S133: 18182.63216 | T133: 0 | U133: 0 | V133: 1853911.002 | W133: 0
F134: 124 | G134: 2027-06-01 | H134: 2027-06-30 | I134: 30 | J134: 3 | K134: 2027-06-30 | L134: =VLOOKUP(YEAR(G134),Справочники!$C$3:$I$33,7,FALSE) -> 365 | M134: =VLOOKUP(YEAR(G134),Справочники!$C$3:$D$33,2,FALSE) -> 25887.54534 | N134: 1853911.002 | O134: 1853911.002 | P134: 0 | Q134: 17523.26838 | R134: 8364.276968 | S134: 17523.26838 | T134: 0 | U134: 0 | V134: 1845546.725 | W134: 0
F135: 125 | G135: 2027-07-01 | H135: 2027-07-31 | I135: 31 | J135: 6 | K135: 2027-08-02 | L135: =VLOOKUP(YEAR(G135),Справочники!$C$3:$I$33,7,FALSE) -> 365 | M135: =VLOOKUP(YEAR(G135),Справочники!$C$3:$D$33,2,FALSE) -> 25887.54534 | N135: 1845546.725 | O135: 1845546.725 | P135: 0 | Q135: 18025.6824 | R135: 7861.862947 | S135: 18025.6824 | T135: 0 | U135: 0 | V135: 1837684.862 | W135: 0
F136: 126 | G136: 2027-08-01 | H136: 2027-08-31 | I136: 31 | J136: 2 | K136: 2027-08-31 | L136: =VLOOKUP(YEAR(G136),Справочники!$C$3:$I$33,7,FALSE) -> 365 | M136: =VLOOKUP(YEAR(G136),Справочники!$C$3:$D$33,2,FALSE) -> 25887.54534 | N136: 1837684.862 | O136: 1837684.862 | P136: 0 | Q136: 17948.89461 | R136: 7938.650731 | S136: 17948.89461 | T136: 0 | U136: 0 | V136: 1829746.211 | W136: 0
F137: 127 | G137: 2027-09-01 | H137: 2027-09-30 | I137: 30 | J137: 4 | K137: 2027-09-30 | L137: =VLOOKUP(YEAR(G137),Справочники!$C$3:$I$33,7,FALSE) -> 365 | M137: =VLOOKUP(YEAR(G137),Справочники!$C$3:$D$33,2,FALSE) -> 25887.54534 | N137: 1829746.211 | O137: 1829746.211 | P137: 0 | Q137: 17294.86145 | R137: 8592.683894 | S137: 17294.86145 | T137: 0 | U137: 0 | V137: 1821153.528 | W137: 0
F138: 128 | G138: 2027-10-01 | H138: 2027-10-31 | I138: 31 | J138: 7 | K138: 2027-11-01 | L138: =VLOOKUP(YEAR(G138),Справочники!$C$3:$I$33,7,FALSE) -> 365 | M138: =VLOOKUP(YEAR(G138),Справочники!$C$3:$D$33,2,FALSE) -> 25887.54534 | N138: 1821153.528 | O138: 1821153.528 | P138: 0 | Q138: 17787.43103 | R138: 8100.114315 | S138: 17787.43103 | T138: 0 | U138: 0 | V138: 1813053.413 | W138: 0
F139: 129 | G139: 2027-11-01 | H139: 2027-11-30 | I139: 30 | J139: 2 | K139: 2027-11-30 | L139: =VLOOKUP(YEAR(G139),Справочники!$C$3:$I$33,7,FALSE) -> 365 | M139: =VLOOKUP(YEAR(G139),Справочники!$C$3:$D$33,2,FALSE) -> 25887.54534 | N139: 1813053.413 | O139: 1813053.413 | P139: 0 | Q139: 17137.08021 | R139: 8750.465137 | S139: 17137.08021 | T139: 0 | U139: 0 | V139: =O139-R139 -> 1804302.948 | W139: =P139+U139-T139 -> 0
F140: 130 | G140: 2027-12-01 | H140: =EOMONTH(G140,0) -> 2027-12-31 | I140: =H140-G140+1 -> 31 | J140: =WEEKDAY(H140,11) -> 5 | K140: =WORKDAY(H140,IF(OR(J140=6,J140=7),1,0)) -> 2027-12-31 | L140: =VLOOKUP(YEAR(G140),Справочники!$C$3:$I$33,7,FALSE) -> 365 | M140: =VLOOKUP(YEAR(G140),Справочники!$C$3:$D$33,2,FALSE) -> 25887.54534 | N140: =O140+P140 -> 1804302.948 | O140: 1804302.948 | P140: 0 | Q140: =O140*$D$4/L140*I140 -> 17622.84934 | R140: =MIN(M140-T140-S140,O140) -> 8264.696002 | S140: =MIN(M140-T140,Q140) -> 17622.84934 | T140: =MIN(M140,P140) -> 0 | U140: 0 | V140: 1796038.252 | W140: 0
F141: 131 | G141: =H140+1 -> 2028-01-01 | H141: 2028-01-31 | I141: 31 | J141: 1 | K141: 2028-01-31 | L141: =VLOOKUP(YEAR(G141),Справочники!$C$3:$I$33,7,FALSE) -> 366 | M141: =VLOOKUP(YEAR(G141),Справочники!$C$3:$D$33,2,FALSE) -> 26429.32688 | N141: 1796038.252 | O141: =V140 -> 1796038.252 | P141: 0 | Q141: 17494.19773 | R141: 8935.129155 | S141: 17494.19773 | T141: 0 | U141: =MAX(Q141-S141,0) -> 0 | V141: 1787103.123 | W141: 0
F142: 132 | G142: 2028-02-01 | H142: 2028-02-29 | I142: 29 | J142: 2 | K142: 2028-02-29 | L142: =VLOOKUP(YEAR(G142),Справочники!$C$3:$I$33,7,FALSE) -> 366 | M142: =VLOOKUP(YEAR(G142),Справочники!$C$3:$D$33,2,FALSE) -> 26429.32688 | N142: 1787103.123 | O142: 1787103.123 | P142: 0 | Q142: 16284.12272 | R142: 10145.20417 | S142: 16284.12272 | T142: 0 | U142: 0 | V142: 1776957.919 | W142: 0
F143: 133 | G143: 2028-03-01 | H143: 2028-03-31 | I143: 31 | J143: 5 | K143: 2028-03-31 | L143: =VLOOKUP(YEAR(G143),Справочники!$C$3:$I$33,7,FALSE) -> 366 | M143: =VLOOKUP(YEAR(G143),Справочники!$C$3:$D$33,2,FALSE) -> 26429.32688 | N143: 1776957.919 | O143: 1776957.919 | P143: 0 | Q143: 17308.34694 | R143: 9120.979943 | S143: 17308.34694 | T143: 0 | U143: 0 | V143: 1767836.939 | W143: 0
F144: 134 | G144: 2028-04-01 | H144: 2028-04-30 | I144: 30 | J144: 7 | K144: 2028-05-01 | L144: =VLOOKUP(YEAR(G144),Справочники!$C$3:$I$33,7,FALSE) -> 366 | M144: =VLOOKUP(YEAR(G144),Справочники!$C$3:$D$33,2,FALSE) -> 26429.32688 | N144: 1767836.939 | O144: 1767836.939 | P144: 0 | Q144: 16664.03672 | R144: 9765.290165 | S144: 16664.03672 | T144: 0 | U144: 0 | V144: 1758071.649 | W144: 0
F145: 135 | G145: 2028-05-01 | H145: 2028-05-31 | I145: 31 | J145: 3 | K145: 2028-05-31 | L145: =VLOOKUP(YEAR(G145),Справочники!$C$3:$I$33,7,FALSE) -> 366 | M145: =VLOOKUP(YEAR(G145),Справочники!$C$3:$D$33,2,FALSE) -> 26429.32688 | N145: 1758071.649 | O145: 1758071.649 | P145: 0 | Q145: 17124.38641 | R145: 9304.94047 | S145: 17124.38641 | T145: 0 | U145: 0 | V145: 1748766.708 | W145: 0
F146: 136 | G146: 2028-06-01 | H146: 2028-06-30 | I146: 30 | J146: 5 | K146: 2028-06-30 | L146: =VLOOKUP(YEAR(G146),Справочники!$C$3:$I$33,7,FALSE) -> 366 | M146: =VLOOKUP(YEAR(G146),Справочники!$C$3:$D$33,2,FALSE) -> 26429.32688 | N146: 1748766.708 | O146: 1748766.708 | P146: 0 | Q146: 16484.27635 | R146: 9945.050536 | S146: 16484.27635 | T146: 0 | U146: 0 | V146: 1738821.658 | W146: 0
F147: 137 | G147: 2028-07-01 | H147: 2028-07-31 | I147: 31 | J147: 1 | K147: 2028-07-31 | L147: =VLOOKUP(YEAR(G147),Справочники!$C$3:$I$33,7,FALSE) -> 366 | M147: =VLOOKUP(YEAR(G147),Справочники!$C$3:$D$33,2,FALSE) -> 26429.32688 | N147: 1738821.658 | O147: 1738821.658 | P147: 0 | Q147: 16936.88309 | R147: 9492.443798 | S147: 16936.88309 | T147: 0 | U147: 0 | V147: 1729329.214 | W147: 0
F148: 138 | G148: 2028-08-01 | H148: 2028-08-31 | I148: 31 | J148: 4 | K148: 2028-08-31 | L148: =VLOOKUP(YEAR(G148),Справочники!$C$3:$I$33,7,FALSE) -> 366 | M148: =VLOOKUP(YEAR(G148),Справочники!$C$3:$D$33,2,FALSE) -> 26429.32688 | N148: 1729329.214 | O148: 1729329.214 | P148: 0 | Q148: 16844.42253 | R148: 9584.90435 | S148: 16844.42253 | T148: 0 | U148: 0 | V148: 1719744.31 | W148: 0
F149: 139 | G149: 2028-09-01 | H149: 2028-09-30 | I149: 30 | J149: 6 | K149: 2028-10-02 | L149: =VLOOKUP(YEAR(G149),Справочники!$C$3:$I$33,7,FALSE) -> 366 | M149: =VLOOKUP(YEAR(G149),Справочники!$C$3:$D$33,2,FALSE) -> 26429.32688 | N149: 1719744.31 | O149: 1719744.31 | P149: 0 | Q149: 16210.70456 | R149: 10218.62233 | S149: 16210.70456 | T149: 0 | U149: 0 | V149: 1709525.687 | W149: 0
F150: 140 | G150: 2028-10-01 | H150: 2028-10-31 | I150: 31 | J150: 2 | K150: 2028-10-31 | L150: =VLOOKUP(YEAR(G150),Справочники!$C$3:$I$33,7,FALSE) -> 366 | M150: =VLOOKUP(YEAR(G150),Справочники!$C$3:$D$33,2,FALSE) -> 26429.32688 | N150: 1709525.687 | O150: 1709525.687 | P150: 0 | Q150: 16651.52753 | R150: 9777.799357 | S150: 16651.52753 | T150: 0 | U150: 0 | V150: 1699747.888 | W150: 0
F151: 141 | G151: 2028-11-01 | H151: 2028-11-30 | I151: 30 | J151: 4 | K151: 2028-11-30 | L151: =VLOOKUP(YEAR(G151),Справочники!$C$3:$I$33,7,FALSE) -> 366 | M151: =VLOOKUP(YEAR(G151),Справочники!$C$3:$D$33,2,FALSE) -> 26429.32688 | N151: 1699747.888 | O151: 1699747.888 | P151: 0 | Q151: 16022.2137 | R151: 10407.11319 | S151: 16022.2137 | T151: 0 | U151: 0 | V151: 1689340.775 | W151: 0
F152: 142 | G152: 2028-12-01 | H152: 2028-12-31 | I152: 31 | J152: 7 | K152: 2029-01-01 | L152: =VLOOKUP(YEAR(G152),Справочники!$C$3:$I$33,7,FALSE) -> 366 | M152: =VLOOKUP(YEAR(G152),Справочники!$C$3:$D$33,2,FALSE) -> 26429.32688 | N152: 1689340.775 | O152: 1689340.775 | P152: 0 | Q152: 16454.91766 | R152: 9974.409229 | S152: 16454.91766 | T152: 0 | U152: 0 | V152: 1679366.365 | W152: 0
F153: 143 | G153: 2029-01-01 | H153: 2029-01-31 | I153: 31 | J153: 3 | K153: 2029-01-31 | L153: =VLOOKUP(YEAR(G153),Справочники!$C$3:$I$33,7,FALSE) -> 365 | M153: =VLOOKUP(YEAR(G153),Справочники!$C$3:$D$33,2,FALSE) -> 26958.00081 | N153: 1679366.365 | O153: 1679366.365 | P153: 0 | Q153: 16402.57834 | R153: 10555.42247 | S153: 16402.57834 | T153: 0 | U153: 0 | V153: 1668810.943 | W153: 0
F154: 144 | G154: 2029-02-01 | H154: 2029-02-28 | I154: 28 | J154: 3 | K154: 2029-02-28 | L154: =VLOOKUP(YEAR(G154),Справочники!$C$3:$I$33,7,FALSE) -> 365 | M154: =VLOOKUP(YEAR(G154),Справочники!$C$3:$D$33,2,FALSE) -> 26958.00081 | N154: 1668810.943 | O154: 1668810.943 | P154: 0 | Q154: 14722.11298 | R154: 12235.88783 | S154: 14722.11298 | T154: 0 | U154: 0 | V154: 1656575.055 | W154: 0
F155: 145 | G155: 2029-03-01 | H155: 2029-03-31 | I155: 31 | J155: 6 | K155: 2029-04-02 | L155: =VLOOKUP(YEAR(G155),Справочники!$C$3:$I$33,7,FALSE) -> 365 | M155: =VLOOKUP(YEAR(G155),Справочники!$C$3:$D$33,2,FALSE) -> 26958.00081 | N155: 1656575.055 | O155: 1656575.055 | P155: 0 | Q155: 16179.9728 | R155: 10778.02801 | S155: 16179.9728 | T155: 0 | U155: 0 | V155: 1645797.027 | W155: 0
F156: 146 | G156: 2029-04-01 | H156: 2029-04-30 | I156: 30 | J156: 1 | K156: 2029-04-30 | L156: =VLOOKUP(YEAR(G156),Справочники!$C$3:$I$33,7,FALSE) -> 365 | M156: =VLOOKUP(YEAR(G156),Справочники!$C$3:$D$33,2,FALSE) -> 26958.00081 | N156: 1645797.027 | O156: 1645797.027 | P156: 0 | Q156: 15556.16368 | R156: 11401.83712 | S156: 15556.16368 | T156: 0 | U156: 0 | V156: 1634395.19 | W156: 0
F157: 147 | G157: 2029-05-01 | H157: 2029-05-31 | I157: 31 | J157: 4 | K157: 2029-05-31 | L157: =VLOOKUP(YEAR(G157),Справочники!$C$3:$I$33,7,FALSE) -> 365 | M157: =VLOOKUP(YEAR(G157),Справочники!$C$3:$D$33,2,FALSE) -> 26958.00081 | N157: 1634395.19 | O157: 1634395.19 | P157: 0 | Q157: 15963.33932 | R157: 10994.66148 | S157: 15963.33932 | T157: 0 | U157: 0 | V157: 1623400.529 | W157: 0
F158: 148 | G158: 2029-06-01 | H158: 2029-06-30 | I158: 30 | J158: 6 | K158: 2029-07-02 | L158: =VLOOKUP(YEAR(G158),Справочники!$C$3:$I$33,7,FALSE) -> 365 | M158: =VLOOKUP(YEAR(G158),Справочники!$C$3:$D$33,2,FALSE) -> 26958.00081 | N158: 1623400.529 | O158: 1623400.529 | P158: 0 | Q158: 15344.47075 | R158: 11613.53006 | S158: 15344.47075 | T158: 0 | U158: 0 | V158: 1611786.998 | W158: 0
F159: 149 | G159: 2029-07-01 | H159: 2029-07-31 | I159: 31 | J159: 2 | K159: 2029-07-31 | L159: =VLOOKUP(YEAR(G159),Справочники!$C$3:$I$33,7,FALSE) -> 365 | M159: =VLOOKUP(YEAR(G159),Справочники!$C$3:$D$33,2,FALSE) -> 26958.00081 | N159: 1611786.998 | O159: 1611786.998 | P159: 0 | Q159: 15742.52233 | R159: 11215.47848 | S159: 15742.52233 | T159: 0 | U159: 0 | V159: 1600571.52 | W159: 0
F160: 150 | G160: 2029-08-01 | H160: 2029-08-31 | I160: 31 | J160: 5 | K160: 2029-08-31 | L160: =VLOOKUP(YEAR(G160),Справочники!$C$3:$I$33,7,FALSE) -> 365 | M160: =VLOOKUP(YEAR(G160),Справочники!$C$3:$D$33,2,FALSE) -> 26958.00081 | N160: 1600571.52 | O160: 1600571.52 | P160: 0 | Q160: 15632.97937 | R160: 11325.02144 | S160: 15632.97937 | T160: 0 | U160: 0 | V160: 1589246.499 | W160: 0
F161: 151 | G161: 2029-09-01 | H161: 2029-09-30 | I161: 30 | J161: 7 | K161: 2029-10-01 | L161: =VLOOKUP(YEAR(G161),Справочники!$C$3:$I$33,7,FALSE) -> 365 | M161: =VLOOKUP(YEAR(G161),Справочники!$C$3:$D$33,2,FALSE) -> 26958.00081 | N161: 1589246.499 | O161: 1589246.499 | P161: 0 | Q161: 15021.64499 | R161: 11936.35582 | S161: 15021.64499 | T161: 0 | U161: 0 | V161: 1577310.143 | W161: 0
F162: 152 | G162: 2029-10-01 | H162: 2029-10-31 | I162: 31 | J162: 3 | K162: 2029-10-31 | L162: =VLOOKUP(YEAR(G162),Справочники!$C$3:$I$33,7,FALSE) -> 365 | M162: =VLOOKUP(YEAR(G162),Справочники!$C$3:$D$33,2,FALSE) -> 26958.00081 | N162: 1577310.143 | O162: 1577310.143 | P162: 0 | Q162: 15405.78263 | R162: 11552.21818 | S162: 15405.78263 | T162: 0 | U162: 0 | V162: 1565757.925 | W162: 0
F163: 153 | G163: 2029-11-01 | H163: 2029-11-30 | I163: 30 | J163: 5 | K163: 2029-11-30 | L163: =VLOOKUP(YEAR(G163),Справочники!$C$3:$I$33,7,FALSE) -> 365 | M163: =VLOOKUP(YEAR(G163),Справочники!$C$3:$D$33,2,FALSE) -> 26958.00081 | N163: 1565757.925 | O163: 1565757.925 | P163: 0 | Q163: 14799.6297 | R163: 12158.37111 | S163: 14799.6297 | T163: 0 | U163: 0 | V163: 1553599.553 | W163: 0
F164: 154 | G164: 2029-12-01 | H164: 2029-12-31 | I164: 31 | J164: 1 | K164: 2029-12-31 | L164: =VLOOKUP(YEAR(G164),Справочники!$C$3:$I$33,7,FALSE) -> 365 | M164: =VLOOKUP(YEAR(G164),Справочники!$C$3:$D$33,2,FALSE) -> 26958.00081 | N164: 1553599.553 | O164: 1553599.553 | P164: 0 | Q164: 15174.19838 | R164: 11783.80243 | S164: 15174.19838 | T164: 0 | U164: 0 | V164: 1541815.751 | W164: 0
F165: 155 | G165: 2030-01-01 | H165: 2030-01-31 | I165: 31 | J165: 4 | K165: 2030-01-31 | L165: =VLOOKUP(YEAR(G165),Справочники!$C$3:$I$33,7,FALSE) -> 365 | M165: =VLOOKUP(YEAR(G165),Справочники!$C$3:$D$33,2,FALSE) -> 27469.1979 | N165: 1541815.751 | O165: 1541815.751 | P165: 0 | Q165: 15059.10453 | R165: 12410.09338 | S165: 15059.10453 | T165: 0 | U165: 0 | V165: 1529405.658 | W165: 0
F166: 156 | G166: 2030-02-01 | H166: 2030-02-28 | I166: 28 | J166: 4 | K166: 2030-02-28 | L166: =VLOOKUP(YEAR(G166),Справочники!$C$3:$I$33,7,FALSE) -> 365 | M166: =VLOOKUP(YEAR(G166),Справочники!$C$3:$D$33,2,FALSE) -> 27469.1979 | N166: 1529405.658 | O166: 1529405.658 | P166: 0 | Q166: 13492.29101 | R166: 13976.9069 | S166: 13492.29101 | T166: 0 | U166: 0 | V166: 1515428.751 | W166: 0
F167: 157 | G167: 2030-03-01 | H167: 2030-03-31 | I167: 31 | J167: 7 | K167: 2030-04-01 | L167: =VLOOKUP(YEAR(G167),Справочники!$C$3:$I$33,7,FALSE) -> 365 | M167: =VLOOKUP(YEAR(G167),Справочники!$C$3:$D$33,2,FALSE) -> 27469.1979 | N167: 1515428.751 | O167: 1515428.751 | P167: 0 | Q167: 14801.37944 | R167: 12667.81846 | S167: 14801.37944 | T167: 0 | U167: 0 | V167: 1502760.932 | W167: 0
F168: 158 | G168: 2030-04-01 | H168: 2030-04-30 | I168: 30 | J168: 2 | K168: 2030-04-30 | L168: =VLOOKUP(YEAR(G168),Справочники!$C$3:$I$33,7,FALSE) -> 365 | M168: =VLOOKUP(YEAR(G168),Справочники!$C$3:$D$33,2,FALSE) -> 27469.1979 | N168: 1502760.932 | O168: 1502760.932 | P168: 0 | Q168: 14204.17868 | R168: 13265.01923 | S168: 14204.17868 | T168: 0 | U168: 0 | V168: 1489495.913 | W168: 0
F169: 159 | G169: 2030-05-01 | H169: 2030-05-31 | I169: 31 | J169: 5 | K169: 2030-05-31 | L169: =VLOOKUP(YEAR(G169),Справочники!$C$3:$I$33,7,FALSE) -> 365 | M169: =VLOOKUP(YEAR(G169),Справочники!$C$3:$D$33,2,FALSE) -> 27469.1979 | N169: 1489495.913 | O169: 1489495.913 | P169: 0 | Q169: 14548.09022 | R169: 12921.10768 | S169: 14548.09022 | T169: 0 | U169: 0 | V169: 1476574.805 | W169: 0
F170: 160 | G170: 2030-06-01 | H170: 2030-06-30 | I170: 30 | J170: 7 | K170: 2030-07-01 | L170: =VLOOKUP(YEAR(G170),Справочники!$C$3:$I$33,7,FALSE) -> 365 | M170: =VLOOKUP(YEAR(G170),Справочники!$C$3:$D$33,2,FALSE) -> 27469.1979 | N170: 1476574.805 | O170: 1476574.805 | P170: 0 | Q170: 13956.66597 | R170: 13512.53194 | S170: 13956.66597 | T170: 0 | U170: 0 | V170: 1463062.273 | W170: 0
F171: 161 | G171: 2030-07-01 | H171: 2030-07-31 | I171: 31 | J171: 3 | K171: 2030-07-31 | L171: =VLOOKUP(YEAR(G171),Справочники!$C$3:$I$33,7,FALSE) -> 365 | M171: =VLOOKUP(YEAR(G171),Справочники!$C$3:$D$33,2,FALSE) -> 27469.1979 | N171: 1463062.273 | O171: 1463062.273 | P171: 0 | Q171: 14289.9096 | R171: 13179.2883 | S171: 14289.9096 | T171: 0 | U171: 0 | V171: =O171-R171 -> 1449882.985 | W171: =P171+U171-T171 -> 0
F172: 162 | G172: 2030-08-01 | H172: 2030-08-31 | I172: 31 | J172: 6 | K172: 2030-09-02 | L172: =VLOOKUP(YEAR(G172),Справочники!$C$3:$I$33,7,FALSE) -> 365 | M172: =VLOOKUP(YEAR(G172),Справочники!$C$3:$D$33,2,FALSE) -> 27469.1979 | N172: 1449882.985 | O172: 1449882.985 | P172: 0 | Q172: 14161.18587 | R172: 13308.01204 | S172: 14161.18587 | T172: 0 | U172: 0 | V172: 1436574.973 | W172: 0
F173: 163 | G173: 2030-09-01 | H173: 2030-09-30 | I173: 30 | J173: 1 | K173: 2030-09-30 | L173: =VLOOKUP(YEAR(G173),Справочники!$C$3:$I$33,7,FALSE) -> 365 | M173: =VLOOKUP(YEAR(G173),Справочники!$C$3:$D$33,2,FALSE) -> 27469.1979 | N173: 1436574.973 | O173: 1436574.973 | P173: 0 | Q173: 13578.58536 | R173: 13890.61254 | S173: 13578.58536 | T173: 0 | U173: 0 | V173: 1422684.361 | W173: 0
F174: 164 | G174: 2030-10-01 | H174: 2030-10-31 | I174: 31 | J174: 4 | K174: 2030-10-31 | L174: =VLOOKUP(YEAR(G174),Справочники!$C$3:$I$33,7,FALSE) -> 365 | M174: =VLOOKUP(YEAR(G174),Справочники!$C$3:$D$33,2,FALSE) -> 27469.1979 | N174: 1422684.361 | O174: 1422684.361 | P174: 0 | Q174: 13895.53355 | R174: 13573.66436 | S174: 13895.53355 | T174: 0 | U174: 0 | V174: 1409110.696 | W174: 0
F175: 165 | G175: 2030-11-01 | H175: 2030-11-30 | I175: 30 | J175: 6 | K175: 2030-12-02 | L175: =VLOOKUP(YEAR(G175),Справочники!$C$3:$I$33,7,FALSE) -> 365 | M175: =VLOOKUP(YEAR(G175),Справочники!$C$3:$D$33,2,FALSE) -> 27469.1979 | N175: 1409110.696 | O175: 1409110.696 | P175: 0 | Q175: 13318.99151 | R175: 14150.20639 | S175: 13318.99151 | T175: 0 | U175: 0 | V175: 1394960.49 | W175: 0
F176: 166 | G176: 2030-12-01 | H176: 2030-12-31 | I176: 31 | J176: 2 | K176: 2030-12-31 | L176: =VLOOKUP(YEAR(G176),Справочники!$C$3:$I$33,7,FALSE) -> 365 | M176: =VLOOKUP(YEAR(G176),Справочники!$C$3:$D$33,2,FALSE) -> 27469.1979 | N176: 1394960.49 | O176: 1394960.49 | P176: 0 | Q176: 13624.75109 | R176: 13844.44682 | S176: 13624.75109 | T176: 0 | U176: 0 | V176: 1381116.043 | W176: 0
F177: 167 | G177: 2031-01-01 | H177: 2031-01-31 | I177: 31 | J177: 5 | K177: 2031-01-31 | L177: =VLOOKUP(YEAR(G177),Справочники!$C$3:$I$33,7,FALSE) -> 365 | M177: =VLOOKUP(YEAR(G177),Справочники!$C$3:$D$33,2,FALSE) -> 28019.71786 | N177: 1381116.043 | O177: 1381116.043 | P177: 0 | Q177: 13489.53067 | R177: 14530.18719 | S177: 13489.53067 | T177: 0 | U177: 0 | V177: 1366585.856 | W177: 0
F178: 168 | G178: 2031-02-01 | H178: 2031-02-28 | I178: 28 | J178: 5 | K178: 2031-02-28 | L178: =VLOOKUP(YEAR(G178),Справочники!$C$3:$I$33,7,FALSE) -> 365 | M178: =VLOOKUP(YEAR(G178),Справочники!$C$3:$D$33,2,FALSE) -> 28019.71786 | N178: 1366585.856 | O178: 1366585.856 | P178: 0 | Q178: 12055.9081 | R178: 15963.80976 | S178: 12055.9081 | T178: 0 | U178: 0 | V178: 1350622.046 | W178: 0
F179: 169 | G179: 2031-03-01 | H179: 2031-03-31 | I179: 31 | J179: 1 | K179: 2031-03-31 | L179: =VLOOKUP(YEAR(G179),Справочники!$C$3:$I$33,7,FALSE) -> 365 | M179: =VLOOKUP(YEAR(G179),Справочники!$C$3:$D$33,2,FALSE) -> 28019.71786 | N179: 1350622.046 | O179: 1350622.046 | P179: 0 | Q179: 13191.69204 | R179: 14828.02582 | S179: 13191.69204 | T179: 0 | U179: 0 | V179: 1335794.02 | W179: 0
F180: 170 | G180: 2031-04-01 | H180: 2031-04-30 | I180: 30 | J180: 3 | K180: 2031-04-30 | L180: =VLOOKUP(YEAR(G180),Справочники!$C$3:$I$33,7,FALSE) -> 365 | M180: =VLOOKUP(YEAR(G180),Справочники!$C$3:$D$33,2,FALSE) -> 28019.71786 | N180: 1335794.02 | O180: 1335794.02 | P180: 0 | Q180: 12625.99827 | R180: 15393.71958 | S180: 12625.99827 | T180: 0 | U180: 0 | V180: 1320400.301 | W180: 0
F181: 171 | G181: 2031-05-01 | H181: 2031-05-31 | I181: 31 | J181: 6 | K181: 2031-06-02 | L181: =VLOOKUP(YEAR(G181),Справочники!$C$3:$I$33,7,FALSE) -> 365 | M181: =VLOOKUP(YEAR(G181),Справочники!$C$3:$D$33,2,FALSE) -> 28019.71786 | N181: 1320400.301 | O181: 1320400.301 | P181: 0 | Q181: 12896.51253 | R181: 15123.20533 | S181: 12896.51253 | T181: 0 | U181: 0 | V181: 1305277.095 | W181: 0
F182: 172 | G182: 2031-06-01 | H182: 2031-06-30 | I182: 30 | J182: 1 | K182: 2031-06-30 | L182: =VLOOKUP(YEAR(G182),Справочники!$C$3:$I$33,7,FALSE) -> 365 | M182: =VLOOKUP(YEAR(G182),Справочники!$C$3:$D$33,2,FALSE) -> 28019.71786 | N182: 1305277.095 | O182: 1305277.095 | P182: 0 | Q182: 12337.55063 | R182: 15682.16723 | S182: 12337.55063 | T182: 0 | U182: 0 | V182: 1289594.928 | W182: 0
F183: 173 | G183: 2031-07-01 | H183: 2031-07-31 | I183: 31 | J183: 4 | K183: 2031-07-31 | L183: =VLOOKUP(YEAR(G183),Справочники!$C$3:$I$33,7,FALSE) -> 365 | M183: =VLOOKUP(YEAR(G183),Справочники!$C$3:$D$33,2,FALSE) -> 28019.71786 | N183: 1289594.928 | O183: 1289594.928 | P183: 0 | Q183: 12595.63265 | R183: 15424.0852 | S183: 12595.63265 | T183: 0 | U183: 0 | V183: 1274170.843 | W183: 0
F184: 174 | G184: 2031-08-01 | H184: 2031-08-31 | I184: 31 | J184: 7 | K184: 2031-09-01 | L184: =VLOOKUP(YEAR(G184),Справочники!$C$3:$I$33,7,FALSE) -> 365 | M184: =VLOOKUP(YEAR(G184),Справочники!$C$3:$D$33,2,FALSE) -> 28019.71786 | N184: 1274170.843 | O184: 1274170.843 | P184: 0 | Q184: 12444.98371 | R184: 15574.73414 | S184: 12444.98371 | T184: 0 | U184: 0 | V184: 1258596.109 | W184: 0
F185: 175 | G185: 2031-09-01 | H185: 2031-09-30 | I185: 30 | J185: 2 | K185: 2031-09-30 | L185: =VLOOKUP(YEAR(G185),Справочники!$C$3:$I$33,7,FALSE) -> 365 | M185: =VLOOKUP(YEAR(G185),Справочники!$C$3:$D$33,2,FALSE) -> 28019.71786 | N185: 1258596.109 | O185: 1258596.109 | P185: 0 | Q185: 11896.31938 | R185: 16123.39847 | S185: 11896.31938 | T185: 0 | U185: 0 | V185: 1242472.71 | W185: 0
F186: 176 | G186: 2031-10-01 | H186: 2031-10-31 | I186: 31 | J186: 5 | K186: 2031-10-31 | L186: =VLOOKUP(YEAR(G186),Справочники!$C$3:$I$33,7,FALSE) -> 365 | M186: =VLOOKUP(YEAR(G186),Справочники!$C$3:$D$33,2,FALSE) -> 28019.71786 | N186: 1242472.71 | O186: 1242472.71 | P186: 0 | Q186: 12135.38414 | R186: 15884.33371 | S186: 12135.38414 | T186: 0 | U186: 0 | V186: 1226588.377 | W186: 0
F187: 177 | G187: 2031-11-01 | H187: 2031-11-30 | I187: 30 | J187: 7 | K187: 2031-12-01 | L187: =VLOOKUP(YEAR(G187),Справочники!$C$3:$I$33,7,FALSE) -> 365 | M187: =VLOOKUP(YEAR(G187),Справочники!$C$3:$D$33,2,FALSE) -> 28019.71786 | N187: 1226588.377 | O187: 1226588.377 | P187: 0 | Q187: 11593.78055 | R187: 16425.93731 | S187: 11593.78055 | T187: 0 | U187: 0 | V187: 1210162.439 | W187: 0
F188: 178 | G188: 2031-12-01 | H188: 2031-12-31 | I188: 31 | J188: 3 | K188: 2031-12-31 | L188: =VLOOKUP(YEAR(G188),Справочники!$C$3:$I$33,7,FALSE) -> 365 | M188: =VLOOKUP(YEAR(G188),Справочники!$C$3:$D$33,2,FALSE) -> 28019.71786 | N188: 1210162.439 | O188: 1210162.439 | P188: 0 | Q188: 11819.80574 | R188: 16199.91211 | S188: 11819.80574 | T188: 0 | U188: 0 | V188: 1193962.527 | W188: 0
F189: 179 | G189: 2032-01-01 | H189: 2032-01-31 | I189: 31 | J189: 6 | K189: 2032-02-02 | L189: =VLOOKUP(YEAR(G189),Справочники!$C$3:$I$33,7,FALSE) -> 366 | M189: =VLOOKUP(YEAR(G189),Справочники!$C$3:$D$33,2,FALSE) -> 28578.97622 | N189: 1193962.527 | O189: 1193962.527 | P189: 0 | Q189: 11629.71697 | R189: 16949.25925 | S189: 11629.71697 | T189: 0 | U189: 0 | V189: 1177013.268 | W189: 0
F190: 180 | G190: 2032-02-01 | H190: 2032-02-29 | I190: 29 | J190: 7 | K190: 2032-03-01 | L190: =VLOOKUP(YEAR(G190),Справочники!$C$3:$I$33,7,FALSE) -> 366 | M190: =VLOOKUP(YEAR(G190),Справочники!$C$3:$D$33,2,FALSE) -> 28578.97622 | N190: 1177013.268 | O190: 1177013.268 | P190: 0 | Q190: 10724.97062 | R190: 17854.0056 | S190: 10724.97062 | T190: 0 | U190: 0 | V190: 1159159.262 | W190: 0
F191: 181 | G191: 2032-03-01 | H191: 2032-03-31 | I191: 31 | J191: 3 | K191: 2032-03-31 | L191: =VLOOKUP(YEAR(G191),Справочники!$C$3:$I$33,7,FALSE) -> 366 | M191: =VLOOKUP(YEAR(G191),Справочники!$C$3:$D$33,2,FALSE) -> 28578.97622 | N191: 1159159.262 | O191: 1159159.262 | P191: 0 | Q191: 11290.71795 | R191: 17288.25827 | S191: 11290.71795 | T191: 0 | U191: 0 | V191: 1141871.004 | W191: 0
F192: 182 | G192: 2032-04-01 | H192: 2032-04-30 | I192: 30 | J192: 5 | K192: 2032-04-30 | L192: =VLOOKUP(YEAR(G192),Справочники!$C$3:$I$33,7,FALSE) -> 366 | M192: =VLOOKUP(YEAR(G192),Справочники!$C$3:$D$33,2,FALSE) -> 28578.97622 | N192: 1141871.004 | O192: 1141871.004 | P192: 0 | Q192: 10763.53815 | R192: 17815.43807 | S192: 10763.53815 | T192: 0 | U192: 0 | V192: 1124055.566 | W192: 0
F193: 183 | G193: 2032-05-01 | H193: 2032-05-31 | I193: 31 | J193: 1 | K193: 2032-05-31 | L193: =VLOOKUP(YEAR(G193),Справочники!$C$3:$I$33,7,FALSE) -> 366 | M193: =VLOOKUP(YEAR(G193),Справочники!$C$3:$D$33,2,FALSE) -> 28578.97622 | N193: 1124055.566 | O193: 1124055.566 | P193: 0 | Q193: 10948.7926 | R193: 17630.18362 | S193: 10948.7926 | T193: 0 | U193: 0 | V193: 1106425.382 | W193: 0
F194: 184 | G194: 2032-06-01 | H194: 2032-06-30 | I194: 30 | J194: 3 | K194: 2032-06-30 | L194: =VLOOKUP(YEAR(G194),Справочники!$C$3:$I$33,7,FALSE) -> 366 | M194: =VLOOKUP(YEAR(G194),Справочники!$C$3:$D$33,2,FALSE) -> 28578.97622 | N194: 1106425.382 | O194: 1106425.382 | P194: 0 | Q194: 10429.41959 | R194: 18149.55663 | S194: 10429.41959 | T194: 0 | U194: 0 | V194: 1088275.826 | W194: 0
F195: 185 | G195: 2032-07-01 | H195: 2032-07-31 | I195: 31 | J195: 6 | K195: 2032-08-02 | L195: =VLOOKUP(YEAR(G195),Справочники!$C$3:$I$33,7,FALSE) -> 366 | M195: =VLOOKUP(YEAR(G195),Справочники!$C$3:$D$33,2,FALSE) -> 28578.97622 | N195: 1088275.826 | O195: 1088275.826 | P195: 0 | Q195: 10600.28229 | R195: 17978.69393 | S195: 10600.28229 | T195: 0 | U195: 0 | V195: 1070297.132 | W195: 0
F196: 186 | G196: 2032-08-01 | H196: 2032-08-31 | I196: 31 | J196: 2 | K196: 2032-08-31 | L196: =VLOOKUP(YEAR(G196),Справочники!$C$3:$I$33,7,FALSE) -> 366 | M196: =VLOOKUP(YEAR(G196),Справочники!$C$3:$D$33,2,FALSE) -> 28578.97622 | N196: 1070297.132 | O196: 1070297.132 | P196: 0 | Q196: 10425.16195 | R196: 18153.81427 | S196: 10425.16195 | T196: 0 | U196: 0 | V196: 1052143.318 | W196: 0
F197: 187 | G197: 2032-09-01 | H197: 2032-09-30 | I197: 30 | J197: 4 | K197: 2032-09-30 | L197: =VLOOKUP(YEAR(G197),Справочники!$C$3:$I$33,7,FALSE) -> 366 | M197: =VLOOKUP(YEAR(G197),Справочники!$C$3:$D$33,2,FALSE) -> 28578.97622 | N197: 1052143.318 | O197: 1052143.318 | P197: 0 | Q197: 9917.744386 | R197: 18661.23183 | S197: 9917.744386 | T197: 0 | U197: 0 | V197: 1033482.086 | W197: 0
F198: 188 | G198: 2032-10-01 | H198: 2032-10-31 | I198: 31 | J198: 7 | K198: 2032-11-01 | L198: =VLOOKUP(YEAR(G198),Справочники!$C$3:$I$33,7,FALSE) -> 366 | M198: =VLOOKUP(YEAR(G198),Справочники!$C$3:$D$33,2,FALSE) -> 28578.97622 | N198: 1033482.086 | O198: 1033482.086 | P198: 0 | Q198: 10066.56731 | R198: 18512.40891 | S198: 10066.56731 | T198: 0 | U198: 0 | V198: 1014969.677 | W198: 0
F199: 189 | G199: 2032-11-01 | H199: 2032-11-30 | I199: 30 | J199: 2 | K199: 2032-11-30 | L199: =VLOOKUP(YEAR(G199),Справочники!$C$3:$I$33,7,FALSE) -> 366 | M199: =VLOOKUP(YEAR(G199),Справочники!$C$3:$D$33,2,FALSE) -> 28578.97622 | N199: 1014969.677 | O199: 1014969.677 | P199: 0 | Q199: 9567.337117 | R199: 19011.6391 | S199: 9567.337117 | T199: 0 | U199: 0 | V199: 995958.0377 | W199: 0
F200: 190 | G200: 2032-12-01 | H200: 2032-12-31 | I200: 31 | J200: 5 | K200: 2032-12-31 | L200: =VLOOKUP(YEAR(G200),Справочники!$C$3:$I$33,7,FALSE) -> 366 | M200: =VLOOKUP(YEAR(G200),Справочники!$C$3:$D$33,2,FALSE) -> 28578.97622 | N200: 995958.0377 | O200: 995958.0377 | P200: 0 | Q200: 9701.066678 | R200: 18877.90954 | S200: 9701.066678 | T200: 0 | U200: 0 | V200: 977080.1281 | W200: 0
F201: 191 | G201: 2033-01-01 | H201: 2033-01-31 | I201: 31 | J201: 1 | K201: 2033-01-31 | L201: =VLOOKUP(YEAR(G201),Справочники!$C$3:$I$33,7,FALSE) -> 365 | M201: =VLOOKUP(YEAR(G201),Справочники!$C$3:$D$33,2,FALSE) -> 29151.3422 | N201: 977080.1281 | O201: 977080.1281 | P201: 0 | Q201: 9543.262073 | R201: 19608.08013 | S201: 9543.262073 | T201: 0 | U201: 0 | V201: 957472.048 | W201: 0
F202: 192 | G202: 2033-02-01 | H202: 2033-02-28 | I202: 28 | J202: 1 | K202: 2033-02-28 | L202: =VLOOKUP(YEAR(G202),Справочники!$C$3:$I$33,7,FALSE) -> 365 | M202: =VLOOKUP(YEAR(G202),Справочники!$C$3:$D$33,2,FALSE) -> 29151.3422 | N202: 957472.048 | O202: 957472.048 | P202: 0 | Q202: 8446.739711 | R202: 20704.60249 | S202: 8446.739711 | T202: 0 | U202: 0 | V202: 936767.4455 | W202: 0
... 168 more rows

Sheet График платежей_ФГКУ (hidden)
B2: Параметр | D2: Значение
B3: Сумма кредита | D3: ='График платежей'!$D$3 -> 2210000
B4: Ставка | D4: ='График платежей'!$D$4 -> 0.115
B5: Максимальный срок, мес. | D5: ='График платежей'!$D$5 -> 2040-01-31
B6: Расчетный период полного погашения | D6: =MATCH(0,V11:V370,0) -> 176
B7: Остаток долга на конец срока кредита | D7: =VLOOKUP(D5,$G$11:$O$370,8,TRUE) -> 0
B8: Расчетная дата полного погашения | D8: =VLOOKUP(D6,$F$11:$H$370,3,FALSE) -> 2031-10-31 | P8: График платежей
B9: Возраст заемщика на даты погашения, лет | D9: =YEARFRAC('Ввод данных'!L11,$D$8) -> 36.83055556 | G9: Начало процентного периода | H9: Конец месяца (процентного периода) | I9: Процентный период, дн. | J9: День недели | K9: Первый рабочий день нового месяца | L9: Кол-во дней в году | M9: Платеж | N9: Общий долга на начало | O9: ОД на начало | P9: Накопленные %% на начало | Q9: Начислено за месяц | R9: Погашение ОД | S9: Погашение текущих % | T9: Погашение накопленных %% | U9: Формирование накопленных %% | V9: ОД на конец периода | W9: Накопленные %% на конец периода
F11: 1 | G11: ='Ввод данных'!$L$24 -> 2017-03-15 | H11: =EOMONTH(G11,0) -> 2017-03-31 | I11: =H11-G11 -> 16 | J11: =WEEKDAY(H11,11) -> 5 | K11: =WORKDAY(H11,IF(OR(J11=6,J11=7),1,0)) -> 2017-03-31 | L11: =VLOOKUP(YEAR(G11),Справочники!$C$3:$I$33,7,FALSE) -> 365 | M11: =VLOOKUP(YEAR(G11),Справочники!$C$3:$F$33,4,FALSE) -> 21680 | N11: =O11+P11 -> 2210000 | O11: =D3 -> 2210000 | P11: 0 | Q11: =O11*$D$4/L11*I11 -> 11140.82192 | R11: 0 | S11: 0 | T11: 0 | U11: =MAX(Q11-S11,0) -> 11140.82192 | V11: =O11-R11 -> 2210000 | W11: =P11+U11-T11 -> 11140.82192
F12: 2 | G12: =H11+1 -> 2017-04-01 | H12: =EOMONTH(G12,0) -> 2017-04-30 | I12: =H12-G12+1 -> 30 | J12: =WEEKDAY(H12,11) -> 7 | K12: =WORKDAY(H12,IF(OR(J12=6,J12=7),1,0)) -> 2017-05-01 | L12: =VLOOKUP(YEAR(G12),Справочники!$C$3:$I$33,7,FALSE) -> 365 | M12: =VLOOKUP(YEAR(G12),Справочники!$C$3:$F$33,4,FALSE)+MIN(W11,M11) -> 32820.82192 | N12: =O12+P12 -> 2221140.822 | O12: =V11 -> 2210000 | P12: =W11 -> 11140.82192 | Q12: =O12*$D$4/L12*I12 -> 20889.0411 | R12: =MIN(M12-T12-S12,O12) -> 790.9589041 | S12: =MIN(M12-T12,Q12) -> 20889.0411 | T12: =MIN(M12,P12) -> 11140.82192 | U12: =MAX(Q12-S12,0) -> 0 | V12: =O12-R12 -> 2209209.041 | W12: 0
F13: 3 | G13: =H12+1 -> 2017-05-01 | H13: 2017-05-31 | I13: =H13-G13+1 -> 31 | J13: 3 | K13: 2017-05-31 | L13: =VLOOKUP(YEAR(G13),Справочники!$C$3:$I$33,7,FALSE) -> 365 | M13: =VLOOKUP(YEAR(G13),Справочники!$C$3:$F$33,4,FALSE) -> 21680 | N13: 2209209.041 | O13: =V12 -> 2209209.041 | P13: 0 | Q13: =O13*$D$4/L13*I13 -> 21577.61707 | R13: 102.3829274 | S13: 21577.61707 | T13: 0 | U13: =MAX(Q13-S13,0) -> 0 | V13: 2209106.658 | W13: 0
F14: 4 | G14: 2017-06-01 | H14: 2017-06-30 | I14: 30 | J14: 5 | K14: 2017-06-30 | L14: =VLOOKUP(YEAR(G14),Справочники!$C$3:$I$33,7,FALSE) -> 365 | M14: =VLOOKUP(YEAR(G14),Справочники!$C$3:$F$33,4,FALSE) -> 21680 | N14: 2209106.658 | O14: 2209106.658 | P14: 0 | Q14: 20880.59718 | R14: 799.4028201 | S14: 20880.59718 | T14: 0 | U14: 0 | V14: 2208307.255 | W14: 0
F15: 5 | G15: 2017-07-01 | H15: 2017-07-31 | I15: 31 | J15: 1 | K15: 2017-07-31 | L15: =VLOOKUP(YEAR(G15),Справочники!$C$3:$I$33,7,FALSE) -> 365 | M15: =VLOOKUP(YEAR(G15),Справочники!$C$3:$F$33,4,FALSE) -> 21680 | N15: 2208307.255 | O15: 2208307.255 | P15: 0 | Q15: 21568.80922 | R15: 111.19078 | S15: 21568.80922 | T15: 0 | U15: 0 | V15: 2208196.065 | W15: 0
F16: 6 | G16: 2017-08-01 | H16: 2017-08-31 | I16: 31 | J16: 4 | K16: 2017-08-31 | L16: =VLOOKUP(YEAR(G16),Справочники!$C$3:$I$33,7,FALSE) -> 365 | M16: =VLOOKUP(YEAR(G16),Справочники!$C$3:$F$33,4,FALSE) -> 21680 | N16: 2208196.065 | O16: 2208196.065 | P16: 0 | Q16: 21567.72321 | R16: 112.276794 | S16: 21567.72321 | T16: 0 | U16: 0 | V16: 2208083.788 | W16: 0
F17: 7 | G17: 2017-09-01 | H17: 2017-09-30 | I17: 30 | J17: 6 | K17: 2017-10-02 | L17: =VLOOKUP(YEAR(G17),Справочники!$C$3:$I$33,7,FALSE) -> 365 | M17: =VLOOKUP(YEAR(G17),Справочники!$C$3:$F$33,4,FALSE) -> 21680 | N17: 2208083.788 | O17: =V16 -> 2208083.788 | P17: =W16 -> 0 | Q17: 20870.92895 | R17: 809.0710471 | S17: 20870.92895 | T17: 0 | U17: =MAX(Q17-S17,0) -> 0 | V17: 2207274.717 | W17: 0
F18: 8 | G18: 2017-10-01 | H18: 2017-10-31 | I18: 31 | J18: 2 | K18: 2017-10-31 | L18: =VLOOKUP(YEAR(G18),Справочники!$C$3:$I$33,7,FALSE) -> 365 | M18: =VLOOKUP(YEAR(G18),Справочники!$C$3:$F$33,4,FALSE) -> 21680 | N18: 2207274.717 | O18: =V17 -> 2207274.717 | P18: =W17 -> 0 | Q18: 21558.72429 | R18: 121.275712 | S18: 21558.72429 | T18: 0 | U18: 0 | V18: 2207153.441 | W18: 0
F19: 9 | G19: 2017-11-01 | H19: 2017-11-30 | I19: 30 | J19: 4 | K19: 2017-11-30 | L19: =VLOOKUP(YEAR(G19),Справочники!$C$3:$I$33,7,FALSE) -> 365 | M19: =VLOOKUP(YEAR(G19),Справочники!$C$3:$F$33,4,FALSE) -> 21680 | N19: 2207153.441 | O19: 2207153.441 | P19: 0 | Q19: 20862.13526 | R19: 817.8647356 | S19: 20862.13526 | T19: 0 | U19: 0 | V19: 2206335.576 | W19: 0
F20: 10 | G20: 2017-12-01 | H20: 2017-12-31 | I20: 31 | J20: 7 | K20: 2018-01-01 | L20: =VLOOKUP(YEAR(G20),Справочники!$C$3:$I$33,7,FALSE) -> 365 | M20: =VLOOKUP(YEAR(G20),Справочники!$C$3:$F$33,4,FALSE) -> 21680 | N20: 2206335.576 | O20: 2206335.576 | P20: 0 | Q20: 21549.55159 | R20: 130.4484125 | S20: 21549.55159 | T20: 0 | U20: 0 | V20: 2206205.128 | W20: 0
F21: 11 | G21: 2018-01-01 | H21: 2018-01-31 | I21: 31 | J21: 3 | K21: 2018-01-31 | L21: =VLOOKUP(YEAR(G21),Справочники!$C$3:$I$33,7,FALSE) -> 365 | M21: =VLOOKUP(YEAR(G21),Справочники!$C$3:$F$33,4,FALSE) -> 23050 | N21: 2206205.128 | O21: 2206205.128 | P21: 0 | Q21: 21548.27748 | R21: 1501.722518 | S21: 21548.27748 | T21: 0 | U21: 0 | V21: 2204703.405 | W21: 0
F22: 12 | G22: 2018-02-01 | H22: 2018-02-28 | I22: 28 | J22: 3 | K22: 2018-02-28 | L22: =VLOOKUP(YEAR(G22),Справочники!$C$3:$I$33,7,FALSE) -> 365 | M22: =VLOOKUP(YEAR(G22),Справочники!$C$3:$F$33,4,FALSE) -> 23050 | N22: 2204703.405 | O22: 2204703.405 | P22: 0 | Q22: 19449.71223 | R22: 3600.287767 | S22: 19449.71223 | T22: 0 | U22: 0 | V22: 2201103.118 | W22: 0
F23: 13 | G23: 2018-03-01 | H23: 2018-03-31 | I23: 31 | J23: 6 | K23: 2018-04-02 | L23: =VLOOKUP(YEAR(G23),Справочники!$C$3:$I$33,7,FALSE) -> 365 | M23: =VLOOKUP(YEAR(G23),Справочники!$C$3:$F$33,4,FALSE) -> 23050 | N23: 2201103.118 | O23: =V22 -> 2201103.118 | P23: =W22 -> 0 | Q23: 21498.44552 | R23: 1551.554482 | S23: 21498.44552 | T23: 0 | U23: 0 | V23: 2199551.563 | W23: 0
F24: 14 | G24: 2018-04-01 | H24: 2018-04-30 | I24: 30 | J24: 1 | K24: 2018-04-30 | L24: =VLOOKUP(YEAR(G24),Справочники!$C$3:$I$33,7,FALSE) -> 365 | M24: =VLOOKUP(YEAR(G24),Справочники!$C$3:$F$33,4,FALSE) -> 23050 | N24: 2199551.563 | O24: 2199551.563 | P24: 0 | Q24: 20790.2819 | R24: 2259.718102 | S24: 20790.2819 | T24: 0 | U24: 0 | V24: 2197291.845 | W24: 0
F25: 15 | G25: 2018-05-01 | H25: 2018-05-31 | I25: 31 | J25: 4 | K25: 2018-05-31 | L25: =VLOOKUP(YEAR(G25),Справочники!$C$3:$I$33,7,FALSE) -> 365 | M25: =VLOOKUP(YEAR(G25),Справочники!$C$3:$F$33,4,FALSE) -> 23050 | N25: 2197291.845 | O25: 2197291.845 | P25: 0 | Q25: 21461.22035 | R25: 1588.779651 | S25: 21461.22035 | T25: 0 | U25: 0 | V25: 2195703.065 | W25: 0
F26: 16 | G26: 2018-06-01 | H26: 2018-06-30 | I26: 30 | J26: 6 | K26: 2018-07-02 | L26: =VLOOKUP(YEAR(G26),Справочники!$C$3:$I$33,7,FALSE) -> 365 | M26: =VLOOKUP(YEAR(G26),Справочники!$C$3:$F$33,4,FALSE) -> 23050 | N26: 2195703.065 | O26: 2195703.065 | P26: 0 | Q26: 20753.90569 | R26: 2296.094314 | S26: 20753.90569 | T26: 0 | U26: 0 | V26: 2193406.971 | W26: 0
F27: 17 | G27: 2018-07-01 | H27: 2018-07-31 | I27: 31 | J27: 2 | K27: 2018-07-31 | L27: =VLOOKUP(YEAR(G27),Справочники!$C$3:$I$33,7,FALSE) -> 365 | M27: =VLOOKUP(YEAR(G27),Справочники!$C$3:$F$33,4,FALSE) -> 23050 | N27: 2193406.971 | O27: 2193406.971 | P27: 0 | Q27: 21423.27631 | R27: 1626.723694 | S27: 21423.27631 | T27: 0 | U27: 0 | V27: 2191780.247 | W27: 0
F28: 18 | G28: 2018-08-01 | H28: 2018-08-31 | I28: 31 | J28: 5 | K28: 2018-08-31 | L28: =VLOOKUP(YEAR(G28),Справочники!$C$3:$I$33,7,FALSE) -> 365 | M28: =VLOOKUP(YEAR(G28),Справочники!$C$3:$F$33,4,FALSE) -> 23050 | N28: 2191780.247 | O28: 2191780.247 | P28: 0 | Q28: 21407.3879 | R28: 1642.612105 | S28: 21407.3879 | T28: 0 | U28: 0 | V28: 2190137.635 | W28: 0
F29: 19 | G29: 2018-09-01 | H29: 2018-09-30 | I29: 30 | J29: 7 | K29: 2018-10-01 | L29: =VLOOKUP(YEAR(G29),Справочники!$C$3:$I$33,7,FALSE) -> 365 | M29: =VLOOKUP(YEAR(G29),Справочники!$C$3:$F$33,4,FALSE) -> 23050 | N29: 2190137.635 | O29: 2190137.635 | P29: 0 | Q29: 20701.30094 | R29: 2348.699064 | S29: 20701.30094 | T29: 0 | U29: 0 | V29: 2187788.936 | W29: 0
F30: 20 | G30: 2018-10-01 | H30: 2018-10-31 | I30: 31 | J30: 3 | K30: 2018-10-31 | L30: =VLOOKUP(YEAR(G30),Справочники!$C$3:$I$33,7,FALSE) -> 365 | M30: =VLOOKUP(YEAR(G30),Справочники!$C$3:$F$33,4,FALSE) -> 23050 | N30: 2187788.936 | O30: 2187788.936 | P30: 0 | Q30: 21368.40427 | R30: 1681.595733 | S30: 21368.40427 | T30: 0 | U30: 0 | V30: 2186107.34 | W30: 0
F31: 21 | G31: 2018-11-01 | H31: 2018-11-30 | I31: 30 | J31: 5 | K31: 2018-11-30 | L31: =VLOOKUP(YEAR(G31),Справочники!$C$3:$I$33,7,FALSE) -> 365 | M31: =VLOOKUP(YEAR(G31),Справочники!$C$3:$F$33,4,FALSE) -> 23050 | N31: 2186107.34 | O31: 2186107.34 | P31: 0 | Q31: 20663.20637 | R31: 2386.793631 | S31: 20663.20637 | T31: 0 | U31: 0 | V31: 2183720.547 | W31: 0
F32: 22 | G32: 2018-12-01 | H32: 2018-12-31 | I32: 31 | J32: 1 | K32: 2018-12-31 | L32: =VLOOKUP(YEAR(G32),Справочники!$C$3:$I$33,7,FALSE) -> 365 | M32: =VLOOKUP(YEAR(G32),Справочники!$C$3:$F$33,4,FALSE) -> 23050 | N32: 2183720.547 | O32: 2183720.547 | P32: 0 | Q32: 21328.66781 | R32: 1721.332194 | S32: 21328.66781 | T32: 0 | U32: 0 | V32: 2181999.215 | W32: 0
F33: 23 | G33: 2019-01-01 | H33: 2019-01-31 | I33: 31 | J33: 4 | K33: 2019-01-31 | L33: =VLOOKUP(YEAR(G33),Справочники!$C$3:$I$33,7,FALSE) -> 365 | M33: =VLOOKUP(YEAR(G33),Справочники!$C$3:$F$33,4,FALSE) -> 23995 | N33: 2181999.215 | O33: 2181999.215 | P33: 0 | Q33: 21311.85534 | R33: 2683.144657 | S33: 21311.85534 | T33: 0 | U33: 0 | V33: 2179316.07 | W33: 0
F34: 24 | G34: 2019-02-01 | H34: 2019-02-28 | I34: 28 | J34: 4 | K34: 2019-02-28 | L34: =VLOOKUP(YEAR(G34),Справочники!$C$3:$I$33,7,FALSE) -> 365 | M34: =VLOOKUP(YEAR(G34),Справочники!$C$3:$F$33,4,FALSE) -> 23995 | N34: 2179316.07 | O34: 2179316.07 | P34: 0 | Q34: 19225.74725 | R34: 4769.252753 | S34: 19225.74725 | T34: 0 | U34: 0 | V34: 2174546.817 | W34: 0
F35: 25 | G35: 2019-03-01 | H35: 2019-03-31 | I35: 31 | J35: 7 | K35: 2019-04-01 | L35: =VLOOKUP(YEAR(G35),Справочники!$C$3:$I$33,7,FALSE) -> 365 | M35: =VLOOKUP(YEAR(G35),Справочники!$C$3:$F$33,4,FALSE) -> 23995 | N35: 2174546.817 | O35: 2174546.817 | P35: 0 | Q35: 21239.06686 | R35: 2755.933142 | S35: 21239.06686 | T35: 0 | U35: 0 | V35: 2171790.884 | W35: 0
F36: 26 | G36: 2019-04-01 | H36: 2019-04-30 | I36: 30 | J36: 2 | K36: 2019-04-30 | L36: =VLOOKUP(YEAR(G36),Справочники!$C$3:$I$33,7,FALSE) -> 365 | M36: =VLOOKUP(YEAR(G36),Справочники!$C$3:$F$33,4,FALSE) -> 23995 | N36: 2171790.884 | O36: 2171790.884 | P36: 0 | Q36: 20527.88644 | R36: 3467.113562 | S36: 20527.88644 | T36: 0 | U36: 0 | V36: 2168323.771 | W36: 0
F37: 27 | G37: 2019-05-01 | H37: 2019-05-31 | I37: 31 | J37: 5 | K37: 2019-05-31 | L37: =VLOOKUP(YEAR(G37),Справочники!$C$3:$I$33,7,FALSE) -> 365 | M37: =VLOOKUP(YEAR(G37),Справочники!$C$3:$F$33,4,FALSE) -> 23995 | N37: 2168323.771 | O37: 2168323.771 | P37: 0 | Q37: 21178.28559 | R37: 2816.714406 | S37: 21178.28559 | T37: 0 | U37: 0 | V37: 2165507.056 | W37: 0
F38: 28 | G38: 2019-06-01 | H38: 2019-06-30 | I38: 30 | J38: 7 | K38: 2019-07-01 | L38: =VLOOKUP(YEAR(G38),Справочники!$C$3:$I$33,7,FALSE) -> 365 | M38: =VLOOKUP(YEAR(G38),Справочники!$C$3:$F$33,4,FALSE) -> 23995 | N38: 2165507.056 | O38: 2165507.056 | P38: 0 | Q38: 20468.49135 | R38: 3526.508648 | S38: 20468.49135 | T38: 0 | U38: 0 | V38: 2161980.547 | W38: 0
F39: 29 | G39: 2019-07-01 | H39: 2019-07-31 | I39: 31 | J39: 3 | K39: 2019-07-31 | L39: =VLOOKUP(YEAR(G39),Справочники!$C$3:$I$33,7,FALSE) -> 365 | M39: =VLOOKUP(YEAR(G39),Справочники!$C$3:$F$33,4,FALSE) -> 23995 | N39: 2161980.547 | O39: 2161980.547 | P39: 0 | Q39: 21116.33055 | R39: 2878.669448 | S39: 21116.33055 | T39: 0 | U39: 0 | V39: 2159101.878 | W39: 0
F40: 30 | G40: 2019-08-01 | H40: 2019-08-31 | I40: 31 | J40: 6 | K40: 2019-09-02 | L40: =VLOOKUP(YEAR(G40),Справочники!$C$3:$I$33,7,FALSE) -> 365 | M40: =VLOOKUP(YEAR(G40),Справочники!$C$3:$F$33,4,FALSE) -> 23995 | N40: 2159101.878 | O40: 2159101.878 | P40: 0 | Q40: 21088.21423 | R40: 2906.785767 | S40: 21088.21423 | T40: 0 | U40: 0 | V40: 2156195.092 | W40: 0
F41: 31 | G41: 2019-09-01 | H41: 2019-09-30 | I41: 30 | J41: 1 | K41: 2019-09-30 | L41: =VLOOKUP(YEAR(G41),Справочники!$C$3:$I$33,7,FALSE) -> 365 | M41: =VLOOKUP(YEAR(G41),Справочники!$C$3:$F$33,4,FALSE) -> 23995 | N41: 2156195.092 | O41: 2156195.092 | P41: 0 | Q41: 20380.47416 | R41: 3614.525841 | S41: 20380.47416 | T41: 0 | U41: 0 | V41: 2152580.566 | W41: 0
F42: 32 | G42: 2019-10-01 | H42: 2019-10-31 | I42: 31 | J42: 4 | K42: 2019-10-31 | L42: =VLOOKUP(YEAR(G42),Справочники!$C$3:$I$33,7,FALSE) -> 365 | M42: =VLOOKUP(YEAR(G42),Справочники!$C$3:$F$33,4,FALSE) -> 23995 | N42: 2152580.566 | O42: 2152580.566 | P42: 0 | Q42: 21024.51978 | R42: 2970.480221 | S42: 21024.51978 | T42: 0 | U42: 0 | V42: 2149610.086 | W42: 0
F43: 33 | G43: 2019-11-01 | H43: 2019-11-30 | I43: 30 | J43: 6 | K43: 2019-12-02 | L43: =VLOOKUP(YEAR(G43),Справочники!$C$3:$I$33,7,FALSE) -> 365 | M43: =VLOOKUP(YEAR(G43),Справочники!$C$3:$F$33,4,FALSE) -> 23995 | N43: 2149610.086 | O43: 2149610.086 | P43: 0 | Q43: 20318.23232 | R43: 3676.767679 | S43: 20318.23232 | T43: 0 | U43: 0 | V43: 2145933.318 | W43: 0
F44: 34 | G44: 2019-12-01 | H44: 2019-12-31 | I44: 31 | J44: 2 | K44: 2019-12-31 | L44: =VLOOKUP(YEAR(G44),Справочники!$C$3:$I$33,7,FALSE) -> 365 | M44: =VLOOKUP(YEAR(G44),Справочники!$C$3:$F$33,4,FALSE) -> 23995 | N44: 2145933.318 | O44: 2145933.318 | P44: 0 | Q44: 20959.59529 | R44: 3035.404711 | S44: 20959.59529 | T44: 0 | U44: 0 | V44: 2142897.914 | W44: 0
F45: 35 | G45: 2020-01-01 | H45: 2020-01-31 | I45: 31 | J45: 5 | K45: 2020-01-31 | L45: =VLOOKUP(YEAR(G45),Справочники!$C$3:$I$33,7,FALSE) -> 366 | M45: =VLOOKUP(YEAR(G45),Справочники!$C$3:$F$33,4,FALSE) -> 24810 | N45: 2142897.914 | O45: 2142897.914 | P45: 0 | Q45: 20872.76247 | R45: 3937.237534 | S45: 20872.76247 | T45: 0 | U45: 0 | V45: 2138960.676 | W45: 0
F46: 36 | G46: 2020-02-01 | H46: 2020-02-29 | I46: 29 | J46: 6 | K46: 2020-03-02 | L46: =VLOOKUP(YEAR(G46),Справочники!$C$3:$I$33,7,FALSE) -> 366 | M46: =VLOOKUP(YEAR(G46),Справочники!$C$3:$F$33,4,FALSE) -> 24810 | N46: 2138960.676 | O46: 2138960.676 | P46: 0 | Q46: 19490.25644 | R46: 5319.743565 | S46: 19490.25644 | T46: 0 | U46: 0 | V46: 2133640.933 | W46: 0
F47: 37 | G47: 2020-03-01 | H47: 2020-03-31 | I47: 31 | J47: 2 | K47: 2020-03-31 | L47: =VLOOKUP(YEAR(G47),Справочники!$C$3:$I$33,7,FALSE) -> 366 | M47: =VLOOKUP(YEAR(G47),Справочники!$C$3:$F$33,4,FALSE) -> 24810 | N47: 2133640.933 | O47: 2133640.933 | P47: 0 | Q47: 20782.59542 | R47: 4027.404576 | S47: 20782.59542 | T47: 0 | U47: 0 | V47: 2129613.528 | W47: 0
F48: 38 | G48: 2020-04-01 | H48: 2020-04-30 | I48: 30 | J48: 4 | K48: 2020-04-30 | L48: =VLOOKUP(YEAR(G48),Справочники!$C$3:$I$33,7,FALSE) -> 366 | M48: =VLOOKUP(YEAR(G48),Справочники!$C$3:$F$33,4,FALSE) -> 24810 | N48: 2129613.528 | O48: 2129613.528 | P48: 0 | Q48: 20074.22588 | R48: 4735.77412 | S48: 20074.22588 | T48: 0 | U48: 0 | V48: 2124877.754 | W48: 0
F49: 39 | G49: 2020-05-01 | H49: 2020-05-31 | I49: 31 | J49: 7 | K49: 2020-06-01 | L49: =VLOOKUP(YEAR(G49),Справочники!$C$3:$I$33,7,FALSE) -> 366 | M49: =VLOOKUP(YEAR(G49),Справочники!$C$3:$F$33,4,FALSE) -> 24810 | N49: 2124877.754 | O49: 2124877.754 | P49: 0 | Q49: 20697.23823 | R49: 4112.761768 | S49: 20697.23823 | T49: 0 | U49: 0 | V49: 2120764.992 | W49: 0
F50: 40 | G50: 2020-06-01 | H50: 2020-06-30 | I50: 30 | J50: 2 | K50: 2020-06-30 | L50: =VLOOKUP(YEAR(G50),Справочники!$C$3:$I$33,7,FALSE) -> 366 | M50: =VLOOKUP(YEAR(G50),Справочники!$C$3:$F$33,4,FALSE) -> 24810 | N50: 2120764.992 | O50: 2120764.992 | P50: 0 | Q50: 19990.81755 | R50: 4819.18245 | S50: 19990.81755 | T50: 0 | U50: 0 | V50: 2115945.81 | W50: 0
F51: 41 | G51: 2020-07-01 | H51: 2020-07-31 | I51: 31 | J51: 5 | K51: 2020-07-31 | L51: =VLOOKUP(YEAR(G51),Справочники!$C$3:$I$33,7,FALSE) -> 366 | M51: =VLOOKUP(YEAR(G51),Справочники!$C$3:$F$33,4,FALSE) -> 24810 | N51: 2115945.81 | O51: 2115945.81 | P51: 0 | Q51: 20610.23719 | R51: 4199.762809 | S51: 20610.23719 | T51: 0 | U51: 0 | V51: 2111746.047 | W51: 0
F52: 42 | G52: 2020-08-01 | H52: 2020-08-31 | I52: 31 | J52: 1 | K52: 2020-08-31 | L52: =VLOOKUP(YEAR(G52),Справочники!$C$3:$I$33,7,FALSE) -> 366 | M52: =VLOOKUP(YEAR(G52),Справочники!$C$3:$F$33,4,FALSE) -> 24810 | N52: 2111746.047 | O52: 2111746.047 | P52: 0 | Q52: 20569.32967 | R52: 4240.670335 | S52: 20569.32967 | T52: 0 | U52: 0 | V52: 2107505.377 | W52: 0
F53: 43 | G53: 2020-09-01 | H53: 2020-09-30 | I53: 30 | J53: 3 | K53: 2020-09-30 | L53: =VLOOKUP(YEAR(G53),Справочники!$C$3:$I$33,7,FALSE) -> 366 | M53: =VLOOKUP(YEAR(G53),Справочники!$C$3:$F$33,4,FALSE) -> 24810 | N53: 2107505.377 | O53: 2107505.377 | P53: 0 | Q53: 19865.82937 | R53: 4944.17063 | S53: 19865.82937 | T53: 0 | U53: 0 | V53: 2102561.206 | W53: 0
F54: 44 | G54: 2020-10-01 | H54: 2020-10-31 | I54: 31 | J54: 6 | K54: 2020-11-02 | L54: =VLOOKUP(YEAR(G54),Справочники!$C$3:$I$33,7,FALSE) -> 366 | M54: =VLOOKUP(YEAR(G54),Справочники!$C$3:$F$33,4,FALSE) -> 24810 | N54: 2102561.206 | O54: 2102561.206 | P54: 0 | Q54: 20479.8653 | R54: 4330.134701 | S54: 20479.8653 | T54: 0 | U54: 0 | V54: 2098231.071 | W54: 0
F55: 45 | G55: 2020-11-01 | H55: 2020-11-30 | I55: 30 | J55: 1 | K55: 2020-11-30 | L55: =VLOOKUP(YEAR(G55),Справочники!$C$3:$I$33,7,FALSE) -> 366 | M55: =VLOOKUP(YEAR(G55),Справочники!$C$3:$F$33,4,FALSE) -> 24810 | N55: 2098231.071 | O55: 2098231.071 | P55: 0 | Q55: 19778.40764 | R55: 5031.592361 | S55: 19778.40764 | T55: 0 | U55: 0 | V55: 2093199.479 | W55: 0
F56: 46 | G56: 2020-12-01 | H56: 2020-12-31 | I56: 31 | J56: 4 | K56: 2020-12-31 | L56: =VLOOKUP(YEAR(G56),Справочники!$C$3:$I$33,7,FALSE) -> 366 | M56: =VLOOKUP(YEAR(G56),Справочники!$C$3:$F$33,4,FALSE) -> 24810 | N56: 2093199.479 | O56: 2093199.479 | P56: 0 | Q56: 20388.67798 | R56: 4421.322015 | S56: 20388.67798 | T56: 0 | U56: 0 | V56: 2088778.157 | W56: 0
F57: 47 | G57: 2021-01-01 | H57: 2021-01-31 | I57: 31 | J57: 7 | K57: 2021-02-01 | L57: =VLOOKUP(YEAR(G57),Справочники!$C$3:$I$33,7,FALSE) -> 365 | M57: =VLOOKUP(YEAR(G57),Справочники!$C$3:$F$33,4,FALSE) -> 25580 | N57: 2088778.157 | O57: 2088778.157 | P57: 0 | Q57: 20401.35378 | R57: 5178.646221 | S57: 20401.35378 | T57: 0 | U57: 0 | V57: 2083599.511 | W57: 0
F58: 48 | G58: 2021-02-01 | H58: 2021-02-28 | I58: 28 | J58: 7 | K58: 2021-03-01 | L58: =VLOOKUP(YEAR(G58),Справочники!$C$3:$I$33,7,FALSE) -> 365 | M58: =VLOOKUP(YEAR(G58),Справочники!$C$3:$F$33,4,FALSE) -> 25580 | N58: 2083599.511 | O58: 2083599.511 | P58: 0 | Q58: 18381.34363 | R58: 7198.656371 | S58: 18381.34363 | T58: 0 | U58: 0 | V58: 2076400.854 | W58: 0
F59: 49 | G59: 2021-03-01 | H59: 2021-03-31 | I59: 31 | J59: 3 | K59: 2021-03-31 | L59: =VLOOKUP(YEAR(G59),Справочники!$C$3:$I$33,7,FALSE) -> 365 | M59: =VLOOKUP(YEAR(G59),Справочники!$C$3:$F$33,4,FALSE) -> 25580 | N59: 2076400.854 | O59: 2076400.854 | P59: 0 | Q59: 20280.46314 | R59: 5299.536861 | S59: 20280.46314 | T59: 0 | U59: 0 | V59: 2071101.317 | W59: 0
F60: 50 | G60: 2021-04-01 | H60: 2021-04-30 | I60: 30 | J60: 5 | K60: 2021-04-30 | L60: =VLOOKUP(YEAR(G60),Справочники!$C$3:$I$33,7,FALSE) -> 365 | M60: =VLOOKUP(YEAR(G60),Справочники!$C$3:$F$33,4,FALSE) -> 25580 | N60: 2071101.317 | O60: 2071101.317 | P60: 0 | Q60: 19576.16314 | R60: 6003.836862 | S60: 19576.16314 | T60: 0 | U60: 0 | V60: 2065097.481 | W60: 0
F61: 51 | G61: 2021-05-01 | H61: 2021-05-31 | I61: 31 | J61: 1 | K61: 2021-05-31 | L61: =VLOOKUP(YEAR(G61),Справочники!$C$3:$I$33,7,FALSE) -> 365 | M61: =VLOOKUP(YEAR(G61),Справочники!$C$3:$F$33,4,FALSE) -> 25580 | N61: 2065097.481 | O61: 2065097.481 | P61: 0 | Q61: 20170.06169 | R61: 5409.938306 | S61: 20170.06169 | T61: 0 | U61: 0 | V61: 2059687.542 | W61: 0
F62: 52 | G62: 2021-06-01 | H62: 2021-06-30 | I62: 30 | J62: 3 | K62: 2021-06-30 | L62: =VLOOKUP(YEAR(G62),Справочники!$C$3:$I$33,7,FALSE) -> 365 | M62: =VLOOKUP(YEAR(G62),Справочники!$C$3:$F$33,4,FALSE) -> 25580 | N62: 2059687.542 | O62: 2059687.542 | P62: 0 | Q62: 19468.27951 | R62: 6111.720491 | S62: 19468.27951 | T62: 0 | U62: 0 | V62: 2053575.822 | W62: 0
F63: 53 | G63: 2021-07-01 | H63: 2021-07-31 | I63: 31 | J63: 6 | K63: 2021-08-02 | L63: =VLOOKUP(YEAR(G63),Справочники!$C$3:$I$33,7,FALSE) -> 365 | M63: =VLOOKUP(YEAR(G63),Справочники!$C$3:$F$33,4,FALSE) -> 25580 | N63: 2053575.822 | O63: 2053575.822 | P63: 0 | Q63: 20057.52823 | R63: 5522.471768 | S63: 20057.52823 | T63: 0 | U63: 0 | V63: 2048053.35 | W63: 0
F64: 54 | G64: 2021-08-01 | H64: 2021-08-31 | I64: 31 | J64: 2 | K64: 2021-08-31 | L64: =VLOOKUP(YEAR(G64),Справочники!$C$3:$I$33,7,FALSE) -> 365 | M64: =VLOOKUP(YEAR(G64),Справочники!$C$3:$F$33,4,FALSE) -> 25580 | N64: 2048053.35 | O64: 2048053.35 | P64: 0 | Q64: 20003.58957 | R64: 5576.41043 | S64: 20003.58957 | T64: 0 | U64: 0 | V64: 2042476.94 | W64: 0
F65: 55 | G65: 2021-09-01 | H65: 2021-09-30 | I65: 30 | J65: 4 | K65: 2021-09-30 | L65: =VLOOKUP(YEAR(G65),Справочники!$C$3:$I$33,7,FALSE) -> 365 | M65: =VLOOKUP(YEAR(G65),Справочники!$C$3:$F$33,4,FALSE) -> 25580 | N65: 2042476.94 | O65: 2042476.94 | P65: 0 | Q65: 19305.60395 | R65: 6274.39605 | S65: 19305.60395 | T65: 0 | U65: 0 | V65: 2036202.544 | W65: 0
F66: 56 | G66: 2021-10-01 | H66: 2021-10-31 | I66: 31 | J66: 7 | K66: 2021-11-01 | L66: =VLOOKUP(YEAR(G66),Справочники!$C$3:$I$33,7,FALSE) -> 365 | M66: =VLOOKUP(YEAR(G66),Справочники!$C$3:$F$33,4,FALSE) -> 25580 | N66: 2036202.544 | O66: 2036202.544 | P66: 0 | Q66: 19887.84128 | R66: 5692.158718 | S66: 19887.84128 | T66: 0 | U66: 0 | V66: 2030510.385 | W66: 0
F67: 57 | G67: 2021-11-01 | H67: 2021-11-30 | I67: 30 | J67: 2 | K67: 2021-11-30 | L67: =VLOOKUP(YEAR(G67),Справочники!$C$3:$I$33,7,FALSE) -> 365 | M67: =VLOOKUP(YEAR(G67),Справочники!$C$3:$F$33,4,FALSE) -> 25580 | N67: 2030510.385 | O67: 2030510.385 | P67: 0 | Q67: 19192.49542 | R67: 6387.504582 | S67: 19192.49542 | T67: 0 | U67: 0 | V67: 2024122.88 | W67: 0
F68: 58 | G68: 2021-12-01 | H68: 2021-12-31 | I68: 31 | J68: 5 | K68: 2021-12-31 | L68: =VLOOKUP(YEAR(G68),Справочники!$C$3:$I$33,7,FALSE) -> 365 | M68: =VLOOKUP(YEAR(G68),Справочники!$C$3:$F$33,4,FALSE) -> 25580 | N68: 2024122.88 | O68: 2024122.88 | P68: 0 | Q68: 19769.85772 | R68: 5810.142279 | S68: 19769.85772 | T68: 0 | U68: 0 | V68: 2018312.738 | W68: 0
F69: 59 | G69: 2022-01-01 | H69: 2022-01-31 | I69: 31 | J69: 1 | K69: 2022-01-31 | L69: =VLOOKUP(YEAR(G69),Справочники!$C$3:$I$33,7,FALSE) -> 365 | M69: =VLOOKUP(YEAR(G69),Справочники!$C$3:$F$33,4,FALSE) -> 26345 | N69: 2018312.738 | O69: 2018312.738 | P69: 0 | Q69: 19713.10934 | R69: 6631.890655 | S69: 19713.10934 | T69: 0 | U69: 0 | V69: 2011680.847 | W69: 0
F70: 60 | G70: 2022-02-01 | H70: 2022-02-28 | I70: 28 | J70: 1 | K70: 2022-02-28 | L70: =VLOOKUP(YEAR(G70),Справочники!$C$3:$I$33,7,FALSE) -> 365 | M70: =VLOOKUP(YEAR(G70),Справочники!$C$3:$F$33,4,FALSE) -> 26345 | N70: 2011680.847 | O70: 2011680.847 | P70: 0 | Q70: 17746.88309 | R70: 8598.116909 | S70: 17746.88309 | T70: 0 | U70: 0 | V70: 2003082.73 | W70: 0
F71: 61 | G71: 2022-03-01 | H71: 2022-03-31 | I71: 31 | J71: 4 | K71: 2022-03-31 | L71: =VLOOKUP(YEAR(G71),Справочники!$C$3:$I$33,7,FALSE) -> 365 | M71: =VLOOKUP(YEAR(G71),Справочники!$C$3:$F$33,4,FALSE) -> 26345 | N71: 2003082.73 | O71: 2003082.73 | P71: 0 | Q71: 19564.35598 | R71: 6780.644017 | S71: 19564.35598 | T71: 0 | U71: 0 | V71: 1996302.086 | W71: 0
F72: 62 | G72: 2022-04-01 | H72: 2022-04-30 | I72: 30 | J72: 6 | K72: 2022-05-02 | L72: =VLOOKUP(YEAR(G72),Справочники!$C$3:$I$33,7,FALSE) -> 365 | M72: =VLOOKUP(YEAR(G72),Справочники!$C$3:$F$33,4,FALSE) -> 26345 | N72: 1996302.086 | O72: 1996302.086 | P72: 0 | Q72: 18869.15671 | R72: 7475.843293 | S72: 18869.15671 | T72: 0 | U72: 0 | V72: 1988826.243 | W72: 0
F73: 63 | G73: 2022-05-01 | H73: 2022-05-31 | I73: 31 | J73: 2 | K73: 2022-05-31 | L73: =VLOOKUP(YEAR(G73),Справочники!$C$3:$I$33,7,FALSE) -> 365 | M73: =VLOOKUP(YEAR(G73),Справочники!$C$3:$F$33,4,FALSE) -> 26345 | N73: 1988826.243 | O73: 1988826.243 | P73: 0 | Q73: 19425.11111 | R73: 6919.888886 | S73: 19425.11111 | T73: 0 | U73: 0 | V73: 1981906.354 | W73: 0
F74: 64 | G74: 2022-06-01 | H74: 2022-06-30 | I74: 30 | J74: 4 | K74: 2022-06-30 | L74: =VLOOKUP(YEAR(G74),Справочники!$C$3:$I$33,7,FALSE) -> 365 | M74: =VLOOKUP(YEAR(G74),Справочники!$C$3:$F$33,4,FALSE) -> 26345 | N74: 1981906.354 | O74: 1981906.354 | P74: 0 | Q74: 18733.08746 | R74: 7611.912542 | S74: 18733.08746 | T74: 0 | U74: 0 | V74: 1974294.442 | W74: 0
F75: 65 | G75: 2022-07-01 | H75: 2022-07-31 | I75: 31 | J75: 7 | K75: 2022-08-01 | L75: =VLOOKUP(YEAR(G75),Справочники!$C$3:$I$33,7,FALSE) -> 365 | M75: =VLOOKUP(YEAR(G75),Справочники!$C$3:$F$33,4,FALSE) -> 26345 | N75: 1974294.442 | O75: 1974294.442 | P75: 0 | Q75: 19283.17722 | R75: 7061.822782 | S75: 19283.17722 | T75: 0 | U75: 0 | V75: 1967232.619 | W75: =P75+U75-T75 -> 0
F76: 66 | G76: 2022-08-01 | H76: =EOMONTH(G76,0) -> 2022-08-31 | I76: 31 | J76: =WEEKDAY(H76,11) -> 3 | K76: =WORKDAY(H76,IF(OR(J76=6,J76=7),1,0)) -> 2022-08-31 | L76: =VLOOKUP(YEAR(G76),Справочники!$C$3:$I$33,7,FALSE) -> 365 | M76: =VLOOKUP(YEAR(G76),Справочники!$C$3:$F$33,4,FALSE) -> 26345 | N76: =O76+P76 -> 1967232.619 | O76: 1967232.619 | P76: 0 | Q76: 19214.20352 | R76: =MIN(M76-T76-S76,O76) -> 7130.796476 | S76: =MIN(M76-T76,Q76) -> 19214.20352 | T76: =MIN(M76,P76) -> 0 | U76: 0 | V76: =O76-R76 -> 1960101.822 | W76: 0
F77: 67 | G77: =H76+1 -> 2022-09-01 | H77: 2022-09-30 | I77: =H77-G77+1 -> 30 | J77: 5 | K77: 2022-09-30 | L77: =VLOOKUP(YEAR(G77),Справочники!$C$3:$I$33,7,FALSE) -> 365 | M77: =VLOOKUP(YEAR(G77),Справочники!$C$3:$F$33,4,FALSE) -> 26345 | N77: 1960101.822 | O77: =V76 -> 1960101.822 | P77: 0 | Q77: =O77*$D$4/L77*I77 -> 18526.98983 | R77: 7818.010172 | S77: 18526.98983 | T77: 0 | U77: =MAX(Q77-S77,0) -> 0 | V77: 1952283.812 | W77: 0
F78: 68 | G78: 2022-10-01 | H78: 2022-10-31 | I78: 31 | J78: 1 | K78: 2022-10-31 | L78: =VLOOKUP(YEAR(G78),Справочники!$C$3:$I$33,7,FALSE) -> 365 | M78: =VLOOKUP(YEAR(G78),Справочники!$C$3:$F$33,4,FALSE) -> 26345 | N78: 1952283.812 | O78: 1952283.812 | P78: 0 | Q78: 19068.19669 | R78: 7276.803313 | S78: 19068.19669 | T78: 0 | U78: 0 | V78: 1945007.009 | W78: 0
F79: 69 | G79: 2022-11-01 | H79: 2022-11-30 | I79: 30 | J79: 3 | K79: 2022-11-30 | L79: =VLOOKUP(YEAR(G79),Справочники!$C$3:$I$33,7,FALSE) -> 365 | M79: =VLOOKUP(YEAR(G79),Справочники!$C$3:$F$33,4,FALSE) -> 26345 | N79: 1945007.009 | O79: 1945007.009 | P79: 0 | Q79: 18384.31282 | R79: 7960.687176 | S79: 18384.31282 | T79: 0 | U79: 0 | V79: 1937046.322 | W79: 0
F80: 70 | G80: 2022-12-01 | H80: 2022-12-31 | I80: 31 | J80: 6 | K80: 2023-01-02 | L80: =VLOOKUP(YEAR(G80),Справочники!$C$3:$I$33,7,FALSE) -> 365 | M80: =VLOOKUP(YEAR(G80),Справочники!$C$3:$F$33,4,FALSE) -> 26345 | N80: 1937046.322 | O80: 1937046.322 | P80: 0 | Q80: 18919.37024 | R80: 7425.629762 | S80: 18919.37024 | T80: 0 | U80: 0 | V80: 1929620.692 | W80: 0
F81: 71 | G81: 2023-01-01 | H81: 2023-01-31 | I81: 31 | J81: 2 | K81: 2023-01-31 | L81: =VLOOKUP(YEAR(G81),Справочники!$C$3:$I$33,7,FALSE) -> 365 | M81: =VLOOKUP(YEAR(G81),Справочники!$C$3:$F$33,4,FALSE) -> 27080 | N81: 1929620.692 | O81: 1929620.692 | P81: 0 | Q81: 18846.8432 | R81: 8233.156803 | S81: 18846.8432 | T81: 0 | U81: 0 | V81: 1921387.535 | W81: 0
F82: 72 | G82: 2023-02-01 | H82: 2023-02-28 | I82: 28 | J82: 2 | K82: 2023-02-28 | L82: =VLOOKUP(YEAR(G82),Справочники!$C$3:$I$33,7,FALSE) -> 365 | M82: =VLOOKUP(YEAR(G82),Справочники!$C$3:$F$33,4,FALSE) -> 27080 | N82: 1921387.535 | O82: 1921387.535 | P82: 0 | Q82: 16950.32291 | R82: 10129.67709 | S82: 16950.32291 | T82: 0 | U82: 0 | V82: 1911257.858 | W82: 0
F83: 73 | G83: 2023-03-01 | H83: 2023-03-31 | I83: 31 | J83: 5 | K83: 2023-03-31 | L83: =VLOOKUP(YEAR(G83),Справочники!$C$3:$I$33,7,FALSE) -> 365 | M83: =VLOOKUP(YEAR(G83),Справочники!$C$3:$F$33,4,FALSE) -> 27080 | N83: 1911257.858 | O83: 1911257.858 | P83: 0 | Q83: 18667.49113 | R83: 8412.508865 | S83: 18667.49113 | T83: 0 | U83: 0 | V83: 1902845.349 | W83: 0
F84: 74 | G84: 2023-04-01 | H84: 2023-04-30 | I84: 30 | J84: 7 | K84: 2023-05-01 | L84: =VLOOKUP(YEAR(G84),Справочники!$C$3:$I$33,7,FALSE) -> 365 | M84: =VLOOKUP(YEAR(G84),Справочники!$C$3:$F$33,4,FALSE) -> 27080 | N84: 1902845.349 | O84: 1902845.349 | P84: 0 | Q84: 17985.79851 | R84: 9094.201494 | S84: 17985.79851 | T84: 0 | U84: 0 | V84: 1893751.148 | W84: 0
F85: 75 | G85: 2023-05-01 | H85: 2023-05-31 | I85: 31 | J85: 3 | K85: 2023-05-31 | L85: =VLOOKUP(YEAR(G85),Справочники!$C$3:$I$33,7,FALSE) -> 365 | M85: =VLOOKUP(YEAR(G85),Справочники!$C$3:$F$33,4,FALSE) -> 27080 | N85: 1893751.148 | O85: 1893751.148 | P85: 0 | Q85: 18496.50094 | R85: 8583.499064 | S85: 18496.50094 | T85: 0 | U85: 0 | V85: 1885167.649 | W85: 0
F86: 76 | G86: 2023-06-01 | H86: 2023-06-30 | I86: 30 | J86: 5 | K86: 2023-06-30 | L86: =VLOOKUP(YEAR(G86),Справочники!$C$3:$I$33,7,FALSE) -> 365 | M86: =VLOOKUP(YEAR(G86),Справочники!$C$3:$F$33,4,FALSE) -> 27080 | N86: 1885167.649 | O86: 1885167.649 | P86: 0 | Q86: 17818.70791 | R86: 9261.292088 | S86: 17818.70791 | T86: 0 | U86: 0 | V86: 1875906.357 | W86: 0
F87: 77 | G87: 2023-07-01 | H87: 2023-07-31 | I87: 31 | J87: 1 | K87: 2023-07-31 | L87: =VLOOKUP(YEAR(G87),Справочники!$C$3:$I$33,7,FALSE) -> 365 | M87: =VLOOKUP(YEAR(G87),Справочники!$C$3:$F$33,4,FALSE) -> 27080 | N87: 1875906.357 | O87: 1875906.357 | P87: 0 | Q87: 18322.20866 | R87: 8757.791339 | S87: 18322.20866 | T87: 0 | U87: 0 | V87: 1867148.565 | W87: 0
F88: 78 | G88: 2023-08-01 | H88: 2023-08-31 | I88: 31 | J88: 4 | K88: 2023-08-31 | L88: =VLOOKUP(YEAR(G88),Справочники!$C$3:$I$33,7,FALSE) -> 365 | M88: =VLOOKUP(YEAR(G88),Справочники!$C$3:$F$33,4,FALSE) -> 27080 | N88: 1867148.565 | O88: 1867148.565 | P88: 0 | Q88: 18236.67023 | R88: 8843.329767 | S88: 18236.67023 | T88: 0 | U88: 0 | V88: 1858305.235 | W88: 0
F89: 79 | G89: 2023-09-01 | H89: 2023-09-30 | I89: 30 | J89: 6 | K89: 2023-10-02 | L89: =VLOOKUP(YEAR(G89),Справочники!$C$3:$I$33,7,FALSE) -> 365 | M89: =VLOOKUP(YEAR(G89),Справочники!$C$3:$F$33,4,FALSE) -> 27080 | N89: 1858305.235 | O89: 1858305.235 | P89: 0 | Q89: 17564.80291 | R89: 9515.197089 | S89: 17564.80291 | T89: 0 | U89: 0 | V89: 1848790.038 | W89: 0
F90: 80 | G90: 2023-10-01 | H90: 2023-10-31 | I90: 31 | J90: 2 | K90: 2023-10-31 | L90: =VLOOKUP(YEAR(G90),Справочники!$C$3:$I$33,7,FALSE) -> 365 | M90: =VLOOKUP(YEAR(G90),Справочники!$C$3:$F$33,4,FALSE) -> 27080 | N90: 1848790.038 | O90: 1848790.038 | P90: 0 | Q90: 18057.36024 | R90: 9022.639762 | S90: 18057.36024 | T90: 0 | U90: 0 | V90: 1839767.399 | W90: 0
F91: 81 | G91: 2023-11-01 | H91: 2023-11-30 | I91: 30 | J91: 4 | K91: 2023-11-30 | L91: =VLOOKUP(YEAR(G91),Справочники!$C$3:$I$33,7,FALSE) -> 365 | M91: =VLOOKUP(YEAR(G91),Справочники!$C$3:$F$33,4,FALSE) -> 27080 | N91: 1839767.399 | O91: 1839767.399 | P91: 0 | Q91: 17389.58226 | R91: 9690.417739 | S91: 17389.58226 | T91: 0 | U91: 0 | V91: 1830076.981 | W91: 0
F92: 82 | G92: 2023-12-01 | H92: 2023-12-31 | I92: 31 | J92: 7 | K92: 2024-01-01 | L92: =VLOOKUP(YEAR(G92),Справочники!$C$3:$I$33,7,FALSE) -> 365 | M92: =VLOOKUP(YEAR(G92),Справочники!$C$3:$F$33,4,FALSE) -> 27080 | N92: 1830076.981 | O92: 1830076.981 | P92: 0 | Q92: 17874.5875 | R92: 9205.412502 | S92: 17874.5875 | T92: 0 | U92: 0 | V92: 1820871.568 | W92: 0
F93: 83 | G93: 2024-01-01 | H93: 2024-01-31 | I93: 31 | J93: 3 | K93: 2024-01-31 | L93: =VLOOKUP(YEAR(G93),Справочники!$C$3:$I$33,7,FALSE) -> 366 | M93: =VLOOKUP(YEAR(G93),Справочники!$C$3:$F$33,4,FALSE) -> 27810 | N93: 1820871.568 | O93: 1820871.568 | P93: 0 | Q93: 17736.08509 | R93: 10073.91491 | S93: 17736.08509 | T93: 0 | U93: 0 | V93: 1810797.653 | W93: 0
F94: 84 | G94: 2024-02-01 | H94: 2024-02-29 | I94: 29 | J94: 4 | K94: 2024-02-29 | L94: =VLOOKUP(YEAR(G94),Справочники!$C$3:$I$33,7,FALSE) -> 366 | M94: =VLOOKUP(YEAR(G94),Справочники!$C$3:$F$33,4,FALSE) -> 27810 | N94: 1810797.653 | O94: 1810797.653 | P94: 0 | Q94: 16500.0278 | R94: 11309.9722 | S94: 16500.0278 | T94: 0 | U94: 0 | V94: 1799487.681 | W94: 0
F95: 85 | G95: 2024-03-01 | H95: 2024-03-31 | I95: 31 | J95: 7 | K95: 2024-04-01 | L95: =VLOOKUP(YEAR(G95),Справочники!$C$3:$I$33,7,FALSE) -> 366 | M95: =VLOOKUP(YEAR(G95),Справочники!$C$3:$F$33,4,FALSE) -> 27810 | N95: 1799487.681 | O95: 1799487.681 | P95: 0 | Q95: 17527.79668 | R95: 10282.20332 | S95: 17527.79668 | T95: 0 | U95: 0 | V95: 1789205.478 | W95: 0
F96: 86 | G96: 2024-04-01 | H96: 2024-04-30 | I96: 30 | J96: 2 | K96: 2024-04-30 | L96: =VLOOKUP(YEAR(G96),Справочники!$C$3:$I$33,7,FALSE) -> 366 | M96: =VLOOKUP(YEAR(G96),Справочники!$C$3:$F$33,4,FALSE) -> 27810 | N96: 1789205.478 | O96: 1789205.478 | P96: 0 | Q96: 16865.46147 | R96: 10944.53853 | S96: 16865.46147 | T96: 0 | U96: 0 | V96: 1778260.939 | W96: 0
F97: 87 | G97: 2024-05-01 | H97: 2024-05-31 | I97: 31 | J97: 5 | K97: 2024-05-31 | L97: =VLOOKUP(YEAR(G97),Справочники!$C$3:$I$33,7,FALSE) -> 366 | M97: =VLOOKUP(YEAR(G97),Справочники!$C$3:$F$33,4,FALSE) -> 27810 | N97: 1778260.939 | O97: 1778260.939 | P97: 0 | Q97: 17321.03893 | R97: 10488.96107 | S97: 17321.03893 | T97: 0 | U97: 0 | V97: 1767771.978 | W97: 0
F98: 88 | G98: 2024-06-01 | H98: 2024-06-30 | I98: 30 | J98: 7 | K98: 2024-07-01 | L98: =VLOOKUP(YEAR(G98),Справочники!$C$3:$I$33,7,FALSE) -> 366 | M98: =VLOOKUP(YEAR(G98),Справочники!$C$3:$F$33,4,FALSE) -> 27810 | N98: 1767771.978 | O98: 1767771.978 | P98: 0 | Q98: 16663.42439 | R98: 11146.57561 | S98: 16663.42439 | T98: 0 | U98: 0 | V98: 1756625.403 | W98: 0
F99: 89 | G99: 2024-07-01 | H99: 2024-07-31 | I99: 31 | J99: 3 | K99: 2024-07-31 | L99: =VLOOKUP(YEAR(G99),Справочники!$C$3:$I$33,7,FALSE) -> 366 | M99: =VLOOKUP(YEAR(G99),Справочники!$C$3:$F$33,4,FALSE) -> 27810 | N99: 1756625.403 | O99: 1756625.403 | P99: 0 | Q99: 17110.29935 | R99: 10699.70065 | S99: 17110.29935 | T99: 0 | U99: 0 | V99: 1745925.702 | W99: 0
F100: 90 | G100: 2024-08-01 | H100: 2024-08-31 | I100: 31 | J100: 6 | K100: 2024-09-02 | L100: =VLOOKUP(YEAR(G100),Справочники!$C$3:$I$33,7,FALSE) -> 366 | M100: =VLOOKUP(YEAR(G100),Справочники!$C$3:$F$33,4,FALSE) -> 27810 | N100: 1745925.702 | O100: 1745925.702 | P100: 0 | Q100: 17006.07958 | R100: 10803.92042 | S100: 17006.07958 | T100: 0 | U100: 0 | V100: 1735121.782 | W100: 0
F101: 91 | G101: 2024-09-01 | H101: 2024-09-30 | I101: 30 | J101: 1 | K101: 2024-09-30 | L101: =VLOOKUP(YEAR(G101),Справочники!$C$3:$I$33,7,FALSE) -> 366 | M101: =VLOOKUP(YEAR(G101),Справочники!$C$3:$F$33,4,FALSE) -> 27810 | N101: 1735121.782 | O101: 1735121.782 | P101: 0 | Q101: 16355.65614 | R101: 11454.34386 | S101: 16355.65614 | T101: 0 | U101: 0 | V101: 1723667.438 | W101: 0
F102: 92 | G102: 2024-10-01 | H102: 2024-10-31 | I102: 31 | J102: 4 | K102: 2024-10-31 | L102: =VLOOKUP(YEAR(G102),Справочники!$C$3:$I$33,7,FALSE) -> 366 | M102: =VLOOKUP(YEAR(G102),Справочники!$C$3:$F$33,4,FALSE) -> 27810 | N102: 1723667.438 | O102: 1723667.438 | P102: 0 | Q102: 16789.27436 | R102: 11020.72564 | S102: 16789.27436 | T102: 0 | U102: 0 | V102: 1712646.712 | W102: 0
F103: 93 | G103: 2024-11-01 | H103: 2024-11-30 | I103: 30 | J103: 6 | K103: 2024-12-02 | L103: =VLOOKUP(YEAR(G103),Справочники!$C$3:$I$33,7,FALSE) -> 366 | M103: =VLOOKUP(YEAR(G103),Справочники!$C$3:$F$33,4,FALSE) -> 27810 | N103: 1712646.712 | O103: 1712646.712 | P103: 0 | Q103: 16143.80098 | R103: 11666.19902 | S103: 16143.80098 | T103: 0 | U103: 0 | V103: 1700980.513 | W103: 0
F104: 94 | G104: 2024-12-01 | H104: 2024-12-31 | I104: 31 | J104: 2 | K104: 2024-12-31 | L104: =VLOOKUP(YEAR(G104),Справочники!$C$3:$I$33,7,FALSE) -> 366 | M104: =VLOOKUP(YEAR(G104),Справочники!$C$3:$F$33,4,FALSE) -> 27810 | N104: 1700980.513 | O104: 1700980.513 | P104: 0 | Q104: 16568.2938 | R104: 11241.7062 | S104: 16568.2938 | T104: 0 | U104: 0 | V104: 1689738.807 | W104: 0
F105: 95 | G105: 2025-01-01 | H105: 2025-01-31 | I105: 31 | J105: 5 | K105: 2025-01-31 | L105: =VLOOKUP(YEAR(G105),Справочники!$C$3:$I$33,7,FALSE) -> 365 | M105: =VLOOKUP(YEAR(G105),Справочники!$C$3:$F$33,4,FALSE) -> 28420 | N105: 1689738.807 | O105: 1689738.807 | P105: 0 | Q105: 16503.88725 | R105: 11916.11275 | S105: 16503.88725 | T105: 0 | U105: 0 | V105: 1677822.694 | W105: 0
F106: 96 | G106: 2025-02-01 | H106: 2025-02-28 | I106: 28 | J106: 5 | K106: 2025-02-28 | L106: =VLOOKUP(YEAR(G106),Справочники!$C$3:$I$33,7,FALSE) -> 365 | M106: =VLOOKUP(YEAR(G106),Справочники!$C$3:$F$33,4,FALSE) -> 28420 | N106: 1677822.694 | O106: 1677822.694 | P106: 0 | Q106: 14801.6139 | R106: 13618.3861 | S106: 14801.6139 | T106: 0 | U106: 0 | V106: 1664204.308 | W106: 0
F107: 97 | G107: 2025-03-01 | H107: 2025-03-31 | I107: 31 | J107: 1 | K107: 2025-03-31 | L107: =VLOOKUP(YEAR(G107),Справочники!$C$3:$I$33,7,FALSE) -> 365 | M107: =VLOOKUP(YEAR(G107),Справочники!$C$3:$F$33,4,FALSE) -> 28420 | N107: 1664204.308 | O107: 1664204.308 | P107: 0 | Q107: 16254.48865 | R107: 12165.51135 | S107: 16254.48865 | T107: 0 | U107: 0 | V107: 1652038.797 | W107: 0
F108: 98 | G108: 2025-04-01 | H108: 2025-04-30 | I108: 30 | J108: 3 | K108: 2025-04-30 | L108: =VLOOKUP(YEAR(G108),Справочники!$C$3:$I$33,7,FALSE) -> 365 | M108: =VLOOKUP(YEAR(G108),Справочники!$C$3:$F$33,4,FALSE) -> 28420 | N108: 1652038.797 | O108: 1652038.797 | P108: 0 | Q108: 15615.16123 | R108: 12804.83877 | S108: 15615.16123 | T108: 0 | U108: 0 | V108: 1639233.958 | W108: 0
F109: 99 | G109: 2025-05-01 | H109: 2025-05-31 | I109: 31 | J109: 6 | K109: 2025-06-02 | L109: =VLOOKUP(YEAR(G109),Справочники!$C$3:$I$33,7,FALSE) -> 365 | M109: =VLOOKUP(YEAR(G109),Справочники!$C$3:$F$33,4,FALSE) -> 28420 | N109: 1639233.958 | O109: 1639233.958 | P109: 0 | Q109: 16010.60016 | R109: 12409.39984 | S109: 16010.60016 | T109: 0 | U109: 0 | V109: 1626824.558 | W109: 0
F110: 100 | G110: 2025-06-01 | H110: 2025-06-30 | I110: 30 | J110: 1 | K110: 2025-06-30 | L110: =VLOOKUP(YEAR(G110),Справочники!$C$3:$I$33,7,FALSE) -> 365 | M110: =VLOOKUP(YEAR(G110),Справочники!$C$3:$F$33,4,FALSE) -> 28420 | N110: 1626824.558 | O110: 1626824.558 | P110: 0 | Q110: 15376.83486 | R110: 13043.16514 | S110: 15376.83486 | T110: 0 | U110: 0 | V110: 1613781.393 | W110: 0
F111: 101 | G111: 2025-07-01 | H111: 2025-07-31 | I111: 31 | J111: 4 | K111: 2025-07-31 | L111: =VLOOKUP(YEAR(G111),Справочники!$C$3:$I$33,7,FALSE) -> 365 | M111: =VLOOKUP(YEAR(G111),Справочники!$C$3:$F$33,4,FALSE) -> 28420 | N111: 1613781.393 | O111: 1613781.393 | P111: 0 | Q111: 15762.00182 | R111: 12657.99818 | S111: 15762.00182 | T111: 0 | U111: 0 | V111: 1601123.395 | W111: 0
F112: 102 | G112: 2025-08-01 | H112: 2025-08-31 | I112: 31 | J112: 7 | K112: 2025-09-01 | L112: =VLOOKUP(YEAR(G112),Справочники!$C$3:$I$33,7,FALSE) -> 365 | M112: =VLOOKUP(YEAR(G112),Справочники!$C$3:$F$33,4,FALSE) -> 28420 | N112: 1601123.395 | O112: 1601123.395 | P112: 0 | Q112: 15638.3696 | R112: 12781.6304 | S112: 15638.3696 | T112: 0 | U112: 0 | V112: 1588341.764 | W112: 0
F113: 103 | G113: 2025-09-01 | H113: 2025-09-30 | I113: 30 | J113: 2 | K113: 2025-09-30 | L113: =VLOOKUP(YEAR(G113),Справочники!$C$3:$I$33,7,FALSE) -> 365 | M113: =VLOOKUP(YEAR(G113),Справочники!$C$3:$F$33,4,FALSE) -> 28420 | N113: 1588341.764 | O113: 1588341.764 | P113: 0 | Q113: 15013.09339 | R113: 13406.90661 | S113: 15013.09339 | T113: 0 | U113: 0 | V113: 1574934.858 | W113: 0
F114: 104 | G114: 2025-10-01 | H114: 2025-10-31 | I114: 31 | J114: 5 | K114: 2025-10-31 | L114: =VLOOKUP(YEAR(G114),Справочники!$C$3:$I$33,7,FALSE) -> 365 | M114: =VLOOKUP(YEAR(G114),Справочники!$C$3:$F$33,4,FALSE) -> 28420 | N114: 1574934.858 | O114: 1574934.858 | P114: 0 | Q114: 15382.58293 | R114: 13037.41707 | S114: 15382.58293 | T114: 0 | U114: 0 | V114: 1561897.441 | W114: 0
F115: 105 | G115: 2025-11-01 | H115: 2025-11-30 | I115: 30 | J115: 7 | K115: 2025-12-01 | L115: =VLOOKUP(YEAR(G115),Справочники!$C$3:$I$33,7,FALSE) -> 365 | M115: =VLOOKUP(YEAR(G115),Справочники!$C$3:$F$33,4,FALSE) -> 28420 | N115: 1561897.441 | O115: 1561897.441 | P115: 0 | Q115: 14763.14019 | R115: 13656.85981 | S115: 14763.14019 | T115: 0 | U115: 0 | V115: 1548240.581 | W115: 0
F116: 106 | G116: 2025-12-01 | H116: 2025-12-31 | I116: 31 | J116: 3 | K116: 2025-12-31 | L116: =VLOOKUP(YEAR(G116),Справочники!$C$3:$I$33,7,FALSE) -> 365 | M116: =VLOOKUP(YEAR(G116),Справочники!$C$3:$F$33,4,FALSE) -> 28420 | N116: 1548240.581 | O116: 1548240.581 | P116: 0 | Q116: 15121.85663 | R116: 13298.14337 | S116: 15121.85663 | T116: 0 | U116: 0 | V116: 1534942.438 | W116: 0
F117: 107 | G117: 2026-01-01 | H117: 2026-01-31 | I117: 31 | J117: 6 | K117: 2026-02-02 | L117: =VLOOKUP(YEAR(G117),Справочники!$C$3:$I$33,7,FALSE) -> 365 | M117: =VLOOKUP(YEAR(G117),Справочники!$C$3:$F$33,4,FALSE) -> 29015 | N117: 1534942.438 | O117: 1534942.438 | P117: 0 | Q117: 14991.97203 | R117: 14023.02797 | S117: 14991.97203 | T117: 0 | U117: 0 | V117: 1520919.41 | W117: 0
F118: 108 | G118: 2026-02-01 | H118: 2026-02-28 | I118: 28 | J118: 6 | K118: 2026-03-02 | L118: =VLOOKUP(YEAR(G118),Справочники!$C$3:$I$33,7,FALSE) -> 365 | M118: =VLOOKUP(YEAR(G118),Справочники!$C$3:$F$33,4,FALSE) -> 29015 | N118: 1520919.41 | O118: 1520919.41 | P118: 0 | Q118: 13417.42602 | R118: 15597.57398 | S118: 13417.42602 | T118: 0 | U118: 0 | V118: 1505321.836 | W118: 0
F119: 109 | G119: 2026-03-01 | H119: 2026-03-31 | I119: 31 | J119: 2 | K119: 2026-03-31 | L119: =VLOOKUP(YEAR(G119),Справочники!$C$3:$I$33,7,FALSE) -> 365 | M119: =VLOOKUP(YEAR(G119),Справочники!$C$3:$F$33,4,FALSE) -> 29015 | N119: 1505321.836 | O119: 1505321.836 | P119: 0 | Q119: 14702.66396 | R119: 14312.33604 | S119: 14702.66396 | T119: 0 | U119: 0 | V119: 1491009.5 | W119: 0
F120: 110 | G120: 2026-04-01 | H120: 2026-04-30 | I120: 30 | J120: 4 | K120: 2026-04-30 | L120: =VLOOKUP(YEAR(G120),Справочники!$C$3:$I$33,7,FALSE) -> 365 | M120: =VLOOKUP(YEAR(G120),Справочники!$C$3:$F$33,4,FALSE) -> 29015 | N120: 1491009.5 | O120: 1491009.5 | P120: 0 | Q120: 14093.10349 | R120: 14921.89651 | S120: 14093.10349 | T120: 0 | U120: 0 | V120: 1476087.603 | W120: 0
F121: 111 | G121: 2026-05-01 | H121: 2026-05-31 | I121: 31 | J121: 7 | K121: 2026-06-01 | L121: =VLOOKUP(YEAR(G121),Справочники!$C$3:$I$33,7,FALSE) -> 365 | M121: =VLOOKUP(YEAR(G121),Справочники!$C$3:$F$33,4,FALSE) -> 29015 | N121: 1476087.603 | O121: 1476087.603 | P121: 0 | Q121: 14417.1296 | R121: 14597.8704 | S121: 14417.1296 | T121: 0 | U121: 0 | V121: 1461489.733 | W121: 0
F122: 112 | G122: 2026-06-01 | H122: 2026-06-30 | I122: 30 | J122: 2 | K122: 2026-06-30 | L122: =VLOOKUP(YEAR(G122),Справочники!$C$3:$I$33,7,FALSE) -> 365 | M122: =VLOOKUP(YEAR(G122),Справочники!$C$3:$F$33,4,FALSE) -> 29015 | N122: 1461489.733 | O122: 1461489.733 | P122: 0 | Q122: 13814.08103 | R122: 15200.91897 | S122: 13814.08103 | T122: 0 | U122: 0 | V122: 1446288.814 | W122: 0
F123: 113 | G123: 2026-07-01 | H123: 2026-07-31 | I123: 31 | J123: 5 | K123: 2026-07-31 | L123: =VLOOKUP(YEAR(G123),Справочники!$C$3:$I$33,7,FALSE) -> 365 | M123: =VLOOKUP(YEAR(G123),Справочники!$C$3:$F$33,4,FALSE) -> 29015 | N123: 1446288.814 | O123: 1446288.814 | P123: 0 | Q123: 14126.08115 | R123: 14888.91885 | S123: 14126.08115 | T123: 0 | U123: 0 | V123: 1431399.895 | W123: 0
F124: 114 | G124: 2026-08-01 | H124: 2026-08-31 | I124: 31 | J124: 1 | K124: 2026-08-31 | L124: =VLOOKUP(YEAR(G124),Справочники!$C$3:$I$33,7,FALSE) -> 365 | M124: =VLOOKUP(YEAR(G124),Справочники!$C$3:$F$33,4,FALSE) -> 29015 | N124: 1431399.895 | O124: 1431399.895 | P124: 0 | Q124: 13980.65925 | R124: 15034.34075 | S124: 13980.65925 | T124: 0 | U124: 0 | V124: 1416365.554 | W124: 0
F125: 115 | G125: 2026-09-01 | H125: 2026-09-30 | I125: 30 | J125: 3 | K125: 2026-09-30 | L125: =VLOOKUP(YEAR(G125),Справочники!$C$3:$I$33,7,FALSE) -> 365 | M125: =VLOOKUP(YEAR(G125),Справочники!$C$3:$F$33,4,FALSE) -> 29015 | N125: 1416365.554 | O125: 1416365.554 | P125: 0 | Q125: 13387.56483 | R125: 15627.43517 | S125: 13387.56483 | T125: 0 | U125: 0 | V125: 1400738.119 | W125: 0
F126: 116 | G126: 2026-10-01 | H126: 2026-10-31 | I126: 31 | J126: 6 | K126: 2026-11-02 | L126: =VLOOKUP(YEAR(G126),Справочники!$C$3:$I$33,7,FALSE) -> 365 | M126: =VLOOKUP(YEAR(G126),Справочники!$C$3:$F$33,4,FALSE) -> 29015 | N126: 1400738.119 | O126: 1400738.119 | P126: 0 | Q126: 13681.1819 | R126: 15333.8181 | S126: 13681.1819 | T126: 0 | U126: 0 | V126: 1385404.301 | W126: 0
F127: 117 | G127: 2026-11-01 | H127: 2026-11-30 | I127: 30 | J127: 1 | K127: 2026-11-30 | L127: =VLOOKUP(YEAR(G127),Справочники!$C$3:$I$33,7,FALSE) -> 365 | M127: =VLOOKUP(YEAR(G127),Справочники!$C$3:$F$33,4,FALSE) -> 29015 | N127: 1385404.301 | O127: 1385404.301 | P127: 0 | Q127: 13094.91736 | R127: 15920.08264 | S127: 13094.91736 | T127: 0 | U127: 0 | V127: 1369484.218 | W127: 0
F128: 118 | G128: 2026-12-01 | H128: 2026-12-31 | I128: 31 | J128: 4 | K128: 2026-12-31 | L128: =VLOOKUP(YEAR(G128),Справочники!$C$3:$I$33,7,FALSE) -> 365 | M128: =VLOOKUP(YEAR(G128),Справочники!$C$3:$F$33,4,FALSE) -> 29015 | N128: 1369484.218 | O128: 1369484.218 | P128: 0 | Q128: 13375.9212 | R128: 15639.0788 | S128: 13375.9212 | T128: 0 | U128: 0 | V128: 1353845.139 | W128: 0
F129: 119 | G129: 2027-01-01 | H129: 2027-01-31 | I129: 31 | J129: 7 | K129: 2027-02-01 | L129: =VLOOKUP(YEAR(G129),Справочники!$C$3:$I$33,7,FALSE) -> 365 | M129: =VLOOKUP(YEAR(G129),Справочники!$C$3:$F$33,4,FALSE) -> 29625 | N129: 1353845.139 | O129: 1353845.139 | P129: 0 | Q129: 13223.17239 | R129: 16401.82761 | S129: 13223.17239 | T129: 0 | U129: 0 | V129: 1337443.312 | W129: 0
F130: 120 | G130: 2027-02-01 | H130: 2027-02-28 | I130: 28 | J130: 7 | K130: 2027-03-01 | L130: =VLOOKUP(YEAR(G130),Справочники!$C$3:$I$33,7,FALSE) -> 365 | M130: =VLOOKUP(YEAR(G130),Справочники!$C$3:$F$33,4,FALSE) -> 29625 | N130: 1337443.312 | O130: 1337443.312 | P130: 0 | Q130: 11798.81497 | R130: 17826.18503 | S130: 11798.81497 | T130: 0 | U130: 0 | V130: 1319617.127 | W130: 0
F131: 121 | G131: 2027-03-01 | H131: 2027-03-31 | I131: 31 | J131: 3 | K131: 2027-03-31 | L131: =VLOOKUP(YEAR(G131),Справочники!$C$3:$I$33,7,FALSE) -> 365 | M131: =VLOOKUP(YEAR(G131),Справочники!$C$3:$F$33,4,FALSE) -> 29625 | N131: 1319617.127 | O131: 1319617.127 | P131: 0 | Q131: 12888.86317 | R131: 16736.13683 | S131: 12888.86317 | T131: 0 | U131: 0 | V131: 1302880.99 | W131: 0
F132: 122 | G132: 2027-04-01 | H132: 2027-04-30 | I132: 30 | J132: 5 | K132: 2027-04-30 | L132: =VLOOKUP(YEAR(G132),Справочники!$C$3:$I$33,7,FALSE) -> 365 | M132: =VLOOKUP(YEAR(G132),Справочники!$C$3:$F$33,4,FALSE) -> 29625 | N132: 1302880.99 | O132: 1302880.99 | P132: 0 | Q132: 12314.90251 | R132: 17310.09749 | S132: 12314.90251 | T132: 0 | U132: 0 | V132: 1285570.892 | W132: 0
F133: 123 | G133: 2027-05-01 | H133: 2027-05-31 | I133: 31 | J133: 1 | K133: 2027-05-31 | L133: =VLOOKUP(YEAR(G133),Справочники!$C$3:$I$33,7,FALSE) -> 365 | M133: =VLOOKUP(YEAR(G133),Справочники!$C$3:$F$33,4,FALSE) -> 29625 | N133: 1285570.892 | O133: 1285570.892 | P133: 0 | Q133: 12556.3294 | R133: 17068.6706 | S133: 12556.3294 | T133: 0 | U133: 0 | V133: 1268502.222 | W133: 0
F134: 124 | G134: 2027-06-01 | H134: 2027-06-30 | I134: 30 | J134: 3 | K134: 2027-06-30 | L134: =VLOOKUP(YEAR(G134),Справочники!$C$3:$I$33,7,FALSE) -> 365 | M134: =VLOOKUP(YEAR(G134),Справочники!$C$3:$F$33,4,FALSE) -> 29625 | N134: 1268502.222 | O134: 1268502.222 | P134: 0 | Q134: 11989.95251 | R134: 17635.04749 | S134: 11989.95251 | T134: 0 | U134: 0 | V134: 1250867.174 | W134: 0
F135: 125 | G135: 2027-07-01 | H135: 2027-07-31 | I135: 31 | J135: 6 | K135: 2027-08-02 | L135: =VLOOKUP(YEAR(G135),Справочники!$C$3:$I$33,7,FALSE) -> 365 | M135: =VLOOKUP(YEAR(G135),Справочники!$C$3:$F$33,4,FALSE) -> 29625 | N135: 1250867.174 | O135: 1250867.174 | P135: 0 | Q135: 12217.37391 | R135: 17407.62609 | S135: 12217.37391 | T135: 0 | U135: 0 | V135: 1233459.548 | W135: 0
F136: 126 | G136: 2027-08-01 | H136: 2027-08-31 | I136: 31 | J136: 2 | K136: 2027-08-31 | L136: =VLOOKUP(YEAR(G136),Справочники!$C$3:$I$33,7,FALSE) -> 365 | M136: =VLOOKUP(YEAR(G136),Справочники!$C$3:$F$33,4,FALSE) -> 29625 | N136: 1233459.548 | O136: 1233459.548 | P136: 0 | Q136: 12047.35148 | R136: 17577.64852 | S136: 12047.35148 | T136: 0 | U136: 0 | V136: 1215881.9 | W136: 0
F137: 127 | G137: 2027-09-01 | H137: 2027-09-30 | I137: 30 | J137: 4 | K137: 2027-09-30 | L137: =VLOOKUP(YEAR(G137),Справочники!$C$3:$I$33,7,FALSE) -> 365 | M137: =VLOOKUP(YEAR(G137),Справочники!$C$3:$F$33,4,FALSE) -> 29625 | N137: 1215881.9 | O137: 1215881.9 | P137: 0 | Q137: 11492.58234 | R137: 18132.41766 | S137: 11492.58234 | T137: 0 | U137: 0 | V137: 1197749.482 | W137: 0
F138: 128 | G138: 2027-10-01 | H138: 2027-10-31 | I138: 31 | J138: 7 | K138: 2027-11-01 | L138: =VLOOKUP(YEAR(G138),Справочники!$C$3:$I$33,7,FALSE) -> 365 | M138: =VLOOKUP(YEAR(G138),Справочники!$C$3:$F$33,4,FALSE) -> 29625 | N138: 1197749.482 | O138: 1197749.482 | P138: 0 | Q138: 11698.56686 | R138: 17926.43314 | S138: 11698.56686 | T138: 0 | U138: 0 | V138: 1179823.049 | W138: 0
F139: 129 | G139: 2027-11-01 | H139: 2027-11-30 | I139: 30 | J139: 2 | K139: 2027-11-30 | L139: =VLOOKUP(YEAR(G139),Справочники!$C$3:$I$33,7,FALSE) -> 365 | M139: =VLOOKUP(YEAR(G139),Справочники!$C$3:$F$33,4,FALSE) -> 29625 | N139: 1179823.049 | O139: 1179823.049 | P139: 0 | Q139: 11151.75211 | R139: 18473.24789 | S139: 11151.75211 | T139: 0 | U139: 0 | V139: 1161349.801 | W139: =P139+U139-T139 -> 0
F140: 130 | G140: 2027-12-01 | H140: =EOMONTH(G140,0) -> 2027-12-31 | I140: 31 | J140: =WEEKDAY(H140,11) -> 5 | K140: =WORKDAY(H140,IF(OR(J140=6,J140=7),1,0)) -> 2027-12-31 | L140: =VLOOKUP(YEAR(G140),Справочники!$C$3:$I$33,7,FALSE) -> 365 | M140: =VLOOKUP(YEAR(G140),Справочники!$C$3:$F$33,4,FALSE) -> 29625 | N140: =O140+P140 -> 1161349.801 | O140: 1161349.801 | P140: 0 | Q140: 11343.04669 | R140: =MIN(M140-T140-S140,O140) -> 18281.95331 | S140: =MIN(M140-T140,Q140) -> 11343.04669 | T140: =MIN(M140,P140) -> 0 | U140: 0 | V140: =O140-R140 -> 1143067.848 | W140: 0
F141: 131 | G141: =H140+1 -> 2028-01-01 | H141: 2028-01-31 | I141: =H141-G141+1 -> 31 | J141: 1 | K141: 2028-01-31 | L141: =VLOOKUP(YEAR(G141),Справочники!$C$3:$I$33,7,FALSE) -> 366 | M141: =VLOOKUP(YEAR(G141),Справочники!$C$3:$F$33,4,FALSE) -> 30245 | N141: 1143067.848 | O141: =V140 -> 1143067.848 | P141: 0 | Q141: =O141*$D$4/L141*I141 -> 11133.98054 | R141: 19111.01946 | S141: 11133.98054 | T141: 0 | U141: =MAX(Q141-S141,0) -> 0 | V141: 1123956.828 | W141: 0
F142: 132 | G142: 2028-02-01 | H142: 2028-02-29 | I142: 29 | J142: 2 | K142: 2028-02-29 | L142: =VLOOKUP(YEAR(G142),Справочники!$C$3:$I$33,7,FALSE) -> 366 | M142: =VLOOKUP(YEAR(G142),Справочники!$C$3:$F$33,4,FALSE) -> 30245 | N142: 1123956.828 | O142: 1123956.828 | P142: 0 | Q142: 10241.51919 | R142: 20003.48081 | S142: 10241.51919 | T142: 0 | U142: 0 | V142: 1103953.347 | W142: 0
F143: 133 | G143: 2028-03-01 | H143: 2028-03-31 | I143: 31 | J143: 5 | K143: 2028-03-31 | L143: =VLOOKUP(YEAR(G143),Справочники!$C$3:$I$33,7,FALSE) -> 366 | M143: =VLOOKUP(YEAR(G143),Справочники!$C$3:$F$33,4,FALSE) -> 30245 | N143: 1103953.347 | O143: 1103953.347 | P143: 0 | Q143: 10752.98821 | R143: 19492.01179 | S143: 10752.98821 | T143: 0 | U143: 0 | V143: 1084461.336 | W143: 0
F144: 134 | G144: 2028-04-01 | H144: 2028-04-30 | I144: 30 | J144: 7 | K144: 2028-05-01 | L144: =VLOOKUP(YEAR(G144),Справочники!$C$3:$I$33,7,FALSE) -> 366 | M144: =VLOOKUP(YEAR(G144),Справочники!$C$3:$F$33,4,FALSE) -> 30245 | N144: 1084461.336 | O144: 1084461.336 | P144: 0 | Q144: 10222.38144 | R144: 20022.61856 | S144: 10222.38144 | T144: 0 | U144: 0 | V144: 1064438.717 | W144: 0
F145: 135 | G145: 2028-05-01 | H145: 2028-05-31 | I145: 31 | J145: 3 | K145: 2028-05-31 | L145: =VLOOKUP(YEAR(G145),Справочники!$C$3:$I$33,7,FALSE) -> 366 | M145: =VLOOKUP(YEAR(G145),Справочники!$C$3:$F$33,4,FALSE) -> 30245 | N145: 1064438.717 | O145: 1064438.717 | P145: 0 | Q145: 10368.09843 | R145: 19876.90157 | S145: 10368.09843 | T145: 0 | U145: 0 | V145: 1044561.816 | W145: 0
F146: 136 | G146: 2028-06-01 | H146: 2028-06-30 | I146: 30 | J146: 5 | K146: 2028-06-30 | L146: =VLOOKUP(YEAR(G146),Справочники!$C$3:$I$33,7,FALSE) -> 366 | M146: =VLOOKUP(YEAR(G146),Справочники!$C$3:$F$33,4,FALSE) -> 30245 | N146: 1044561.816 | O146: 1044561.816 | P146: 0 | Q146: 9846.279409 | R146: 20398.72059 | S146: 9846.279409 | T146: 0 | U146: 0 | V146: 1024163.095 | W146: 0
F147: 137 | G147: 2028-07-01 | H147: 2028-07-31 | I147: 31 | J147: 1 | K147: 2028-07-31 | L147: =VLOOKUP(YEAR(G147),Справочники!$C$3:$I$33,7,FALSE) -> 366 | M147: =VLOOKUP(YEAR(G147),Справочники!$C$3:$F$33,4,FALSE) -> 30245 | N147: 1024163.095 | O147: 1024163.095 | P147: 0 | Q147: 9975.796266 | R147: 20269.20373 | S147: 9975.796266 | T147: 0 | U147: 0 | V147: 1003893.891 | W147: 0
F148: 138 | G148: 2028-08-01 | H148: 2028-08-31 | I148: 31 | J148: 4 | K148: 2028-08-31 | L148: =VLOOKUP(YEAR(G148),Справочники!$C$3:$I$33,7,FALSE) -> 366 | M148: =VLOOKUP(YEAR(G148),Справочники!$C$3:$F$33,4,FALSE) -> 30245 | N148: 1003893.891 | O148: 1003893.891 | P148: 0 | Q148: 9778.365361 | R148: 20466.63464 | S148: 9778.365361 | T148: 0 | U148: 0 | V148: 983427.2566 | W148: 0
F149: 139 | G149: 2028-09-01 | H149: 2028-09-30 | I149: 30 | J149: 6 | K149: 2028-10-02 | L149: =VLOOKUP(YEAR(G149),Справочники!$C$3:$I$33,7,FALSE) -> 366 | M149: =VLOOKUP(YEAR(G149),Справочники!$C$3:$F$33,4,FALSE) -> 30245 | N149: 983427.2566 | O149: 983427.2566 | P149: 0 | Q149: 9270.011025 | R149: 20974.98897 | S149: 9270.011025 | T149: 0 | U149: 0 | V149: 962452.2676 | W149: 0
F150: 140 | G150: 2028-10-01 | H150: 2028-10-31 | I150: 31 | J150: 2 | K150: 2028-10-31 | L150: =VLOOKUP(YEAR(G150),Справочники!$C$3:$I$33,7,FALSE) -> 366 | M150: =VLOOKUP(YEAR(G150),Справочники!$C$3:$F$33,4,FALSE) -> 30245 | N150: 962452.2676 | O150: 962452.2676 | P150: 0 | Q150: 9374.705831 | R150: 20870.29417 | S150: 9374.705831 | T150: 0 | U150: 0 | V150: 941581.9734 | W150: 0
F151: 141 | G151: 2028-11-01 | H151: 2028-11-30 | I151: 30 | J151: 4 | K151: 2028-11-30 | L151: =VLOOKUP(YEAR(G151),Справочники!$C$3:$I$33,7,FALSE) -> 366 | M151: =VLOOKUP(YEAR(G151),Справочники!$C$3:$F$33,4,FALSE) -> 30245 | N151: 941581.9734 | O151: 941581.9734 | P151: 0 | Q151: 8875.567782 | R151: 21369.43222 | S151: 8875.567782 | T151: 0 | U151: 0 | V151: 920212.5412 | W151: 0
F152: 142 | G152: 2028-12-01 | H152: 2028-12-31 | I152: 31 | J152: 7 | K152: 2029-01-01 | L152: =VLOOKUP(YEAR(G152),Справочники!$C$3:$I$33,7,FALSE) -> 366 | M152: =VLOOKUP(YEAR(G152),Справочники!$C$3:$F$33,4,FALSE) -> 30245 | N152: 920212.5412 | O152: 920212.5412 | P152: 0 | Q152: 8963.27243 | R152: 21281.72757 | S152: 8963.27243 | T152: 0 | U152: 0 | V152: 898930.8136 | W152: 0
F153: 143 | G153: 2029-01-01 | H153: 2029-01-31 | I153: 31 | J153: 3 | K153: 2029-01-31 | L153: =VLOOKUP(YEAR(G153),Справочники!$C$3:$I$33,7,FALSE) -> 365 | M153: =VLOOKUP(YEAR(G153),Справочники!$C$3:$F$33,4,FALSE) -> 30850 | N153: 898930.8136 | O153: 898930.8136 | P153: 0 | Q153: 8779.968084 | R153: 22070.03192 | S153: 8779.968084 | T153: 0 | U153: 0 | V153: 876860.7817 | W153: 0
F154: 144 | G154: 2029-02-01 | H154: 2029-02-28 | I154: 28 | J154: 3 | K154: 2029-02-28 | L154: =VLOOKUP(YEAR(G154),Справочники!$C$3:$I$33,7,FALSE) -> 365 | M154: =VLOOKUP(YEAR(G154),Справочники!$C$3:$F$33,4,FALSE) -> 30850 | N154: 876860.7817 | O154: 876860.7817 | P154: 0 | Q154: 7735.593746 | R154: 23114.40625 | S154: 7735.593746 | T154: 0 | U154: 0 | V154: 853746.3755 | W154: 0
F155: 145 | G155: 2029-03-01 | H155: 2029-03-31 | I155: 31 | J155: 6 | K155: 2029-04-02 | L155: =VLOOKUP(YEAR(G155),Справочники!$C$3:$I$33,7,FALSE) -> 365 | M155: =VLOOKUP(YEAR(G155),Справочники!$C$3:$F$33,4,FALSE) -> 30850 | N155: 853746.3755 | O155: 853746.3755 | P155: 0 | Q155: 8338.646106 | R155: 22511.35389 | S155: 8338.646106 | T155: 0 | U155: 0 | V155: 831235.0216 | W155: 0
F156: 146 | G156: 2029-04-01 | H156: 2029-04-30 | I156: 30 | J156: 1 | K156: 2029-04-30 | L156: =VLOOKUP(YEAR(G156),Справочники!$C$3:$I$33,7,FALSE) -> 365 | M156: =VLOOKUP(YEAR(G156),Справочники!$C$3:$F$33,4,FALSE) -> 30850 | N156: 831235.0216 | O156: 831235.0216 | P156: 0 | Q156: 7856.878971 | R156: 22993.12103 | S156: 7856.878971 | T156: 0 | U156: 0 | V156: 808241.9006 | W156: 0
F157: 147 | G157: 2029-05-01 | H157: 2029-05-31 | I157: 31 | J157: 4 | K157: 2029-05-31 | L157: =VLOOKUP(YEAR(G157),Справочники!$C$3:$I$33,7,FALSE) -> 365 | M157: =VLOOKUP(YEAR(G157),Справочники!$C$3:$F$33,4,FALSE) -> 30850 | N157: 808241.9006 | O157: 808241.9006 | P157: 0 | Q157: 7894.198289 | R157: 22955.80171 | S157: 7894.198289 | T157: 0 | U157: 0 | V157: 785286.0988 | W157: 0
F158: 148 | G158: 2029-06-01 | H158: 2029-06-30 | I158: 30 | J158: 6 | K158: 2029-07-02 | L158: =VLOOKUP(YEAR(G158),Справочники!$C$3:$I$33,7,FALSE) -> 365 | M158: =VLOOKUP(YEAR(G158),Справочники!$C$3:$F$33,4,FALSE) -> 30850 | N158: 785286.0988 | O158: 785286.0988 | P158: 0 | Q158: 7422.567236 | R158: 23427.43276 | S158: 7422.567236 | T158: 0 | U158: 0 | V158: 761858.6661 | W158: 0
F159: 149 | G159: 2029-07-01 | H159: 2029-07-31 | I159: 31 | J159: 2 | K159: 2029-07-31 | L159: =VLOOKUP(YEAR(G159),Справочники!$C$3:$I$33,7,FALSE) -> 365 | M159: =VLOOKUP(YEAR(G159),Справочники!$C$3:$F$33,4,FALSE) -> 30850 | N159: 761858.6661 | O159: 761858.6661 | P159: 0 | Q159: 7441.167519 | R159: 23408.83248 | S159: 7441.167519 | T159: 0 | U159: 0 | V159: 738449.8336 | W159: 0
F160: 150 | G160: 2029-08-01 | H160: 2029-08-31 | I160: 31 | J160: 5 | K160: 2029-08-31 | L160: =VLOOKUP(YEAR(G160),Справочники!$C$3:$I$33,7,FALSE) -> 365 | M160: =VLOOKUP(YEAR(G160),Справочники!$C$3:$F$33,4,FALSE) -> 30850 | N160: 738449.8336 | O160: 738449.8336 | P160: 0 | Q160: 7212.530566 | R160: 23637.46943 | S160: 7212.530566 | T160: 0 | U160: 0 | V160: 714812.3642 | W160: 0
F161: 151 | G161: 2029-09-01 | H161: 2029-09-30 | I161: 30 | J161: 7 | K161: 2029-10-01 | L161: =VLOOKUP(YEAR(G161),Справочники!$C$3:$I$33,7,FALSE) -> 365 | M161: =VLOOKUP(YEAR(G161),Справочники!$C$3:$F$33,4,FALSE) -> 30850 | N161: 714812.3642 | O161: 714812.3642 | P161: 0 | Q161: 6756.445634 | R161: 24093.55437 | S161: 6756.445634 | T161: 0 | U161: 0 | V161: 690718.8098 | W161: 0
F162: 152 | G162: 2029-10-01 | H162: 2029-10-31 | I162: 31 | J162: 3 | K162: 2029-10-31 | L162: =VLOOKUP(YEAR(G162),Справочники!$C$3:$I$33,7,FALSE) -> 365 | M162: =VLOOKUP(YEAR(G162),Справочники!$C$3:$F$33,4,FALSE) -> 30850 | N162: 690718.8098 | O162: 690718.8098 | P162: 0 | Q162: 6746.335772 | R162: 24103.66423 | S162: 6746.335772 | T162: 0 | U162: 0 | V162: 666615.1456 | W162: 0
F163: 153 | G163: 2029-11-01 | H163: 2029-11-30 | I163: 30 | J163: 5 | K163: 2029-11-30 | L163: =VLOOKUP(YEAR(G163),Справочники!$C$3:$I$33,7,FALSE) -> 365 | M163: =VLOOKUP(YEAR(G163),Справочники!$C$3:$F$33,4,FALSE) -> 30850 | N163: 666615.1456 | O163: 666615.1456 | P163: 0 | Q163: 6300.882883 | R163: 24549.11712 | S163: 6300.882883 | T163: 0 | U163: 0 | V163: 642066.0285 | W163: 0
F164: 154 | G164: 2029-12-01 | H164: 2029-12-31 | I164: 31 | J164: 1 | K164: 2029-12-31 | L164: =VLOOKUP(YEAR(G164),Справочники!$C$3:$I$33,7,FALSE) -> 365 | M164: =VLOOKUP(YEAR(G164),Справочники!$C$3:$F$33,4,FALSE) -> 30850 | N164: 642066.0285 | O164: 642066.0285 | P164: 0 | Q164: 6271.138059 | R164: 24578.86194 | S164: 6271.138059 | T164: 0 | U164: 0 | V164: 617487.1665 | W164: 0
F165: 155 | G165: 2030-01-01 | H165: 2030-01-31 | I165: 31 | J165: 4 | K165: 2030-01-31 | L165: =VLOOKUP(YEAR(G165),Справочники!$C$3:$I$33,7,FALSE) -> 365 | M165: =VLOOKUP(YEAR(G165),Справочники!$C$3:$F$33,4,FALSE) -> 31435 | N165: 617487.1665 | O165: 617487.1665 | P165: 0 | Q165: 6031.073284 | R165: 25403.92672 | S165: 6031.073284 | T165: 0 | U165: 0 | V165: 592083.2398 | W165: 0
F166: 156 | G166: 2030-02-01 | H166: 2030-02-28 | I166: 28 | J166: 4 | K166: 2030-02-28 | L166: =VLOOKUP(YEAR(G166),Справочники!$C$3:$I$33,7,FALSE) -> 365 | M166: =VLOOKUP(YEAR(G166),Справочники!$C$3:$F$33,4,FALSE) -> 31435 | N166: 592083.2398 | O166: 592083.2398 | P166: 0 | Q166: 5223.309677 | R166: 26211.69032 | S166: 5223.309677 | T166: 0 | U166: 0 | V166: 565871.5495 | W166: 0
F167: 157 | G167: 2030-03-01 | H167: 2030-03-31 | I167: 31 | J167: 7 | K167: 2030-04-01 | L167: =VLOOKUP(YEAR(G167),Справочники!$C$3:$I$33,7,FALSE) -> 365 | M167: =VLOOKUP(YEAR(G167),Справочники!$C$3:$F$33,4,FALSE) -> 31435 | N167: 565871.5495 | O167: 565871.5495 | P167: 0 | Q167: 5526.937189 | R167: 25908.06281 | S167: 5526.937189 | T167: 0 | U167: 0 | V167: 539963.4867 | W167: 0
F168: 158 | G168: 2030-04-01 | H168: 2030-04-30 | I168: 30 | J168: 2 | K168: 2030-04-30 | L168: =VLOOKUP(YEAR(G168),Справочники!$C$3:$I$33,7,FALSE) -> 365 | M168: =VLOOKUP(YEAR(G168),Справочники!$C$3:$F$33,4,FALSE) -> 31435 | N168: 539963.4867 | O168: 539963.4867 | P168: 0 | Q168: 5103.764463 | R168: 26331.23554 | S168: 5103.764463 | T168: 0 | U168: 0 | V168: 513632.2511 | W168: 0
F169: 159 | G169: 2030-05-01 | H169: 2030-05-31 | I169: 31 | J169: 5 | K169: 2030-05-31 | L169: =VLOOKUP(YEAR(G169),Справочники!$C$3:$I$33,7,FALSE) -> 365 | M169: =VLOOKUP(YEAR(G169),Справочники!$C$3:$F$33,4,FALSE) -> 31435 | N169: 513632.2511 | O169: 513632.2511 | P169: 0 | Q169: 5016.709521 | R169: 26418.29048 | S169: 5016.709521 | T169: 0 | U169: 0 | V169: 487213.9606 | W169: 0
F170: 160 | G170: 2030-06-01 | H170: 2030-06-30 | I170: 30 | J170: 7 | K170: 2030-07-01 | L170: =VLOOKUP(YEAR(G170),Справочники!$C$3:$I$33,7,FALSE) -> 365 | M170: =VLOOKUP(YEAR(G170),Справочники!$C$3:$F$33,4,FALSE) -> 31435 | N170: 487213.9606 | O170: 487213.9606 | P170: 0 | Q170: 4605.173053 | R170: 26829.82695 | S170: 4605.173053 | T170: 0 | U170: 0 | V170: 460384.1337 | W170: 0
F171: 161 | G171: 2030-07-01 | H171: 2030-07-31 | I171: 31 | J171: 3 | K171: 2030-07-31 | L171: =VLOOKUP(YEAR(G171),Справочники!$C$3:$I$33,7,FALSE) -> 365 | M171: =VLOOKUP(YEAR(G171),Справочники!$C$3:$F$33,4,FALSE) -> 31435 | N171: 460384.1337 | O171: 460384.1337 | P171: 0 | Q171: 4496.628593 | R171: 26938.37141 | S171: 4496.628593 | T171: 0 | U171: 0 | V171: 433445.7623 | W171: 0
F172: 162 | G172: 2030-08-01 | H172: 2030-08-31 | I172: 31 | J172: 6 | K172: 2030-09-02 | L172: =VLOOKUP(YEAR(G172),Справочники!$C$3:$I$33,7,FALSE) -> 365 | M172: =VLOOKUP(YEAR(G172),Справочники!$C$3:$F$33,4,FALSE) -> 31435 | N172: 433445.7623 | O172: 433445.7623 | P172: 0 | Q172: 4233.518199 | R172: 27201.4818 | S172: 4233.518199 | T172: 0 | U172: 0 | V172: 406244.2805 | W172: 0
F173: 163 | G173: 2030-09-01 | H173: 2030-09-30 | I173: 30 | J173: 1 | K173: 2030-09-30 | L173: =VLOOKUP(YEAR(G173),Справочники!$C$3:$I$33,7,FALSE) -> 365 | M173: =VLOOKUP(YEAR(G173),Справочники!$C$3:$F$33,4,FALSE) -> 31435 | N173: 406244.2805 | O173: 406244.2805 | P173: 0 | Q173: 3839.843199 | R173: 27595.1568 | S173: 3839.843199 | T173: 0 | U173: 0 | V173: 378649.1237 | W173: 0
F174: 164 | G174: 2030-10-01 | H174: 2030-10-31 | I174: 31 | J174: 4 | K174: 2030-10-31 | L174: =VLOOKUP(YEAR(G174),Справочники!$C$3:$I$33,7,FALSE) -> 365 | M174: =VLOOKUP(YEAR(G174),Справочники!$C$3:$F$33,4,FALSE) -> 31435 | N174: 378649.1237 | O174: 378649.1237 | P174: 0 | Q174: 3698.312674 | R174: 27736.68733 | S174: 3698.312674 | T174: 0 | U174: 0 | V174: 350912.4364 | W174: 0
F175: 165 | G175: 2030-11-01 | H175: 2030-11-30 | I175: 30 | J175: 6 | K175: 2030-12-02 | L175: =VLOOKUP(YEAR(G175),Справочники!$C$3:$I$33,7,FALSE) -> 365 | M175: =VLOOKUP(YEAR(G175),Справочники!$C$3:$F$33,4,FALSE) -> 31435 | N175: 350912.4364 | O175: 350912.4364 | P175: 0 | Q175: 3316.843577 | R175: 28118.15642 | S175: 3316.843577 | T175: 0 | U175: 0 | V175: 322794.2799 | W175: 0
F176: 166 | G176: 2030-12-01 | H176: 2030-12-31 | I176: 31 | J176: 2 | K176: 2030-12-31 | L176: =VLOOKUP(YEAR(G176),Справочники!$C$3:$I$33,7,FALSE) -> 365 | M176: =VLOOKUP(YEAR(G176),Справочники!$C$3:$F$33,4,FALSE) -> 31435 | N176: 322794.2799 | O176: 322794.2799 | P176: 0 | Q176: 3152.771529 | R176: 28282.22847 | S176: 3152.771529 | T176: 0 | U176: 0 | V176: 294512.0515 | W176: 0
F177: 167 | G177: 2031-01-01 | H177: 2031-01-31 | I177: 31 | J177: 5 | K177: 2031-01-31 | L177: =VLOOKUP(YEAR(G177),Справочники!$C$3:$I$33,7,FALSE) -> 365 | M177: =VLOOKUP(YEAR(G177),Справочники!$C$3:$F$33,4,FALSE) -> 32065 | N177: 294512.0515 | O177: 294512.0515 | P177: 0 | Q177: 2876.535516 | R177: 29188.46448 | S177: 2876.535516 | T177: 0 | U177: 0 | V177: 265323.587 | W177: 0
F178: 168 | G178: 2031-02-01 | H178: 2031-02-28 | I178: 28 | J178: 5 | K178: 2031-02-28 | L178: =VLOOKUP(YEAR(G178),Справочники!$C$3:$I$33,7,FALSE) -> 365 | M178: =VLOOKUP(YEAR(G178),Справочники!$C$3:$F$33,4,FALSE) -> 32065 | N178: 265323.587 | O178: 265323.587 | P178: 0 | Q178: 2340.662877 | R178: 29724.33712 | S178: 2340.662877 | T178: 0 | U178: 0 | V178: 235599.2499 | W178: 0
F179: 169 | G179: 2031-03-01 | H179: 2031-03-31 | I179: 31 | J179: 1 | K179: 2031-03-31 | L179: =VLOOKUP(YEAR(G179),Справочники!$C$3:$I$33,7,FALSE) -> 365 | M179: =VLOOKUP(YEAR(G179),Справочники!$C$3:$F$33,4,FALSE) -> 32065 | N179: 235599.2499 | O179: 235599.2499 | P179: 0 | Q179: 2301.12692 | R179: 29763.87308 | S179: 2301.12692 | T179: 0 | U179: 0 | V179: 205835.3768 | W179: 0
F180: 170 | G180: 2031-04-01 | H180: 2031-04-30 | I180: 30 | J180: 3 | K180: 2031-04-30 | L180: =VLOOKUP(YEAR(G180),Справочники!$C$3:$I$33,7,FALSE) -> 365 | M180: =VLOOKUP(YEAR(G180),Справочники!$C$3:$F$33,4,FALSE) -> 32065 | N180: 205835.3768 | O180: 205835.3768 | P180: 0 | Q180: 1945.56726 | R180: 30119.43274 | S180: 1945.56726 | T180: 0 | U180: 0 | V180: 175715.944 | W180: 0
F181: 171 | G181: 2031-05-01 | H181: 2031-05-31 | I181: 31 | J181: 6 | K181: 2031-06-02 | L181: =VLOOKUP(YEAR(G181),Справочники!$C$3:$I$33,7,FALSE) -> 365 | M181: =VLOOKUP(YEAR(G181),Справочники!$C$3:$F$33,4,FALSE) -> 32065 | N181: 175715.944 | O181: 175715.944 | P181: 0 | Q181: 1716.239289 | R181: 30348.76071 | S181: 1716.239289 | T181: 0 | U181: 0 | V181: 145367.1833 | W181: 0
F182: 172 | G182: 2031-06-01 | H182: 2031-06-30 | I182: 30 | J182: 1 | K182: 2031-06-30 | L182: =VLOOKUP(YEAR(G182),Справочники!$C$3:$I$33,7,FALSE) -> 365 | M182: =VLOOKUP(YEAR(G182),Справочники!$C$3:$F$33,4,FALSE) -> 32065 | N182: 145367.1833 | O182: 145367.1833 | P182: 0 | Q182: 1374.018582 | R182: 30690.98142 | S182: 1374.018582 | T182: 0 | U182: 0 | V182: 114676.2019 | W182: 0
F183: 173 | G183: 2031-07-01 | H183: 2031-07-31 | I183: 31 | J183: 4 | K183: 2031-07-31 | L183: =VLOOKUP(YEAR(G183),Справочники!$C$3:$I$33,7,FALSE) -> 365 | M183: =VLOOKUP(YEAR(G183),Справочники!$C$3:$F$33,4,FALSE) -> 32065 | N183: 114676.2019 | O183: 114676.2019 | P183: 0 | Q183: 1120.056602 | R183: 30944.9434 | S183: 1120.056602 | T183: 0 | U183: 0 | V183: 83731.25851 | W183: 0
F184: 174 | G184: 2031-08-01 | H184: 2031-08-31 | I184: 31 | J184: 7 | K184: 2031-09-01 | L184: =VLOOKUP(YEAR(G184),Справочники!$C$3:$I$33,7,FALSE) -> 365 | M184: =VLOOKUP(YEAR(G184),Справочники!$C$3:$F$33,4,FALSE) -> 32065 | N184: 83731.25851 | O184: 83731.25851 | P184: 0 | Q184: 817.8135249 | R184: 31247.18648 | S184: 817.8135249 | T184: 0 | U184: 0 | V184: 52484.07204 | W184: 0
F185: 175 | G185: 2031-09-01 | H185: 2031-09-30 | I185: 30 | J185: 2 | K185: 2031-09-30 | L185: =VLOOKUP(YEAR(G185),Справочники!$C$3:$I$33,7,FALSE) -> 365 | M185: =VLOOKUP(YEAR(G185),Справочники!$C$3:$F$33,4,FALSE) -> 32065 | N185: 52484.07204 | O185: 52484.07204 | P185: 0 | Q185: 496.0823247 | R185: 31568.91768 | S185: 496.0823247 | T185: 0 | U185: 0 | V185: 20915.15436 | W185: 0
F186: 176 | G186: 2031-10-01 | H186: 2031-10-31 | I186: 31 | J186: 5 | K186: 2031-10-31 | L186: =VLOOKUP(YEAR(G186),Справочники!$C$3:$I$33,7,FALSE) -> 365 | M186: =VLOOKUP(YEAR(G186),Справочники!$C$3:$F$33,4,FALSE) -> 32065 | N186: 20915.15436 | O186: 20915.15436 | P186: 0 | Q186: 204.2808912 | R186: 20915.15436 | S186: 204.2808912 | T186: 0 | U186: 0 | V186: 0 | W186: 0
F187: 177 | G187: 2031-11-01 | H187: 2031-11-30 | I187: 30 | J187: 7 | K187: 2031-12-01 | L187: =VLOOKUP(YEAR(G187),Справочники!$C$3:$I$33,7,FALSE) -> 365 | M187: =VLOOKUP(YEAR(G187),Справочники!$C$3:$F$33,4,FALSE) -> 32065 | N187: 0 | O187: 0 | P187: 0 | Q187: 0 | R187: 0 | S187: 0 | T187: 0 | U187: 0 | V187: 0 | W187: 0
F188: 178 | G188: 2031-12-01 | H188: 2031-12-31 | I188: 31 | J188: 3 | K188: 2031-12-31 | L188: =VLOOKUP(YEAR(G188),Справочники!$C$3:$I$33,7,FALSE) -> 365 | M188: =VLOOKUP(YEAR(G188),Справочники!$C$3:$F$33,4,FALSE) -> 32065 | N188: 0 | O188: 0 | P188: 0 | Q188: 0 | R188: 0 | S188: 0 | T188: 0 | U188: 0 | V188: 0 | W188: 0
F189: 179 | G189: 2032-01-01 | H189: 2032-01-31 | I189: 31 | J189: 6 | K189: 2032-02-02 | L189: =VLOOKUP(YEAR(G189),Справочники!$C$3:$I$33,7,FALSE) -> 366 | M189: =VLOOKUP(YEAR(G189),Справочники!$C$3:$F$33,4,FALSE) -> 32705 | N189: 0 | O189: 0 | P189: 0 | Q189: 0 | R189: 0 | S189: 0 | T189: 0 | U189: 0 | V189: 0 | W189: 0
F190: 180 | G190: 2032-02-01 | H190: 2032-02-29 | I190: 29 | J190: 7 | K190: 2032-03-01 | L190: =VLOOKUP(YEAR(G190),Справочники!$C$3:$I$33,7,FALSE) -> 366 | M190: =VLOOKUP(YEAR(G190),Справочники!$C$3:$F$33,4,FALSE) -> 32705 | N190: 0 | O190: 0 | P190: 0 | Q190: 0 | R190: 0 | S190: 0 | T190: 0 | U190: 0 | V190: 0 | W190: 0
F191: 181 | G191: 2032-03-01 | H191: 2032-03-31 | I191: 31 | J191: 3 | K191: 2032-03-31 | L191: =VLOOKUP(YEAR(G191),Справочники!$C$3:$I$33,7,FALSE) -> 366 | M191: =VLOOKUP(YEAR(G191),Справочники!$C$3:$F$33,4,FALSE) -> 32705 | N191: 0 | O191: 0 | P191: 0 | Q191: 0 | R191: 0 | S191: 0 | T191: 0 | U191: 0 | V191: 0 | W191: 0
F192: 182 | G192: 2032-04-01 | H192: 2032-04-30 | I192: 30 | J192: 5 | K192: 2032-04-30 | L192: =VLOOKUP(YEAR(G192),Справочники!$C$3:$I$33,7,FALSE) -> 366 | M192: =VLOOKUP(YEAR(G192),Справочники!$C$3:$F$33,4,FALSE) -> 32705 | N192: 0 | O192: 0 | P192: 0 | Q192: 0 | R192: 0 | S192: 0 | T192: 0 | U192: 0 | V192: 0 | W192: 0
F193: 183 | G193: 2032-05-01 | H193: 2032-05-31 | I193: 31 | J193: 1 | K193: 2032-05-31 | L193: =VLOOKUP(YEAR(G193),Справочники!$C$3:$I$33,7,FALSE) -> 366 | M193: =VLOOKUP(YEAR(G193),Справочники!$C$3:$F$33,4,FALSE) -> 32705 | N193: 0 | O193: 0 | P193: 0 | Q193: 0 | R193: 0 | S193: 0 | T193: 0 | U193: 0 | V193: 0 | W193: 0
F194: 184 | G194: 2032-06-01 | H194: 2032-06-30 | I194: 30 | J194: 3 | K194: 2032-06-30 | L194: =VLOOKUP(YEAR(G194),Справочники!$C$3:$I$33,7,FALSE) -> 366 | M194: =VLOOKUP(YEAR(G194),Справочники!$C$3:$F$33,4,FALSE) -> 32705 | N194: 0 | O194: 0 | P194: 0 | Q194: 0 | R194: 0 | S194: 0 | T194: 0 | U194: 0 | V194: 0 | W194: 0
F195: 185 | G195: 2032-07-01 | H195: 2032-07-31 | I195: 31 | J195: 6 | K195: 2032-08-02 | L195: =VLOOKUP(YEAR(G195),Справочники!$C$3:$I$33,7,FALSE) -> 366 | M195: =VLOOKUP(YEAR(G195),Справочники!$C$3:$F$33,4,FALSE) -> 32705 | N195: 0 | O195: 0 | P195: 0 | Q195: 0 | R195: 0 | S195: 0 | T195: 0 | U195: 0 | V195: 0 | W195: 0
F196: 186 | G196: 2032-08-01 | H196: 2032-08-31 | I196: 31 | J196: 2 | K196: 2032-08-31 | L196: =VLOOKUP(YEAR(G196),Справочники!$C$3:$I$33,7,FALSE) -> 366 | M196: =VLOOKUP(YEAR(G196),Справочники!$C$3:$F$33,4,FALSE) -> 32705 | N196: 0 | O196: 0 | P196: 0 | Q196: 0 | R196: 0 | S196: 0 | T196: 0 | U196: 0 | V196: 0 | W196: 0
F197: 187 | G197: 2032-09-01 | H197: 2032-09-30 | I197: 30 | J197: 4 | K197: 2032-09-30 | L197: =VLOOKUP(YEAR(G197),Справочники!$C$3:$I$33,7,FALSE) -> 366 | M197: =VLOOKUP(YEAR(G197),Справочники!$C$3:$F$33,4,FALSE) -> 32705 | N197: 0 | O197: 0 | P197: 0 | Q197: 0 | R197: 0 | S197: 0 | T197: 0 | U197: 0 | V197: 0 | W197: 0
F198: 188 | G198: 2032-10-01 | H198: 2032-10-31 | I198: 31 | J198: 7 | K198: 2032-11-01 | L198: =VLOOKUP(YEAR(G198),Справочники!$C$3:$I$33,7,FALSE) -> 366 | M198: =VLOOKUP(YEAR(G198),Справочники!$C$3:$F$33,4,FALSE) -> 32705 | N198: 0 | O198: 0 | P198: 0 | Q198: 0 | R198: 0 | S198: 0 | T198: 0 | U198: 0 | V198: 0 | W198: 0
F199: 189 | G199: 2032-11-01 | H199: 2032-11-30 | I199: 30 | J199: 2 | K199: 2032-11-30 | L199: =VLOOKUP(YEAR(G199),Справочники!$C$3:$I$33,7,FALSE) -> 366 | M199: =VLOOKUP(YEAR(G199),Справочники!$C$3:$F$33,4,FALSE) -> 32705 | N199: 0 | O199: 0 | P199: 0 | Q199: 0 | R199: 0 | S199: 0 | T199: 0 | U199: 0 | V199: 0 | W199: 0
F200: 190 | G200: 2032-12-01 | H200: 2032-12-31 | I200: 31 | J200: 5 | K200: 2032-12-31 | L200: =VLOOKUP(YEAR(G200),Справочники!$C$3:$I$33,7,FALSE) -> 366 | M200: =VLOOKUP(YEAR(G200),Справочники!$C$3:$F$33,4,FALSE) -> 32705 | N200: 0 | O200: 0 | P200: 0 | Q200: 0 | R200: 0 | S200: 0 | T200: 0 | U200: 0 | V200: 0 | W200: 0
F201: 191 | G201: 2033-01-01 | H201: 2033-01-31 | I201: 31 | J201: 1 | K201: 2033-01-31 | L201: =VLOOKUP(YEAR(G201),Справочники!$C$3:$I$33,7,FALSE) -> 365 | M201: =VLOOKUP(YEAR(G201),Справочники!$C$3:$F$33,4,FALSE) -> 33360 | N201: 0 | O201: 0 | P201: 0 | Q201: 0 | R201: 0 | S201: 0 | T201: 0 | U201: 0 | V201: 0 | W201: 0
F202: 192 | G202: 2033-02-01 | H202: 2033-02-28 | I202: 28 | J202: 1 | K202: 2033-02-28 | L202: =VLOOKUP(YEAR(G202),Справочники!$C$3:$I$33,7,FALSE) -> 365 | M202: =VLOOKUP(YEAR(G202),Справочники!$C$3:$F$33,4,FALSE) -> 33360 | N202: 0 | O202: 0 | P202: 0 | Q202: 0 | R202: 0 | S202: 0 | T202: 0 | U202: 0 | V202: 0 | W202: 0
... 168 more rows

Sheet Справочники (hidden)
C2: Год | D2: Прогноз для расчета | E2: Индекс | F2: Прогноз ФГКУ в 2016г. | G2: Индекс | H2: Отклонение расчет/ФГКУ ("запас прочности") | I2: Ко-во дней в году | J2: Високосный (да/нет) | M2: Справочник Банков для перечисления платежей участника НИС | O2: Сумма накоплений для оплаты ПВ | Q2: Процентная ставка | R2: Максимальная сумма по продукту | T2: Максимальный К/З
C3: 2016 | D3: 20490 | E3: - | F3: 20490 | G3: - | I3: =IF(J3="да",366,365) -> 366 | J3: да | M3: Столбец1 | O3: 1400000 | Q3: 0.115 | R3: 2100000 | T3: 0.8
C4: 2017 | D4: =D3*(1+E4) -> 21680 | E4: 0.05807711079 | F4: 21680 | G4: =F4/F3-1 -> 0.05807711079 | H4: =D4/F4 -> 1 | I4: =IF(J4="да",366,365) -> 365 | J4: нет | M4: Сбербанк | Q4: 0.125 | R4: 1930000
C5: 2018 | D5: =D4*(1+E5) -> 21680 | E5: 0 | F5: 23050 | G5: =F5/F4-1 -> 0.06319188192 | H5: =D5/F5 -> 0.9405639913 | I5: 365 | J5: нет | M5: ВТБ24
C6: 2019 | D6: 21680 | E6: 0 | F6: 23995 | G6: 0.0409978308 | H6: 0.903521567 | I6: 365 | J6: нет | M6: Газпромбанк | O6: Период с даты подписания до даты выдачи КД, мес. | R6: минимальная сумма по продукту
C7: 2020 | D7: 21680 | E7: 0 | F7: 24810 | G7: 0.03396540946 | H7: 0.8738411931 | I7: 366 | J7: да | M7: Связь-Банк | O7: 2 | R7: 300000
C8: 2021 | D8: 22352.85772 | E8: 0.03103587263 | F8: 25580 | G8: 0.03103587263 | H8: 0.8738411931 | I8: 365 | J8: нет | M8: Зенит | O8: минимальный срок кредита, мес.
C9: 2022 | D9: 23021.34623 | E9: 0.0299061767 | F9: 26345 | G9: 0.0299061767 | H9: 0.8738411931 | I9: 365 | J9: нет | M9: Иной | O9: 3
C10: 2023 | D10: 23663.61951 | E10: 0.02789903207 | F10: 27080 | G10: 0.02789903207 | H10: 0.8738411931 | I10: 365 | J10: нет
C11: 2024 | D11: 24301.52358 | E11: 0.02695716396 | F11: 27810 | G11: 0.02695716396 | H11: 0.8738411931 | I11: 366 | J11: да
C12: 2025 | D12: 24834.56671 | E12: 0.02193455592 | F12: 28420 | G12: 0.02193455592 | H12: 0.8738411931 | I12: 365 | J12: нет
C13: 2026 | D13: 25354.50222 | E13: 0.02093596059 | F13: 29015 | G13: 0.02093596059 | H13: 0.8738411931 | I13: 365 | J13: нет
C14: 2027 | D14: 25887.54534 | E14: 0.02102360848 | F14: 29625 | G14: 0.02102360848 | H14: 0.8738411931 | I14: 365 | J14: нет
C15: 2028 | D15: 26429.32688 | E15: 0.02092827004 | F15: 30245 | G15: 0.02092827004 | H15: 0.8738411931 | I15: 366 | J15: да
C16: 2029 | D16: 26958.00081 | E16: 0.02000330633 | F16: 30850 | G16: 0.02000330633 | H16: 0.8738411931 | I16: 365 | J16: нет
C17: 2030 | D17: 27469.1979 | E17: 0.01896272285 | F17: 31435 | G17: 0.01896272285 | H17: 0.8738411931 | I17: 365 | J17: нет
C18: 2031 | D18: 28019.71786 | E18: 0.02004135518 | F18: 32065 | G18: 0.02004135518 | H18: 0.8738411931 | I18: 365 | J18: нет
C19: 2032 | D19: 28578.97622 | E19: 0.01995945735 | F19: 32705 | G19: 0.01995945735 | H19: 0.8738411931 | I19: 366 | J19: да
C20: 2033 | D20: 29151.3422 | E20: 0.02002751873 | F20: 33360 | G20: 0.02002751873 | H20: 0.8738411931 | I20: 365 | J20: нет
C21: 2034 | D21: 29732.44659 | E21: 0.01993405276 | F21: 34025 | G21: 0.01993405276 | H21: 0.8738411931 | I21: 365 | J21: нет
C22: 2035 | D22: 30326.65861 | E22: 0.01998530492 | F22: 34705 | G22: 0.01998530492 | H22: 0.8738411931 | I22: 365 | J22: нет
C23: 2036 | D23: 30933.97823 | E23: 0.02002593286 | F23: 35400 | G23: 0.02002593286 | H23: 0.8738411931 | I23: 366 | J23: да
C24: 2037 | D24: 30933.97823 | E24: 0 | F24: 35400 | G24: 0 | H24: 0.8738411931 | I24: 365 | J24: нет
C25: 2038 | D25: 30933.97823 | E25: 0 | F25: 35400 | G25: 0 | H25: 0.8738411931 | I25: 365 | J25: нет
C26: 2039 | D26: 30933.97823 | E26: 0 | F26: 35400 | G26: 0 | H26: 0.8738411931 | I26: 365 | J26: нет
C27: 2040 | D27: 30933.97823 | E27: 0 | F27: 35400 | G27: 0 | H27: 0.8738411931 | I27: 366 | J27: да
C28: 2041 | D28: 30933.97823 | E28: 0 | F28: 35400 | G28: 0 | H28: 0.8738411931 | I28: 365 | J28: нет
C29: 2042 | D29: 30933.97823 | E29: 0 | F29: 35400 | G29: 0 | H29: 0.8738411931 | I29: 365 | J29: нет
C30: 2043 | D30: 30933.97823 | E30: 0 | F30: 35400 | G30: 0 | H30: 0.8738411931 | I30: 365 | J30: нет
C31: 2044 | D31: 30933.97823 | E31: 0 | F31: 35400 | G31: 0 | H31: 0.8738411931 | I31: 366 | J31: да
C32: 2045 | D32: 30933.97823 | E32: 0 | F32: 35400 | G32: 0 | H32: 0.8738411931 | I32: 365 | J32: нет
C33: 2046 | D33: 30933.97823 | E33: 0 | F33: 35400 | G33: 0 | H33: 0.8738411931 | I33: 365 | J33: нет

Sheet Анализ результатов (hidden)
C2: Платежи по стравочнику АИЖК | D2: Платежи по прогнозу ФГКУ | E2: "Запас по сроку"
B3: Возраст заемщика на дату окончания кредитного договора | C3: ='Ввод данных'!$L$32 -> 45 г 0 м | D3: ='Ввод данных'!$L$32 -> 45 г 0 м
B4: Возраст заемщика на расчетную дату погашание кредита, лет. | C4: ='График платежей'!$D$9 -> 41.32777778 | D4: ='График платежей_ФГКУ'!$D$9 -> 36.83055556 | E4: =C4-D4 -> 4.497222222
